date,department/service,beneficiary,amount,summary of purpose,category,transaction number,SAP vendor number
01.06.2019,ADULT SOCIAL CARE,PPL PRS LIMITED,"1,675.11",SOUTHWARK RESOURCE CENTRE,OP LEASE/HIRE CHARGES:PLANT/EQUIP/FURNIT,5902360854,1000082525
01.06.2019,CENTRAL FUNCTIONS,CAPITA BUSINESS SERVICES LTD,"25,429.31",EXCHEQUER RENTS,OTHER CONTRACTORS,5902361703,1000006291
01.06.2019,CHILDREN'S SERVICES,AIDHOUR LIMITED,456.15,CLA TEAM SAFEGUARDING,PROFESSIONAL FEES,5902361835,1000057345
01.06.2019,COMMISSIONING & CENTRAL,LONDON COUNCILS,"5,000.00",STRATEGIC DIRECTOR OF C&AS,SUBSCRIPTIONS,5902361112,11237079
01.06.2019,COMMUNITIES,BROWNING EST MGMT ASSN,347.44,BROWNING EMB,M&M ALLOWANCE CO-OPS,5902361000,1000059362
01.06.2019,ENVIRONMENT AND LEISURE,EDIBLE ROTHERHITHE CIC,"1,775.00",CAPITAL PS (LEISURE),CAPITAL GRANTS,5902360693,1000082775
01.06.2019,ENVIRONMENT DIRECTORATE,ONSITE SUPPORT LTD,444,STREET CLEANING-GENERAL,EQUIPMENT PURCHASE & REPAIR,5902361505,1000043198
01.06.2019,RESIDENT SERVICES,BRITISH GAS TRADING LTD,309.11,OPERATIONS/OFFICES ACCOMMODATION,ELECTRICITY,5902361591,1000055977
01.06.2019,RESIDENT SERVICES,BRITISH GAS TRADING LTD,432.86,OPERATIONS/OFFICES ACCOMMODATION,ELECTRICITY,5902361591,1000055977
01.06.2019,RESIDENT SERVICES,BRITISH GAS TRADING LTD,836.29,OPERATIONS/OFFICES ACCOMMODATION,ELECTRICITY,5902361575,1000055977
01.06.2019,RESIDENT SERVICES,CHARTWELLS,"4,931.00",SUPPORTED HOSTELS,CATERING MATERIALS & SUPPLIES,5902361433,1000010625
01.06.2019,RESIDENT SERVICES,KENT COUNTY COUNCIL - LASER,"1,698.66",TA HOSTELS,ELECTRICITY,5902360890,1000012926
02.06.2019,CHILDREN'S SERVICES,WILLISPALMER,584,FAMILY ASSESSMENTS,RESIDENTIAL CARE,5902361145,1000056409
02.06.2019,COMMISSIONING & CENTRAL,NUMBER 10 INTERIM LTD,"6,825.00",C&AS SYSTEMS TEAM,PROFESSIONAL FEES,5902360875,1000075139
02.06.2019,CUSTOMER EXPERIENCE,OCEAN MEDIA GROUP LIMITED,"1,055.00",HEAD OF CUSTOMER EXPERIENCE,MISCELLANEOUS EXPENSES,5902361440,1000003205
02.06.2019,ENVIRONMENT AND LEISURE,ALDO RINALDI,756.14,CAPITAL PS (LEISURE),CONSTR'N SUB CONTRACT - NON CERTIFICATED,5902360895,1000079649
02.06.2019,ENVIRONMENT DIRECTORATE,SOUTHWARK NEWSPAPER LTD,276,HIGHWAYS DEVELOPMENT,MARKETING & PUBLICITY SERVICES,5902361366,1556957
02.06.2019,ENVIRONMENT DIRECTORATE,ELLIOT ENVIRONMENTAL LTD,400,NON HOUSING GROUNDS,OTHER CONTRACTORS,5902361419,1000047392
02.06.2019,ENVIRONMENT DIRECTORATE,HERNE HILL SCHOOL,"1,095.00","ROAD SAFETY EDUCATION,TRAINING&PUBLICITY",PROFESSIONAL FEES,5902360983,1000082694
02.06.2019,ENVIRONMENT DIRECTORATE,SOUTHWARK NEWSPAPER LTD,276,STREET WORKS OVERHEADS,MARKETING & PUBLICITY SERVICES,5902361383,1556957
02.06.2019,ENVIRONMENT DIRECTORATE,SOUTHWARK NEWSPAPER LTD,288,STREET WORKS OVERHEADS,MARKETING & PUBLICITY SERVICES,5902361386,1556957
02.06.2019,ENVIRONMENT DIRECTORATE,SOUTHWARK NEWSPAPER LTD,288,STREET WORKS OVERHEADS,MARKETING & PUBLICITY SERVICES,5902361388,1556957
02.06.2019,ENVIRONMENT DIRECTORATE,SOUTHWARK NEWSPAPER LTD,288,STREET WORKS OVERHEADS,MARKETING & PUBLICITY SERVICES,5902361391,1556957
02.06.2019,ENVIRONMENT DIRECTORATE,SOUTHWARK NEWSPAPER LTD,288,STREET WORKS OVERHEADS,MARKETING & PUBLICITY SERVICES,5902361399,1556957
02.06.2019,ENVIRONMENT DIRECTORATE,SOUTHWARK NEWSPAPER LTD,288,STREET WORKS OVERHEADS,MARKETING & PUBLICITY SERVICES,5902361404,1556957
02.06.2019,ENVIRONMENT DIRECTORATE,SOUTHWARK NEWSPAPER LTD,288,STREET WORKS OVERHEADS,MARKETING & PUBLICITY SERVICES,5902361407,1556957
02.06.2019,ENVIRONMENT DIRECTORATE,SOUTHWARK NEWSPAPER LTD,300,STREET WORKS OVERHEADS,MARKETING & PUBLICITY SERVICES,5902361394,1556957
02.06.2019,ENVIRONMENT DIRECTORATE,SOUTHWARK NEWSPAPER LTD,348,STREET WORKS OVERHEADS,MARKETING & PUBLICITY SERVICES,5902361410,1556957
02.06.2019,F & C S EXCLUDING CORPORATE BUDGETS,BUDGET CARPETS,579.17,SESS,OTHER PAYMENTS FOR CLIENTS,5902360763,11319076
02.06.2019,HOUSING STRATEGY AND OPTIONS,BACK ON TRACK HOUSING,"1,087.68",HOMELESS PROJECTS,GRANTS,5902361497,1000071262
03.06.2019,CAMBERWELL COMMUNITY COUNCIL,AFC CAMBERWELL LTD,"1,500.00",FREEDOM TO PLAY,GRANT,CHEQUE PAYMENT,CHEQUE PAYMENT
03.06.2019,ENVIRONMENT DIRECTORATE,THE T.P. PARTNERSHIP,445,ESTATE CLEANING-GENERAL,OTHER CONTRACTORS,5902361349,1000045906
03.06.2019,ENVIRONMENT DIRECTORATE,ELLIOT ENVIRONMENTAL LTD,400,NON HOUSING GROUNDS,OTHER CONTRACTORS,5902361422,1000047392
03.06.2019,HOUSING HRA,CARL TURNER ARCHITECTS LTD,"2,827.50",CAPITAL PS (HRA),CONSTRUCTION FEES - ARCHITECT,5902361758,1000060355
03.06.2019,PECKHAM AND NUNHEAD COMMUNITY COUNCIL,THE FRIENDS OF KELLY AVENUE PARK ,900,COMMUNITY FUN DAY ,GRANT,CHEQUE PAYMENT,CHEQUE PAYMENT
03.06.2019,PECKHAM AND NUNHEAD COMMUNITY COUNCIL,TEARDUSK ,"2,500.00",DIGITAL DROP IN ,GRANT,CHEQUE PAYMENT,CHEQUE PAYMENT
03.06.2019,STRATEGIC FINANCING BUDGETS,TRADITION (UK) LTD,"3,726.03",EXTERNAL INTEREST,DEBT MANAGEMENT EXPENSES,5902361007,1000081340
03.06.2019,STRATEGIC FINANCING BUDGETS,TRADITION (UK) LTD,"4,986.30",EXTERNAL INTEREST,DEBT MANAGEMENT EXPENSES,5902361005,1000081340
03.06.2019,STRATEGIC FINANCING BUDGETS,TRADITION (UK) LTD,"9,972.60",EXTERNAL INTEREST,DEBT MANAGEMENT EXPENSES,5902361010,1000081340
03.06.2019,STRATEGIC FINANCING BUDGETS,TRADITION (UK) LTD,"10,471.23",EXTERNAL INTEREST,DEBT MANAGEMENT EXPENSES,5902361002,1000081340
04.06.2019,ADULT SOCIAL CARE,SHUTTLEWORTH (UK) LTD,"1,230.00",ASC TEMPORARY ACCOMMODATION,EXTERNAL AGENCIES AND BODIES,5902361889,1000056468
04.06.2019,ADULT SOCIAL CARE,HEALTH ADVOCACY UK LTD,650,CHC ADVOCACY- LD,ADVOCACY,5902361900,1000082156
04.06.2019,ADULT SOCIAL CARE,HEALTH ADVOCACY UK LTD,650,CHC ADVOCACY- LD,ADVOCACY,5902361903,1000082156
04.06.2019,ADULT SOCIAL CARE,HEALTH ADVOCACY UK LTD,650,CHC ADVOCACY- LD,ADVOCACY,5902361904,1000082156
04.06.2019,ADULT SOCIAL CARE,HEALTH ADVOCACY UK LTD,650,CHC ADVOCACY- LD,ADVOCACY,5902361905,1000082156
04.06.2019,ADULT SOCIAL CARE,HEALTH ADVOCACY UK LTD,650,CHC ADVOCACY- LD,ADVOCACY,5902361907,1000082156
04.06.2019,ADULT SOCIAL CARE,HEALTH ADVOCACY UK LTD,650,CHC ADVOCACY- LD,ADVOCACY,5902361909,1000082156
04.06.2019,ADULT SOCIAL CARE,HYDE HOUSING ASSOCIATION LTD,969.19,EXTRA CARE CONTRACT,RENTS,5902361846,1000013980
04.06.2019,ADULT SOCIAL CARE,HYDE HOUSING ASSOCIATION LTD,969.2,EXTRA CARE CONTRACT,RENTS,5902361847,1000013980
04.06.2019,ADULT SOCIAL CARE,RADHA CONSULTING LTD,882.55,SAFEGUARDING TEAM,OTHER CONTRACTORS,5902361974,1000061154
04.06.2019,ASSET MANAGEMENT,SILK & MACKMAN SERVICES LTD,"1,180.00",ADAPTATIONS,BUILDING R&M,5902361942,1000035282
04.06.2019,ASSET MANAGEMENT,CAMBRIDGE HOUSE & TALBOT,"9,181.56",DISREPAIR,LEGAL FEES & COURT COSTS,5902361970,11248874
04.06.2019,ASSET MANAGEMENT,IHS GLOBAL LTD,"27,201.77",ENG CONTRACTS,SUBSCRIPTIONS,5902361932,1000053404
04.06.2019,ASSET MANAGEMENT,GAS ADVISORY SERVICES LIMITED,"6,500.00",ENG CONTRACTS (NORTH),SOFTWARE,5902361939,1000064649
04.06.2019,ASSET MANAGEMENT,SALTASH ENTERPRISES LTD,"3,816.00",REPAIRS OPERATIONS,PAYMENTS FOR LEGAL SERVICES,2102962651,4013605
04.06.2019,BERMONDSEY AND ROTHERHITHE COMMUNITY COUNCIL,SOUNDCAMP,"1,950.00",SOUNDCAMP 6 AT STAVE HILL ECOLOGICAL PARK,GRANT,CHEQUE PAYMENT,CHEQUE PAYMENT
04.06.2019,"BOROUGH, BANKSIDE AND WALWORTH COMMUNITY COUNCIL",PEMBROKE COLLEGE SETTLEMENT,"3,892.00",CONNECTING RESIDENTS: FOUR NEIGHBOURHOOD ACTIVITIES ,GRANT,CHEQUE PAYMENT,CHEQUE PAYMENT
04.06.2019,"BOROUGH, BANKSIDE AND WALWORTH COMMUNITY COUNCIL",ST GEORGE THE MARTYR CHURCH ,"1,900.00",ST GEORGE'S HUB FOR HEALTH AND WELLBEING ,GRANT,CHEQUE PAYMENT,CHEQUE PAYMENT
04.06.2019,CENTRAL FUNCTIONS,BLAKENEY LEIGH LTD,"3,252.30",AYLESBURY,PROFESSIONAL FEES,5902361881,1438839
04.06.2019,CENTRAL FUNCTIONS,BLAKENEY LEIGH LTD,"3,713.40",AYLESBURY,PROFESSIONAL FEES,5902361880,1438839
04.06.2019,CENTRAL FUNCTIONS,BLAKENEY LEIGH LTD,"3,817.58",AYLESBURY,PROFESSIONAL FEES,5902361879,1438839
04.06.2019,CENTRAL FUNCTIONS,BLAKENEY LEIGH LTD,"5,494.05",AYLESBURY,PROFESSIONAL FEES,5902361878,1438839
04.06.2019,CHIEF EXECUTIVE,CONWAY AECOM LTD,"12,811.12",CAPITAL PS (REGEN),CONSTR'N SUB CONTRACT - NON CERTIFICATED,2102962645,3000001595
04.06.2019,CHIEF EXECUTIVE,SANCHEZ BENTON ARCHITECTS LTD,"4,949.06",CAPITAL PS (REGEN),CONSTRUCTION FEES - ARCHITECT,5902361960,1000080367
04.06.2019,CHIEF EXECUTIVE,LDA DESIGN CONSULTING LTD,"5,250.96",CAPITAL PS (REGEN),CONSTRUCTION FEES - ARCHITECT,5902361926,1000031830
04.06.2019,CHIEF EXECUTIVE,ROBERTS LIMBRICK LTD,720,CAPITAL PS (REGEN),CONSTRUCTION FEES - QUANTITY SURVEYOR,5902361915,1000081710
04.06.2019,CHIEF EXECUTIVE,ROBERTS LIMBRICK LTD,"1,440.00",CAPITAL PS (REGEN),CONSTRUCTION FEES - QUANTITY SURVEYOR,5902361912,1000081710
04.06.2019,CHIEF EXECUTIVE,ROBERTS LIMBRICK LTD,"1,500.00",CAPITAL PS (REGEN),CONSTRUCTION FEES - QUANTITY SURVEYOR,5902361910,1000081710
04.06.2019,CHIEF EXECUTIVE'S OFFICE,BAS CONSULTANCY LTD,"4,000.00",BUSINESS SUPPORT,GRANTS,5902361897,1000082570
04.06.2019,CHIEF EXECUTIVE'S OFFICE,TREE SHEPHERD LTD,"8,587.50",BUSINESS SUPPORT,PROFESSIONAL FEES,5902361882,1000076895
04.06.2019,CHILDREN'S SERVICES,ZENITH CARS LTD,320,AIS - IHT,OTHER PAYMENTS FOR CLIENTS,5902361967,1000070570
04.06.2019,CHILDREN'S SERVICES,THAMES REACH,712,ASSMT & INT SERVICE-HEAD OF SERVICE,TRAINING,5902361971,1723415
04.06.2019,CHILDREN'S SERVICES,LONDON EARLY YEARS FOUNDATION,"1,450.00",CAMBERWELL GROVE EARLY YEARS CENTRE,EXTERNAL AGENCIES AND BODIES,5902361921,1000077919
04.06.2019,CHILDREN'S SERVICES,THE WALK TO FREEDOM LTD,300,CARE GRPS  4 TO 6,OTHER PAYMENTS FOR CLIENTS,5902361875,1000081592
04.06.2019,CHILDREN'S SERVICES,HILTON LONDON DOCKLANDS,"5,060.00",EDUCATIONAL TRADE SERVICES,OTHER SUBSISTENCE & CONFERENCE EXPENSES,5902361614,1000031075
04.06.2019,CHILDREN'S SERVICES,MEGGS COSTOYA ATTFIELD LTD,"2,100.00",FREE AND EARLY LEARNING TEAM,TRAINING,5902361885,1000021574
04.06.2019,CHILDREN'S SERVICES,OFFICE DEPOT UK LTD,337.49,MGMT & PARENTING PROG TEAM,GAS,5902361870,1109426
04.06.2019,CHILDREN'S SERVICES,ZENITH CARS LTD,341,S & FAM SUPP - PRAC GRP B SET 17-19,HIRED VEHICLES,5902361967,1000070570
04.06.2019,CHILDREN'S SERVICES,SINEAD JOYCE,"1,440.00",SUMMERHOUSE - EX416 - 5015232,CONSULTANTS SERVICES,5902361852,1000056695
04.06.2019,CHILDREN'S SERVICES,THE LITERACY TREE LTD,750,SUMMERHOUSE - EX416 - 5015232,TRAINING,5902361853,1000069542
04.06.2019,CHILDREN'S SERVICES,ANTALIS LTD,775,YOS SUPPORT,STATIONERY,5902361975,1000066919
04.06.2019,COMMISSIONING & CENTRAL,NHS SOUTHWARK CCG,"30,893.00",PARTNERSHIP COMMISSIONING TEAM,EXTERNAL AGENCIES AND BODIES,5902361920,1000073431
04.06.2019,COMMISSIONING & CENTRAL,NHS SOUTHWARK CCG,"67,832.00",PARTNERSHIP COMMISSIONING TEAM,EXTERNAL AGENCIES AND BODIES,5902361908,1000073431
04.06.2019,COMMISSIONING & CENTRAL,NHS SOUTHWARK CCG,"117,974.00",PARTNERSHIP COMMISSIONING TEAM,EXTERNAL AGENCIES AND BODIES,5902361914,1000073431
04.06.2019,COMMUNITIES,BLAKENEY LEIGH LTD,"4,095.00",TENANT MGT INITITIVES,DISCRETIONARY AWARDS AND FEES,5902361929,1438839
04.06.2019,COMMUNITIES,BLAKENEY LEIGH LTD,"16,777.50",TENANT MGT INITITIVES,DISCRETIONARY AWARDS AND FEES,5902361927,1438839
04.06.2019,COMMUNITIES,PERRONET HOUSE T&RA,"1,300.00",TENANTS FUND,GRANTS,5902361966,1000069828
04.06.2019,CUSTOMER EXPERIENCE HGF,CANADA WATER CULTURE SPACE,280,BLUE BADGES,HIRE OF ROOMS/HALLS,5902361963,1000075539
04.06.2019,CUSTOMER EXPERIENCE HGF,JANICE LEWIS & EMMANUEL KAPPO,"1,500.00",PSL (SOCIAL LETTINGS),EXTERNAL AGENCIES AND BODIES,2102961389,1000082683
04.06.2019,CUSTOMER EXPERIENCE HGF,JANICE LEWIS & EMMANUEL KAPPO,"3,538.23",PSL (SOCIAL LETTINGS),EXTERNAL AGENCIES AND BODIES,2102961388,1000082683
04.06.2019,ENVIRONMENT AND LEISURE,REDLYNCH LEISURE INSTALLATIONS LTD,"2,305.00",CAPITAL PS (LEISURE),CONST'N MAIN CONTRACT - NON CERTIFICATED,2102962647,3000000670
04.06.2019,ENVIRONMENT AND LEISURE,RH WROUGHT IRON,"2,830.00",CAPITAL PS (LEISURE),CONST'N MAIN CONTRACT - NON CERTIFICATED,2102962649,3000000680
04.06.2019,ENVIRONMENT AND LEISURE,RH WROUGHT IRON,"3,670.00",CAPITAL PS (LEISURE),CONST'N MAIN CONTRACT - NON CERTIFICATED,2102962648,3000000680
04.06.2019,ENVIRONMENT AND LEISURE,CONWAY AECOM LTD,"3,583.31",CAPITAL PS (LEISURE),CONSTR'N SUB CONTRACT - NON CERTIFICATED,2102962644,3000001595
04.06.2019,ENVIRONMENT AND LEISURE,RH WROUGHT IRON,"8,861.00",CAPITAL PS (LEISURE),CONSTRUCTION,2102962650,3000000680
04.06.2019,ENVIRONMENT AND LEISURE,BELL PHILLIPS ARCHITECTS LTD,"4,000.00",CAPITAL PS (LEISURE),CONSTRUCTION FEES  - EXTERNAL,5902361877,1000069307
04.06.2019,ENVIRONMENT AND LEISURE,BELL PHILLIPS ARCHITECTS LTD,"6,280.00",CAPITAL PS (LEISURE),CONSTRUCTION FEES  - EXTERNAL,5902361877,1000069307
04.06.2019,ENVIRONMENT DIRECTORATE,ARNOLD CLARK VEHICLE MANAGEMENT,252.91,CAR LEASING CTRL A/C,VEHICLE LEASING CHARGES,5902361947,1000079116
04.06.2019,ENVIRONMENT DIRECTORATE,ARNOLD CLARK VEHICLE MANAGEMENT,332.29,CAR LEASING CTRL A/C,VEHICLE LEASING CHARGES,5902361945,1000079116
04.06.2019,ENVIRONMENT DIRECTORATE,ARNOLD CLARK VEHICLE MANAGEMENT,337.27,CAR LEASING CTRL A/C,VEHICLE LEASING CHARGES,5902361945,1000079116
04.06.2019,ENVIRONMENT DIRECTORATE,GREENHAM TRADING LTD,251.84,ESTATE CLEANING-GENERAL,MATERIALS,5902361949,1000006610
04.06.2019,ENVIRONMENT DIRECTORATE,GREENHAM TRADING LTD,"1,581.39",ESTATE CLEANING-GENERAL,MATERIALS,5902361949,1000006610
04.06.2019,ENVIRONMENT DIRECTORATE,SPALDINGS (UK) LTD,568,GROUNDS MAINTENANCE - GENERAL,MATERIALS,5902361871,1907384
04.06.2019,ENVIRONMENT DIRECTORATE,LONDON TOOLS LIMITED,660,PARKS TECH UNIT (PREMISES),BUILDING R&M,5902361851,1000003017
04.06.2019,ENVIRONMENT DIRECTORATE,LONDON TOOLS LIMITED,325,PUBLIC LIGHTING,EQUIPMENT PURCHASE & REPAIR,5902361849,1000003017
04.06.2019,ENVIRONMENT DIRECTORATE,CABLE TEST LTD,275.32,PUBLIC LIGHTING,SOUTHWARK DIRECT CHARGES,5902361859,1000079183
04.06.2019,ENVIRONMENT DIRECTORATE,CABLE TEST LTD,275.32,PUBLIC LIGHTING,SOUTHWARK DIRECT CHARGES,5902361861,1000079183
04.06.2019,ENVIRONMENT DIRECTORATE,CABLE TEST LTD,413,PUBLIC LIGHTING,SOUTHWARK DIRECT CHARGES,5902361863,1000079183
04.06.2019,ENVIRONMENT DIRECTORATE,CABLE TEST LTD,433,PUBLIC LIGHTING,SOUTHWARK DIRECT CHARGES,5902361856,1000079183
04.06.2019,ENVIRONMENT DIRECTORATE,CABLE TEST LTD,470.73,PUBLIC LIGHTING,SOUTHWARK DIRECT CHARGES,5902361854,1000079183
04.06.2019,ENVIRONMENT DIRECTORATE,CABLE TEST LTD,470.73,PUBLIC LIGHTING,SOUTHWARK DIRECT CHARGES,5902361855,1000079183
04.06.2019,ENVIRONMENT DIRECTORATE,CABLE TEST LTD,767,PUBLIC LIGHTING,SOUTHWARK DIRECT CHARGES,5902361862,1000079183
04.06.2019,ENVIRONMENT DIRECTORATE,CABLE TEST LTD,"1,276.64",PUBLIC LIGHTING,SOUTHWARK DIRECT CHARGES,5902361860,1000079183
04.06.2019,ENVIRONMENT DIRECTORATE,L H BRIDGE LTD,"2,650.00",RESIDENTIAL SERVICES,BUILDING R&M,2102962646,3000001167
04.06.2019,ENVIRONMENT DIRECTORATE,JUDGE AND PRIESTLEY SOLICITORS,837,SASBU,LEGAL FEES & COURT COSTS,5902361891,1472217
04.06.2019,ENVIRONMENT DIRECTORATE,TRAILPARTS,279.2,STREET CLEANING-GENERAL,EQUIPMENT PURCHASE & REPAIR,5902361864,1648326
04.06.2019,ENVIRONMENT DIRECTORATE,NATIONAL CRIME AGENCY,284,TRADING STANDARDS,SUBSCRIPTIONS,5902361899,1000057139
04.06.2019,F & C S EXCLUDING CORPORATE BUDGETS,CAPITA BUSINESS SERVICES LTD,"2,158.00",ADMINISTRATIVE SUPPORT,EQUIPMENT PURCHASE & REPAIR,5902361902,1000006291
04.06.2019,F & C S EXCLUDING CORPORATE BUDGETS,ARCH CONSULTING,"16,650.00",FC&P QUALITY & PERFORMANCE,OFFICE EXPENSES,5902361892,1000056829
04.06.2019,HOUSING HRA,CALFORD SEADEN LLP,"1,387.72",CAPITAL PS (HRA),CONSTRUCTION FEES  - EXTERNAL,5902361901,1061592
04.06.2019,HOUSING HRA,STANDAGE & CO LTD,"19,302.68",CAPITAL PS (HRA),CONSTRUCTION MAIN CONTRACT -CERTIFICATED,2102962654,4002817
04.06.2019,HOUSING HRA,STANDAGE & CO LTD,"102,408.83",CAPITAL PS (HRA),CONSTRUCTION MAIN CONTRACT -CERTIFICATED,2102962652,4002817
04.06.2019,HOUSING HRA,STANDAGE & CO LTD,"220,252.42",CAPITAL PS (HRA),CONSTRUCTION MAIN CONTRACT -CERTIFICATED,2102962653,4002817
04.06.2019,LEISURE DIRECTORATE,TECHNICAL SURFACES,413.75,DAMILOLA TAYLOR CENTRE,EQUIPMENT PURCHASE & REPAIR,5902361869,1000011451
04.06.2019,LEISURE DIRECTORATE,RH WROUGHT IRON,"1,695.00",DULWICH AREA TEAM,OTHER R&M,2102962657,3000000680
04.06.2019,LEISURE DIRECTORATE,RH WROUGHT IRON,"3,645.00",DULWICH AREA TEAM,OTHER R&M,2102962656,3000000680
04.06.2019,LEISURE DIRECTORATE,RH WROUGHT IRON,"6,990.00",DULWICH AREA TEAM,OTHER R&M,2102962655,3000000680
04.06.2019,LEISURE DIRECTORATE,WORKPLACE FIRE & SAFETY LTD,418.5,KINGSWOOD HOUSE,EQUIPMENT PURCHASE & REPAIR,5902361950,1000045555
04.06.2019,LEISURE DIRECTORATE,VICTOR OPEYOKUN,300,LIBARIES DEVELOPMENT,FREELANCE SPECIALISTS,5902361948,1000064182
04.06.2019,LEISURE DIRECTORATE,CITY OF LONDON LIBRARIES & ART GALLERIES,747.5,LOCAL HISTORY LIBRARY,REMOVAL EXPENSES,5902361883,1000060358
04.06.2019,LEISURE DIRECTORATE,CASTLE WATER LTD,416.31,PECKHAM LIBRARY,WATER,5902361930,1000078867
04.06.2019,MODERNISATION HGF,VIRGIN MEDIA,975.4,IT MANAGEMENT,DATA COMMUNICATIONS,5902361523,1000026457
04.06.2019,MODERNISATION HGF,SHERRIDAN HUGHES,"2,675.00",OCCUPATIONAL ASSESSMENT,CONSULTANTS SERVICES,5902361898,1000074250
04.06.2019,MODERNISATION HGF,T2 SOLUTIONS 2000 LTD,475,OCCUPATIONAL ASSESSMENT,CONSULTANTS SERVICES,5902361890,1000080952
04.06.2019,PECKHAM AND NUNHEAD COMMUNITY COUNCIL,WILLOWBROOK TMC,"2,015.00",POLLINATOR GARDEN ,GRANT,CHEQUE PAYMENT,CHEQUE PAYMENT
04.06.2019,RESIDENT SERVICES,SHUTTLEWORTH (UK) LTD,"1,080.00",TA PLACEMENTS,EXTERNAL AGENCIES AND BODIES,5902361868,1000056468
05.06.2019,ADULT SOCIAL CARE,SWK DISABLEMENT ASSN,"20,000.00",LOCAL COMMUNITY OFFER,EXTERNAL AGENCIES AND BODIES,5902362011,1000011698
05.06.2019,ADULT SOCIAL CARE,OASIS CARE AND TRAINING AGENCY,510.23,MH LTS 18-64,SUPPORTED LIVING,2102962663,1000003687
05.06.2019,ADULT SOCIAL CARE,OASIS CARE AND TRAINING AGENCY,551.6,MH LTS 18-64,SUPPORTED LIVING,2102962662,1000003687
05.06.2019,ADULT SOCIAL CARE,OASIS CARE AND TRAINING AGENCY,551.6,MH LTS 18-64,SUPPORTED LIVING,2102962664,1000003687
05.06.2019,ADULT SOCIAL CARE,PHOENIX HEALTHCARE & RECRUITMENT,391.36,PHY LTS 18-64,DAYCARE,2102962661,1000065636
05.06.2019,ADULT SOCIAL CARE,LUCAS CONSULT LTD,809.85,SAFEGUARDING TEAM,EXTERNAL AGENCIES AND BODIES,5902361924,1000078082
05.06.2019,ADULT SOCIAL CARE,ARAMBADA LTD,615.92,SAFEGUARDING TEAM,OTHER CONTRACTORS,5902362103,1000082688
05.06.2019,ADULT SOCIAL CARE,INTERSERVE HEALTHCARE,570.56,SPECIALIST CARE,SECTION 17 PAYMENTS TO AGENCIES/CARERS,2102963668,1000049612
05.06.2019,ADULT SOCIAL CARE,INTERSERVE HEALTHCARE,668.33,SPECIALIST CARE,SECTION 17 PAYMENTS TO AGENCIES/CARERS,2102962853,1000049612
05.06.2019,ASSET MANAGEMENT,UK POWER NETWORKS (OPERATIONS) LTD,"2,100.00",ENG CONTRACTS (SOUTH),BUILDING R&M,5902361976,1000016085
05.06.2019,CHIEF EXECUTIVE,BRITISH GAS,-514.25,CAPITAL PS (REGEN),CONSTRUCTION FEES  - EXTERNAL,5902362054,1000054825
05.06.2019,CHIEF EXECUTIVE,BRITISH GAS,510.78,CAPITAL PS (REGEN),CONSTRUCTION FEES  - EXTERNAL,5902362055,1000054825
05.06.2019,CHIEF EXECUTIVE,BRITISH GAS,514.25,CAPITAL PS (REGEN),CONSTRUCTION FEES  - EXTERNAL,5902362055,1000054825
05.06.2019,CHILDREN'S SERVICES,REDACTED PERSONAL DATA,251.12,ADOPTION PLACEMENTS & INTER AGENCY,PAYMENTS TO CARERS,REDACTED,REDACTED
05.06.2019,CHILDREN'S SERVICES,REDACTED PERSONAL DATA,251.94,ADOPTION PLACEMENTS & INTER AGENCY,PAYMENTS TO CARERS,REDACTED,REDACTED
05.06.2019,CHILDREN'S SERVICES,REDACTED PERSONAL DATA,252.9,ADOPTION PLACEMENTS & INTER AGENCY,PAYMENTS TO CARERS,REDACTED,REDACTED
05.06.2019,CHILDREN'S SERVICES,REDACTED PERSONAL DATA,253.56,ADOPTION PLACEMENTS & INTER AGENCY,PAYMENTS TO CARERS,REDACTED,REDACTED
05.06.2019,CHILDREN'S SERVICES,REDACTED PERSONAL DATA,255.22,ADOPTION PLACEMENTS & INTER AGENCY,PAYMENTS TO CARERS,REDACTED,REDACTED
05.06.2019,CHILDREN'S SERVICES,REDACTED PERSONAL DATA,255.22,ADOPTION PLACEMENTS & INTER AGENCY,PAYMENTS TO CARERS,REDACTED,REDACTED
05.06.2019,CHILDREN'S SERVICES,REDACTED PERSONAL DATA,262.44,ADOPTION PLACEMENTS & INTER AGENCY,PAYMENTS TO CARERS,REDACTED,REDACTED
05.06.2019,CHILDREN'S SERVICES,REDACTED PERSONAL DATA,269.22,ADOPTION PLACEMENTS & INTER AGENCY,PAYMENTS TO CARERS,REDACTED,REDACTED
05.06.2019,CHILDREN'S SERVICES,REDACTED PERSONAL DATA,279.26,ADOPTION PLACEMENTS & INTER AGENCY,PAYMENTS TO CARERS,REDACTED,REDACTED
05.06.2019,CHILDREN'S SERVICES,REDACTED PERSONAL DATA,282.76,ADOPTION PLACEMENTS & INTER AGENCY,PAYMENTS TO CARERS,REDACTED,REDACTED
05.06.2019,CHILDREN'S SERVICES,REDACTED PERSONAL DATA,293.98,ADOPTION PLACEMENTS & INTER AGENCY,PAYMENTS TO CARERS,REDACTED,REDACTED
05.06.2019,CHILDREN'S SERVICES,REDACTED PERSONAL DATA,304.64,ADOPTION PLACEMENTS & INTER AGENCY,PAYMENTS TO CARERS,REDACTED,REDACTED
05.06.2019,CHILDREN'S SERVICES,REDACTED PERSONAL DATA,359.44,ADOPTION PLACEMENTS & INTER AGENCY,PAYMENTS TO CARERS,REDACTED,REDACTED
05.06.2019,CHILDREN'S SERVICES,REDACTED PERSONAL DATA,359.44,ADOPTION PLACEMENTS & INTER AGENCY,PAYMENTS TO CARERS,REDACTED,REDACTED
05.06.2019,CHILDREN'S SERVICES,REDACTED PERSONAL DATA,368.52,ADOPTION PLACEMENTS & INTER AGENCY,PAYMENTS TO CARERS,REDACTED,REDACTED
05.06.2019,CHILDREN'S SERVICES,REDACTED PERSONAL DATA,369.16,ADOPTION PLACEMENTS & INTER AGENCY,PAYMENTS TO CARERS,REDACTED,REDACTED
05.06.2019,CHILDREN'S SERVICES,REDACTED PERSONAL DATA,375.54,ADOPTION PLACEMENTS & INTER AGENCY,PAYMENTS TO CARERS,REDACTED,REDACTED
05.06.2019,CHILDREN'S SERVICES,REDACTED PERSONAL DATA,375.54,ADOPTION PLACEMENTS & INTER AGENCY,PAYMENTS TO CARERS,REDACTED,REDACTED
05.06.2019,CHILDREN'S SERVICES,REDACTED PERSONAL DATA,375.54,ADOPTION PLACEMENTS & INTER AGENCY,PAYMENTS TO CARERS,REDACTED,REDACTED
05.06.2019,CHILDREN'S SERVICES,REDACTED PERSONAL DATA,375.54,ADOPTION PLACEMENTS & INTER AGENCY,PAYMENTS TO CARERS,REDACTED,REDACTED
05.06.2019,CHILDREN'S SERVICES,REDACTED PERSONAL DATA,375.54,ADOPTION PLACEMENTS & INTER AGENCY,PAYMENTS TO CARERS,REDACTED,REDACTED
05.06.2019,CHILDREN'S SERVICES,REDACTED PERSONAL DATA,375.54,ADOPTION PLACEMENTS & INTER AGENCY,PAYMENTS TO CARERS,REDACTED,REDACTED
05.06.2019,CHILDREN'S SERVICES,REDACTED PERSONAL DATA,375.54,ADOPTION PLACEMENTS & INTER AGENCY,PAYMENTS TO CARERS,REDACTED,REDACTED
05.06.2019,CHILDREN'S SERVICES,REDACTED PERSONAL DATA,375.54,ADOPTION PLACEMENTS & INTER AGENCY,PAYMENTS TO CARERS,REDACTED,REDACTED
05.06.2019,CHILDREN'S SERVICES,REDACTED PERSONAL DATA,375.54,ADOPTION PLACEMENTS & INTER AGENCY,PAYMENTS TO CARERS,REDACTED,REDACTED
05.06.2019,CHILDREN'S SERVICES,REDACTED PERSONAL DATA,382.3,ADOPTION PLACEMENTS & INTER AGENCY,PAYMENTS TO CARERS,REDACTED,REDACTED
05.06.2019,CHILDREN'S SERVICES,REDACTED PERSONAL DATA,382.3,ADOPTION PLACEMENTS & INTER AGENCY,PAYMENTS TO CARERS,REDACTED,REDACTED
05.06.2019,CHILDREN'S SERVICES,REDACTED PERSONAL DATA,382.3,ADOPTION PLACEMENTS & INTER AGENCY,PAYMENTS TO CARERS,REDACTED,REDACTED
05.06.2019,CHILDREN'S SERVICES,REDACTED PERSONAL DATA,382.3,ADOPTION PLACEMENTS & INTER AGENCY,PAYMENTS TO CARERS,REDACTED,REDACTED
05.06.2019,CHILDREN'S SERVICES,REDACTED PERSONAL DATA,386,ADOPTION PLACEMENTS & INTER AGENCY,PAYMENTS TO CARERS,REDACTED,REDACTED
05.06.2019,CHILDREN'S SERVICES,REDACTED PERSONAL DATA,400.84,ADOPTION PLACEMENTS & INTER AGENCY,PAYMENTS TO CARERS,REDACTED,REDACTED
05.06.2019,CHILDREN'S SERVICES,REDACTED PERSONAL DATA,400.84,ADOPTION PLACEMENTS & INTER AGENCY,PAYMENTS TO CARERS,REDACTED,REDACTED
05.06.2019,CHILDREN'S SERVICES,REDACTED PERSONAL DATA,400.84,ADOPTION PLACEMENTS & INTER AGENCY,PAYMENTS TO CARERS,REDACTED,REDACTED
05.06.2019,CHILDREN'S SERVICES,REDACTED PERSONAL DATA,404.46,ADOPTION PLACEMENTS & INTER AGENCY,PAYMENTS TO CARERS,REDACTED,REDACTED
05.06.2019,CHILDREN'S SERVICES,REDACTED PERSONAL DATA,451.8,ADOPTION PLACEMENTS & INTER AGENCY,PAYMENTS TO CARERS,REDACTED,REDACTED
05.06.2019,CHILDREN'S SERVICES,REDACTED PERSONAL DATA,457.14,ADOPTION PLACEMENTS & INTER AGENCY,PAYMENTS TO CARERS,REDACTED,REDACTED
05.06.2019,CHILDREN'S SERVICES,REDACTED PERSONAL DATA,465.48,ADOPTION PLACEMENTS & INTER AGENCY,PAYMENTS TO CARERS,REDACTED,REDACTED
05.06.2019,CHILDREN'S SERVICES,REDACTED PERSONAL DATA,465.52,ADOPTION PLACEMENTS & INTER AGENCY,PAYMENTS TO CARERS,REDACTED,REDACTED
05.06.2019,CHILDREN'S SERVICES,REDACTED PERSONAL DATA,465.54,ADOPTION PLACEMENTS & INTER AGENCY,PAYMENTS TO CARERS,REDACTED,REDACTED
05.06.2019,CHILDREN'S SERVICES,REDACTED PERSONAL DATA,465.54,ADOPTION PLACEMENTS & INTER AGENCY,PAYMENTS TO CARERS,REDACTED,REDACTED
05.06.2019,CHILDREN'S SERVICES,REDACTED PERSONAL DATA,465.54,ADOPTION PLACEMENTS & INTER AGENCY,PAYMENTS TO CARERS,REDACTED,REDACTED
05.06.2019,CHILDREN'S SERVICES,REDACTED PERSONAL DATA,465.54,ADOPTION PLACEMENTS & INTER AGENCY,PAYMENTS TO CARERS,REDACTED,REDACTED
05.06.2019,CHILDREN'S SERVICES,REDACTED PERSONAL DATA,480,ADOPTION PLACEMENTS & INTER AGENCY,PAYMENTS TO CARERS,REDACTED,REDACTED
05.06.2019,CHILDREN'S SERVICES,REDACTED PERSONAL DATA,484.92,ADOPTION PLACEMENTS & INTER AGENCY,PAYMENTS TO CARERS,REDACTED,REDACTED
05.06.2019,CHILDREN'S SERVICES,REDACTED PERSONAL DATA,485.22,ADOPTION PLACEMENTS & INTER AGENCY,PAYMENTS TO CARERS,REDACTED,REDACTED
05.06.2019,CHILDREN'S SERVICES,REDACTED PERSONAL DATA,500,ADOPTION PLACEMENTS & INTER AGENCY,PAYMENTS TO CARERS,REDACTED,REDACTED
05.06.2019,CHILDREN'S SERVICES,REDACTED PERSONAL DATA,502,ADOPTION PLACEMENTS & INTER AGENCY,PAYMENTS TO CARERS,REDACTED,REDACTED
05.06.2019,CHILDREN'S SERVICES,REDACTED PERSONAL DATA,510.96,ADOPTION PLACEMENTS & INTER AGENCY,PAYMENTS TO CARERS,REDACTED,REDACTED
05.06.2019,CHILDREN'S SERVICES,REDACTED PERSONAL DATA,512.02,ADOPTION PLACEMENTS & INTER AGENCY,PAYMENTS TO CARERS,REDACTED,REDACTED
05.06.2019,CHILDREN'S SERVICES,REDACTED PERSONAL DATA,530,ADOPTION PLACEMENTS & INTER AGENCY,PAYMENTS TO CARERS,REDACTED,REDACTED
05.06.2019,CHILDREN'S SERVICES,REDACTED PERSONAL DATA,552.16,ADOPTION PLACEMENTS & INTER AGENCY,PAYMENTS TO CARERS,REDACTED,REDACTED
05.06.2019,CHILDREN'S SERVICES,REDACTED PERSONAL DATA,559.06,ADOPTION PLACEMENTS & INTER AGENCY,PAYMENTS TO CARERS,REDACTED,REDACTED
05.06.2019,CHILDREN'S SERVICES,REDACTED PERSONAL DATA,588.42,ADOPTION PLACEMENTS & INTER AGENCY,PAYMENTS TO CARERS,REDACTED,REDACTED
05.06.2019,CHILDREN'S SERVICES,REDACTED PERSONAL DATA,623.94,ADOPTION PLACEMENTS & INTER AGENCY,PAYMENTS TO CARERS,REDACTED,REDACTED
05.06.2019,CHILDREN'S SERVICES,REDACTED PERSONAL DATA,635.34,ADOPTION PLACEMENTS & INTER AGENCY,PAYMENTS TO CARERS,REDACTED,REDACTED
05.06.2019,CHILDREN'S SERVICES,REDACTED PERSONAL DATA,635.34,ADOPTION PLACEMENTS & INTER AGENCY,PAYMENTS TO CARERS,REDACTED,REDACTED
05.06.2019,CHILDREN'S SERVICES,REDACTED PERSONAL DATA,640.9,ADOPTION PLACEMENTS & INTER AGENCY,PAYMENTS TO CARERS,REDACTED,REDACTED
05.06.2019,CHILDREN'S SERVICES,REDACTED PERSONAL DATA,652.9,ADOPTION PLACEMENTS & INTER AGENCY,PAYMENTS TO CARERS,REDACTED,REDACTED
05.06.2019,CHILDREN'S SERVICES,REDACTED PERSONAL DATA,652.9,ADOPTION PLACEMENTS & INTER AGENCY,PAYMENTS TO CARERS,REDACTED,REDACTED
05.06.2019,CHILDREN'S SERVICES,REDACTED PERSONAL DATA,653.06,ADOPTION PLACEMENTS & INTER AGENCY,PAYMENTS TO CARERS,REDACTED,REDACTED
05.06.2019,CHILDREN'S SERVICES,REDACTED PERSONAL DATA,682.3,ADOPTION PLACEMENTS & INTER AGENCY,PAYMENTS TO CARERS,REDACTED,REDACTED
05.06.2019,CHILDREN'S SERVICES,REDACTED PERSONAL DATA,682.3,ADOPTION PLACEMENTS & INTER AGENCY,PAYMENTS TO CARERS,REDACTED,REDACTED
05.06.2019,CHILDREN'S SERVICES,REDACTED PERSONAL DATA,695.04,ADOPTION PLACEMENTS & INTER AGENCY,PAYMENTS TO CARERS,REDACTED,REDACTED
05.06.2019,CHILDREN'S SERVICES,REDACTED PERSONAL DATA,695.12,ADOPTION PLACEMENTS & INTER AGENCY,PAYMENTS TO CARERS,REDACTED,REDACTED
05.06.2019,CHILDREN'S SERVICES,REDACTED PERSONAL DATA,705.24,ADOPTION PLACEMENTS & INTER AGENCY,PAYMENTS TO CARERS,REDACTED,REDACTED
05.06.2019,CHILDREN'S SERVICES,REDACTED PERSONAL DATA,712.3,ADOPTION PLACEMENTS & INTER AGENCY,PAYMENTS TO CARERS,REDACTED,REDACTED
05.06.2019,CHILDREN'S SERVICES,REDACTED PERSONAL DATA,717.14,ADOPTION PLACEMENTS & INTER AGENCY,PAYMENTS TO CARERS,REDACTED,REDACTED
05.06.2019,CHILDREN'S SERVICES,REDACTED PERSONAL DATA,767.68,ADOPTION PLACEMENTS & INTER AGENCY,PAYMENTS TO CARERS,REDACTED,REDACTED
05.06.2019,CHILDREN'S SERVICES,REDACTED PERSONAL DATA,777.36,ADOPTION PLACEMENTS & INTER AGENCY,PAYMENTS TO CARERS,REDACTED,REDACTED
05.06.2019,CHILDREN'S SERVICES,REDACTED PERSONAL DATA,854.28,ADOPTION PLACEMENTS & INTER AGENCY,PAYMENTS TO CARERS,REDACTED,REDACTED
05.06.2019,CHILDREN'S SERVICES,REDACTED PERSONAL DATA,908,ADOPTION PLACEMENTS & INTER AGENCY,PAYMENTS TO CARERS,REDACTED,REDACTED
05.06.2019,CHILDREN'S SERVICES,REDACTED PERSONAL DATA,"1,053.20",ADOPTION PLACEMENTS & INTER AGENCY,PAYMENTS TO CARERS,REDACTED,REDACTED
05.06.2019,CHILDREN'S SERVICES,ISABELLE GRAVENSTEIN T/A REVIVAL,870,CENTRAL SUPPORT,OTHER PAYMENTS FOR CLIENTS,5902362002,1000027424
05.06.2019,CHILDREN'S SERVICES,REDACTED PERSONAL DATA,300,DISABILITY & HIV,ADDITIONAL PAYMENTS TO AGENCIES/CARERS,REDACTED,REDACTED
05.06.2019,CHILDREN'S SERVICES,REDACTED PERSONAL DATA,300,DISABILITY & HIV,ADDITIONAL PAYMENTS TO AGENCIES/CARERS,REDACTED,REDACTED
05.06.2019,CHILDREN'S SERVICES,REDACTED PERSONAL DATA,584,DISABILITY & HIV,ADDITIONAL PAYMENTS TO AGENCIES/CARERS,REDACTED,REDACTED
05.06.2019,CHILDREN'S SERVICES,REDACTED PERSONAL DATA,300,DISABILITY & HIV,OTHER PAYMENTS FOR CLIENTS,REDACTED,REDACTED
05.06.2019,CHILDREN'S SERVICES,REDACTED PERSONAL DATA,"-1,232.00",DISABILITY & HIV,PAYMENTS TO CARERS,REDACTED,REDACTED
05.06.2019,CHILDREN'S SERVICES,REDACTED PERSONAL DATA,-850,DISABILITY & HIV,PAYMENTS TO CARERS,REDACTED,REDACTED
05.06.2019,CHILDREN'S SERVICES,REDACTED PERSONAL DATA,-850,DISABILITY & HIV,PAYMENTS TO CARERS,REDACTED,REDACTED
05.06.2019,CHILDREN'S SERVICES,REDACTED PERSONAL DATA,-710.29,DISABILITY & HIV,PAYMENTS TO CARERS,REDACTED,REDACTED
05.06.2019,CHILDREN'S SERVICES,REDACTED PERSONAL DATA,-500,DISABILITY & HIV,PAYMENTS TO CARERS,REDACTED,REDACTED
05.06.2019,CHILDREN'S SERVICES,REDACTED PERSONAL DATA,-410,DISABILITY & HIV,PAYMENTS TO CARERS,REDACTED,REDACTED
05.06.2019,CHILDREN'S SERVICES,REDACTED PERSONAL DATA,-395,DISABILITY & HIV,PAYMENTS TO CARERS,REDACTED,REDACTED
05.06.2019,CHILDREN'S SERVICES,REDACTED PERSONAL DATA,-363.05,DISABILITY & HIV,PAYMENTS TO CARERS,REDACTED,REDACTED
05.06.2019,CHILDREN'S SERVICES,REDACTED PERSONAL DATA,-356.15,DISABILITY & HIV,PAYMENTS TO CARERS,REDACTED,REDACTED
05.06.2019,CHILDREN'S SERVICES,REDACTED PERSONAL DATA,-345.46,DISABILITY & HIV,PAYMENTS TO CARERS,REDACTED,REDACTED
05.06.2019,CHILDREN'S SERVICES,REDACTED PERSONAL DATA,-336,DISABILITY & HIV,PAYMENTS TO CARERS,REDACTED,REDACTED
05.06.2019,CHILDREN'S SERVICES,REDACTED PERSONAL DATA,-324,DISABILITY & HIV,PAYMENTS TO CARERS,REDACTED,REDACTED
05.06.2019,CHILDREN'S SERVICES,REDACTED PERSONAL DATA,-299,DISABILITY & HIV,PAYMENTS TO CARERS,REDACTED,REDACTED
05.06.2019,CHILDREN'S SERVICES,REDACTED PERSONAL DATA,-289.71,DISABILITY & HIV,PAYMENTS TO CARERS,REDACTED,REDACTED
05.06.2019,CHILDREN'S SERVICES,REDACTED PERSONAL DATA,-285.15,DISABILITY & HIV,PAYMENTS TO CARERS,REDACTED,REDACTED
05.06.2019,CHILDREN'S SERVICES,REDACTED PERSONAL DATA,-276.86,DISABILITY & HIV,PAYMENTS TO CARERS,REDACTED,REDACTED
05.06.2019,CHILDREN'S SERVICES,REDACTED PERSONAL DATA,465.14,DISABILITY & HIV,PAYMENTS TO CARERS,REDACTED,REDACTED
05.06.2019,CHILDREN'S SERVICES,REDACTED PERSONAL DATA,646,DISABILITY & HIV,PAYMENTS TO CARERS,REDACTED,REDACTED
05.06.2019,CHILDREN'S SERVICES,REDACTED PERSONAL DATA,646,DISABILITY & HIV,PAYMENTS TO CARERS,REDACTED,REDACTED
05.06.2019,CHILDREN'S SERVICES,REDACTED PERSONAL DATA,646,DISABILITY & HIV,PAYMENTS TO CARERS,REDACTED,REDACTED
05.06.2019,CHILDREN'S SERVICES,REDACTED PERSONAL DATA,646,DISABILITY & HIV,PAYMENTS TO CARERS,REDACTED,REDACTED
05.06.2019,CHILDREN'S SERVICES,REDACTED PERSONAL DATA,646,DISABILITY & HIV,PAYMENTS TO CARERS,REDACTED,REDACTED
05.06.2019,CHILDREN'S SERVICES,REDACTED PERSONAL DATA,660,DISABILITY & HIV,PAYMENTS TO CARERS,REDACTED,REDACTED
05.06.2019,CHILDREN'S SERVICES,REDACTED PERSONAL DATA,676,DISABILITY & HIV,PAYMENTS TO CARERS,REDACTED,REDACTED
05.06.2019,CHILDREN'S SERVICES,REDACTED PERSONAL DATA,676,DISABILITY & HIV,PAYMENTS TO CARERS,REDACTED,REDACTED
05.06.2019,CHILDREN'S SERVICES,REDACTED PERSONAL DATA,676,DISABILITY & HIV,PAYMENTS TO CARERS,REDACTED,REDACTED
05.06.2019,CHILDREN'S SERVICES,REDACTED PERSONAL DATA,676,DISABILITY & HIV,PAYMENTS TO CARERS,REDACTED,REDACTED
05.06.2019,CHILDREN'S SERVICES,REDACTED PERSONAL DATA,676,DISABILITY & HIV,PAYMENTS TO CARERS,REDACTED,REDACTED
05.06.2019,CHILDREN'S SERVICES,REDACTED PERSONAL DATA,676,DISABILITY & HIV,PAYMENTS TO CARERS,REDACTED,REDACTED
05.06.2019,CHILDREN'S SERVICES,REDACTED PERSONAL DATA,676,DISABILITY & HIV,PAYMENTS TO CARERS,REDACTED,REDACTED
05.06.2019,CHILDREN'S SERVICES,REDACTED PERSONAL DATA,676,DISABILITY & HIV,PAYMENTS TO CARERS,REDACTED,REDACTED
05.06.2019,CHILDREN'S SERVICES,REDACTED PERSONAL DATA,696,DISABILITY & HIV,PAYMENTS TO CARERS,REDACTED,REDACTED
05.06.2019,CHILDREN'S SERVICES,REDACTED PERSONAL DATA,696,DISABILITY & HIV,PAYMENTS TO CARERS,REDACTED,REDACTED
05.06.2019,CHILDREN'S SERVICES,REDACTED PERSONAL DATA,696,DISABILITY & HIV,PAYMENTS TO CARERS,REDACTED,REDACTED
05.06.2019,CHILDREN'S SERVICES,REDACTED PERSONAL DATA,696,DISABILITY & HIV,PAYMENTS TO CARERS,REDACTED,REDACTED
05.06.2019,CHILDREN'S SERVICES,REDACTED PERSONAL DATA,696,DISABILITY & HIV,PAYMENTS TO CARERS,REDACTED,REDACTED
05.06.2019,CHILDREN'S SERVICES,REDACTED PERSONAL DATA,697.71,DISABILITY & HIV,PAYMENTS TO CARERS,REDACTED,REDACTED
05.06.2019,CHILDREN'S SERVICES,REDACTED PERSONAL DATA,706,DISABILITY & HIV,PAYMENTS TO CARERS,REDACTED,REDACTED
05.06.2019,CHILDREN'S SERVICES,REDACTED PERSONAL DATA,712.3,DISABILITY & HIV,PAYMENTS TO CARERS,REDACTED,REDACTED
05.06.2019,CHILDREN'S SERVICES,REDACTED PERSONAL DATA,726,DISABILITY & HIV,PAYMENTS TO CARERS,REDACTED,REDACTED
05.06.2019,CHILDREN'S SERVICES,REDACTED PERSONAL DATA,726,DISABILITY & HIV,PAYMENTS TO CARERS,REDACTED,REDACTED
05.06.2019,CHILDREN'S SERVICES,REDACTED PERSONAL DATA,726,DISABILITY & HIV,PAYMENTS TO CARERS,REDACTED,REDACTED
05.06.2019,CHILDREN'S SERVICES,REDACTED PERSONAL DATA,726,DISABILITY & HIV,PAYMENTS TO CARERS,REDACTED,REDACTED
05.06.2019,CHILDREN'S SERVICES,REDACTED PERSONAL DATA,726,DISABILITY & HIV,PAYMENTS TO CARERS,REDACTED,REDACTED
05.06.2019,CHILDREN'S SERVICES,REDACTED PERSONAL DATA,726,DISABILITY & HIV,PAYMENTS TO CARERS,REDACTED,REDACTED
05.06.2019,CHILDREN'S SERVICES,REDACTED PERSONAL DATA,726,DISABILITY & HIV,PAYMENTS TO CARERS,REDACTED,REDACTED
05.06.2019,CHILDREN'S SERVICES,REDACTED PERSONAL DATA,726,DISABILITY & HIV,PAYMENTS TO CARERS,REDACTED,REDACTED
05.06.2019,CHILDREN'S SERVICES,REDACTED PERSONAL DATA,726,DISABILITY & HIV,PAYMENTS TO CARERS,REDACTED,REDACTED
05.06.2019,CHILDREN'S SERVICES,REDACTED PERSONAL DATA,726,DISABILITY & HIV,PAYMENTS TO CARERS,REDACTED,REDACTED
05.06.2019,CHILDREN'S SERVICES,REDACTED PERSONAL DATA,726,DISABILITY & HIV,PAYMENTS TO CARERS,REDACTED,REDACTED
05.06.2019,CHILDREN'S SERVICES,REDACTED PERSONAL DATA,726,DISABILITY & HIV,PAYMENTS TO CARERS,REDACTED,REDACTED
05.06.2019,CHILDREN'S SERVICES,REDACTED PERSONAL DATA,726,DISABILITY & HIV,PAYMENTS TO CARERS,REDACTED,REDACTED
05.06.2019,CHILDREN'S SERVICES,REDACTED PERSONAL DATA,726,DISABILITY & HIV,PAYMENTS TO CARERS,REDACTED,REDACTED
05.06.2019,CHILDREN'S SERVICES,REDACTED PERSONAL DATA,726,DISABILITY & HIV,PAYMENTS TO CARERS,REDACTED,REDACTED
05.06.2019,CHILDREN'S SERVICES,REDACTED PERSONAL DATA,726,DISABILITY & HIV,PAYMENTS TO CARERS,REDACTED,REDACTED
05.06.2019,CHILDREN'S SERVICES,REDACTED PERSONAL DATA,776.08,DISABILITY & HIV,PAYMENTS TO CARERS,REDACTED,REDACTED
05.06.2019,CHILDREN'S SERVICES,REDACTED PERSONAL DATA,776.08,DISABILITY & HIV,PAYMENTS TO CARERS,REDACTED,REDACTED
05.06.2019,CHILDREN'S SERVICES,REDACTED PERSONAL DATA,779.72,DISABILITY & HIV,PAYMENTS TO CARERS,REDACTED,REDACTED
05.06.2019,CHILDREN'S SERVICES,REDACTED PERSONAL DATA,784,DISABILITY & HIV,PAYMENTS TO CARERS,REDACTED,REDACTED
05.06.2019,CHILDREN'S SERVICES,REDACTED PERSONAL DATA,784,DISABILITY & HIV,PAYMENTS TO CARERS,REDACTED,REDACTED
05.06.2019,CHILDREN'S SERVICES,REDACTED PERSONAL DATA,784,DISABILITY & HIV,PAYMENTS TO CARERS,REDACTED,REDACTED
05.06.2019,CHILDREN'S SERVICES,REDACTED PERSONAL DATA,784,DISABILITY & HIV,PAYMENTS TO CARERS,REDACTED,REDACTED
05.06.2019,CHILDREN'S SERVICES,REDACTED PERSONAL DATA,790,DISABILITY & HIV,PAYMENTS TO CARERS,REDACTED,REDACTED
05.06.2019,CHILDREN'S SERVICES,REDACTED PERSONAL DATA,790,DISABILITY & HIV,PAYMENTS TO CARERS,REDACTED,REDACTED
05.06.2019,CHILDREN'S SERVICES,REDACTED PERSONAL DATA,790,DISABILITY & HIV,PAYMENTS TO CARERS,REDACTED,REDACTED
05.06.2019,CHILDREN'S SERVICES,REDACTED PERSONAL DATA,790,DISABILITY & HIV,PAYMENTS TO CARERS,REDACTED,REDACTED
05.06.2019,CHILDREN'S SERVICES,REDACTED PERSONAL DATA,790,DISABILITY & HIV,PAYMENTS TO CARERS,REDACTED,REDACTED
05.06.2019,CHILDREN'S SERVICES,REDACTED PERSONAL DATA,790,DISABILITY & HIV,PAYMENTS TO CARERS,REDACTED,REDACTED
05.06.2019,CHILDREN'S SERVICES,REDACTED PERSONAL DATA,790,DISABILITY & HIV,PAYMENTS TO CARERS,REDACTED,REDACTED
05.06.2019,CHILDREN'S SERVICES,REDACTED PERSONAL DATA,790,DISABILITY & HIV,PAYMENTS TO CARERS,REDACTED,REDACTED
05.06.2019,CHILDREN'S SERVICES,REDACTED PERSONAL DATA,790,DISABILITY & HIV,PAYMENTS TO CARERS,REDACTED,REDACTED
05.06.2019,CHILDREN'S SERVICES,REDACTED PERSONAL DATA,790,DISABILITY & HIV,PAYMENTS TO CARERS,REDACTED,REDACTED
05.06.2019,CHILDREN'S SERVICES,REDACTED PERSONAL DATA,790,DISABILITY & HIV,PAYMENTS TO CARERS,REDACTED,REDACTED
05.06.2019,CHILDREN'S SERVICES,REDACTED PERSONAL DATA,814,DISABILITY & HIV,PAYMENTS TO CARERS,REDACTED,REDACTED
05.06.2019,CHILDREN'S SERVICES,REDACTED PERSONAL DATA,814,DISABILITY & HIV,PAYMENTS TO CARERS,REDACTED,REDACTED
05.06.2019,CHILDREN'S SERVICES,REDACTED PERSONAL DATA,814,DISABILITY & HIV,PAYMENTS TO CARERS,REDACTED,REDACTED
05.06.2019,CHILDREN'S SERVICES,REDACTED PERSONAL DATA,814,DISABILITY & HIV,PAYMENTS TO CARERS,REDACTED,REDACTED
05.06.2019,CHILDREN'S SERVICES,REDACTED PERSONAL DATA,814,DISABILITY & HIV,PAYMENTS TO CARERS,REDACTED,REDACTED
05.06.2019,CHILDREN'S SERVICES,REDACTED PERSONAL DATA,814,DISABILITY & HIV,PAYMENTS TO CARERS,REDACTED,REDACTED
05.06.2019,CHILDREN'S SERVICES,REDACTED PERSONAL DATA,814,DISABILITY & HIV,PAYMENTS TO CARERS,REDACTED,REDACTED
05.06.2019,CHILDREN'S SERVICES,REDACTED PERSONAL DATA,814,DISABILITY & HIV,PAYMENTS TO CARERS,REDACTED,REDACTED
05.06.2019,CHILDREN'S SERVICES,REDACTED PERSONAL DATA,814,DISABILITY & HIV,PAYMENTS TO CARERS,REDACTED,REDACTED
05.06.2019,CHILDREN'S SERVICES,REDACTED PERSONAL DATA,814,DISABILITY & HIV,PAYMENTS TO CARERS,REDACTED,REDACTED
05.06.2019,CHILDREN'S SERVICES,REDACTED PERSONAL DATA,814,DISABILITY & HIV,PAYMENTS TO CARERS,REDACTED,REDACTED
05.06.2019,CHILDREN'S SERVICES,REDACTED PERSONAL DATA,814,DISABILITY & HIV,PAYMENTS TO CARERS,REDACTED,REDACTED
05.06.2019,CHILDREN'S SERVICES,REDACTED PERSONAL DATA,814,DISABILITY & HIV,PAYMENTS TO CARERS,REDACTED,REDACTED
05.06.2019,CHILDREN'S SERVICES,REDACTED PERSONAL DATA,814,DISABILITY & HIV,PAYMENTS TO CARERS,REDACTED,REDACTED
05.06.2019,CHILDREN'S SERVICES,REDACTED PERSONAL DATA,814,DISABILITY & HIV,PAYMENTS TO CARERS,REDACTED,REDACTED
05.06.2019,CHILDREN'S SERVICES,REDACTED PERSONAL DATA,814,DISABILITY & HIV,PAYMENTS TO CARERS,REDACTED,REDACTED
05.06.2019,CHILDREN'S SERVICES,REDACTED PERSONAL DATA,814,DISABILITY & HIV,PAYMENTS TO CARERS,REDACTED,REDACTED
05.06.2019,CHILDREN'S SERVICES,REDACTED PERSONAL DATA,814,DISABILITY & HIV,PAYMENTS TO CARERS,REDACTED,REDACTED
05.06.2019,CHILDREN'S SERVICES,REDACTED PERSONAL DATA,814,DISABILITY & HIV,PAYMENTS TO CARERS,REDACTED,REDACTED
05.06.2019,CHILDREN'S SERVICES,REDACTED PERSONAL DATA,814,DISABILITY & HIV,PAYMENTS TO CARERS,REDACTED,REDACTED
05.06.2019,CHILDREN'S SERVICES,REDACTED PERSONAL DATA,814,DISABILITY & HIV,PAYMENTS TO CARERS,REDACTED,REDACTED
05.06.2019,CHILDREN'S SERVICES,REDACTED PERSONAL DATA,814,DISABILITY & HIV,PAYMENTS TO CARERS,REDACTED,REDACTED
05.06.2019,CHILDREN'S SERVICES,REDACTED PERSONAL DATA,820,DISABILITY & HIV,PAYMENTS TO CARERS,REDACTED,REDACTED
05.06.2019,CHILDREN'S SERVICES,REDACTED PERSONAL DATA,820,DISABILITY & HIV,PAYMENTS TO CARERS,REDACTED,REDACTED
05.06.2019,CHILDREN'S SERVICES,REDACTED PERSONAL DATA,820,DISABILITY & HIV,PAYMENTS TO CARERS,REDACTED,REDACTED
05.06.2019,CHILDREN'S SERVICES,REDACTED PERSONAL DATA,820,DISABILITY & HIV,PAYMENTS TO CARERS,REDACTED,REDACTED
05.06.2019,CHILDREN'S SERVICES,REDACTED PERSONAL DATA,820,DISABILITY & HIV,PAYMENTS TO CARERS,REDACTED,REDACTED
05.06.2019,CHILDREN'S SERVICES,REDACTED PERSONAL DATA,820,DISABILITY & HIV,PAYMENTS TO CARERS,REDACTED,REDACTED
05.06.2019,CHILDREN'S SERVICES,REDACTED PERSONAL DATA,820,DISABILITY & HIV,PAYMENTS TO CARERS,REDACTED,REDACTED
05.06.2019,CHILDREN'S SERVICES,REDACTED PERSONAL DATA,820,DISABILITY & HIV,PAYMENTS TO CARERS,REDACTED,REDACTED
05.06.2019,CHILDREN'S SERVICES,REDACTED PERSONAL DATA,820,DISABILITY & HIV,PAYMENTS TO CARERS,REDACTED,REDACTED
05.06.2019,CHILDREN'S SERVICES,REDACTED PERSONAL DATA,820,DISABILITY & HIV,PAYMENTS TO CARERS,REDACTED,REDACTED
05.06.2019,CHILDREN'S SERVICES,REDACTED PERSONAL DATA,820,DISABILITY & HIV,PAYMENTS TO CARERS,REDACTED,REDACTED
05.06.2019,CHILDREN'S SERVICES,REDACTED PERSONAL DATA,820,DISABILITY & HIV,PAYMENTS TO CARERS,REDACTED,REDACTED
05.06.2019,CHILDREN'S SERVICES,REDACTED PERSONAL DATA,820,DISABILITY & HIV,PAYMENTS TO CARERS,REDACTED,REDACTED
05.06.2019,CHILDREN'S SERVICES,REDACTED PERSONAL DATA,820,DISABILITY & HIV,PAYMENTS TO CARERS,REDACTED,REDACTED
05.06.2019,CHILDREN'S SERVICES,REDACTED PERSONAL DATA,820,DISABILITY & HIV,PAYMENTS TO CARERS,REDACTED,REDACTED
05.06.2019,CHILDREN'S SERVICES,REDACTED PERSONAL DATA,820,DISABILITY & HIV,PAYMENTS TO CARERS,REDACTED,REDACTED
05.06.2019,CHILDREN'S SERVICES,REDACTED PERSONAL DATA,820,DISABILITY & HIV,PAYMENTS TO CARERS,REDACTED,REDACTED
05.06.2019,CHILDREN'S SERVICES,REDACTED PERSONAL DATA,820,DISABILITY & HIV,PAYMENTS TO CARERS,REDACTED,REDACTED
05.06.2019,CHILDREN'S SERVICES,REDACTED PERSONAL DATA,820,DISABILITY & HIV,PAYMENTS TO CARERS,REDACTED,REDACTED
05.06.2019,CHILDREN'S SERVICES,REDACTED PERSONAL DATA,820,DISABILITY & HIV,PAYMENTS TO CARERS,REDACTED,REDACTED
05.06.2019,CHILDREN'S SERVICES,REDACTED PERSONAL DATA,820,DISABILITY & HIV,PAYMENTS TO CARERS,REDACTED,REDACTED
05.06.2019,CHILDREN'S SERVICES,REDACTED PERSONAL DATA,820,DISABILITY & HIV,PAYMENTS TO CARERS,REDACTED,REDACTED
05.06.2019,CHILDREN'S SERVICES,REDACTED PERSONAL DATA,820,DISABILITY & HIV,PAYMENTS TO CARERS,REDACTED,REDACTED
05.06.2019,CHILDREN'S SERVICES,REDACTED PERSONAL DATA,820,DISABILITY & HIV,PAYMENTS TO CARERS,REDACTED,REDACTED
05.06.2019,CHILDREN'S SERVICES,REDACTED PERSONAL DATA,820,DISABILITY & HIV,PAYMENTS TO CARERS,REDACTED,REDACTED
05.06.2019,CHILDREN'S SERVICES,REDACTED PERSONAL DATA,820,DISABILITY & HIV,PAYMENTS TO CARERS,REDACTED,REDACTED
05.06.2019,CHILDREN'S SERVICES,REDACTED PERSONAL DATA,820,DISABILITY & HIV,PAYMENTS TO CARERS,REDACTED,REDACTED
05.06.2019,CHILDREN'S SERVICES,REDACTED PERSONAL DATA,820,DISABILITY & HIV,PAYMENTS TO CARERS,REDACTED,REDACTED
05.06.2019,CHILDREN'S SERVICES,REDACTED PERSONAL DATA,820,DISABILITY & HIV,PAYMENTS TO CARERS,REDACTED,REDACTED
05.06.2019,CHILDREN'S SERVICES,REDACTED PERSONAL DATA,820,DISABILITY & HIV,PAYMENTS TO CARERS,REDACTED,REDACTED
05.06.2019,CHILDREN'S SERVICES,REDACTED PERSONAL DATA,820,DISABILITY & HIV,PAYMENTS TO CARERS,REDACTED,REDACTED
05.06.2019,CHILDREN'S SERVICES,REDACTED PERSONAL DATA,820,DISABILITY & HIV,PAYMENTS TO CARERS,REDACTED,REDACTED
05.06.2019,CHILDREN'S SERVICES,REDACTED PERSONAL DATA,820,DISABILITY & HIV,PAYMENTS TO CARERS,REDACTED,REDACTED
05.06.2019,CHILDREN'S SERVICES,REDACTED PERSONAL DATA,820,DISABILITY & HIV,PAYMENTS TO CARERS,REDACTED,REDACTED
05.06.2019,CHILDREN'S SERVICES,REDACTED PERSONAL DATA,820,DISABILITY & HIV,PAYMENTS TO CARERS,REDACTED,REDACTED
05.06.2019,CHILDREN'S SERVICES,REDACTED PERSONAL DATA,820,DISABILITY & HIV,PAYMENTS TO CARERS,REDACTED,REDACTED
05.06.2019,CHILDREN'S SERVICES,REDACTED PERSONAL DATA,820,DISABILITY & HIV,PAYMENTS TO CARERS,REDACTED,REDACTED
05.06.2019,CHILDREN'S SERVICES,REDACTED PERSONAL DATA,820,DISABILITY & HIV,PAYMENTS TO CARERS,REDACTED,REDACTED
05.06.2019,CHILDREN'S SERVICES,REDACTED PERSONAL DATA,820,DISABILITY & HIV,PAYMENTS TO CARERS,REDACTED,REDACTED
05.06.2019,CHILDREN'S SERVICES,REDACTED PERSONAL DATA,820,DISABILITY & HIV,PAYMENTS TO CARERS,REDACTED,REDACTED
05.06.2019,CHILDREN'S SERVICES,REDACTED PERSONAL DATA,820,DISABILITY & HIV,PAYMENTS TO CARERS,REDACTED,REDACTED
05.06.2019,CHILDREN'S SERVICES,REDACTED PERSONAL DATA,820,DISABILITY & HIV,PAYMENTS TO CARERS,REDACTED,REDACTED
05.06.2019,CHILDREN'S SERVICES,REDACTED PERSONAL DATA,820,DISABILITY & HIV,PAYMENTS TO CARERS,REDACTED,REDACTED
05.06.2019,CHILDREN'S SERVICES,REDACTED PERSONAL DATA,820,DISABILITY & HIV,PAYMENTS TO CARERS,REDACTED,REDACTED
05.06.2019,CHILDREN'S SERVICES,REDACTED PERSONAL DATA,820,DISABILITY & HIV,PAYMENTS TO CARERS,REDACTED,REDACTED
05.06.2019,CHILDREN'S SERVICES,REDACTED PERSONAL DATA,820,DISABILITY & HIV,PAYMENTS TO CARERS,REDACTED,REDACTED
05.06.2019,CHILDREN'S SERVICES,REDACTED PERSONAL DATA,820,DISABILITY & HIV,PAYMENTS TO CARERS,REDACTED,REDACTED
05.06.2019,CHILDREN'S SERVICES,REDACTED PERSONAL DATA,820,DISABILITY & HIV,PAYMENTS TO CARERS,REDACTED,REDACTED
05.06.2019,CHILDREN'S SERVICES,REDACTED PERSONAL DATA,844,DISABILITY & HIV,PAYMENTS TO CARERS,REDACTED,REDACTED
05.06.2019,CHILDREN'S SERVICES,REDACTED PERSONAL DATA,850,DISABILITY & HIV,PAYMENTS TO CARERS,REDACTED,REDACTED
05.06.2019,CHILDREN'S SERVICES,REDACTED PERSONAL DATA,854.28,DISABILITY & HIV,PAYMENTS TO CARERS,REDACTED,REDACTED
05.06.2019,CHILDREN'S SERVICES,REDACTED PERSONAL DATA,874,DISABILITY & HIV,PAYMENTS TO CARERS,REDACTED,REDACTED
05.06.2019,CHILDREN'S SERVICES,REDACTED PERSONAL DATA,874,DISABILITY & HIV,PAYMENTS TO CARERS,REDACTED,REDACTED
05.06.2019,CHILDREN'S SERVICES,REDACTED PERSONAL DATA,874,DISABILITY & HIV,PAYMENTS TO CARERS,REDACTED,REDACTED
05.06.2019,CHILDREN'S SERVICES,REDACTED PERSONAL DATA,874,DISABILITY & HIV,PAYMENTS TO CARERS,REDACTED,REDACTED
05.06.2019,CHILDREN'S SERVICES,REDACTED PERSONAL DATA,874,DISABILITY & HIV,PAYMENTS TO CARERS,REDACTED,REDACTED
05.06.2019,CHILDREN'S SERVICES,REDACTED PERSONAL DATA,904,DISABILITY & HIV,PAYMENTS TO CARERS,REDACTED,REDACTED
05.06.2019,CHILDREN'S SERVICES,REDACTED PERSONAL DATA,904,DISABILITY & HIV,PAYMENTS TO CARERS,REDACTED,REDACTED
05.06.2019,CHILDREN'S SERVICES,REDACTED PERSONAL DATA,904,DISABILITY & HIV,PAYMENTS TO CARERS,REDACTED,REDACTED
05.06.2019,CHILDREN'S SERVICES,REDACTED PERSONAL DATA,904,DISABILITY & HIV,PAYMENTS TO CARERS,REDACTED,REDACTED
05.06.2019,CHILDREN'S SERVICES,REDACTED PERSONAL DATA,904,DISABILITY & HIV,PAYMENTS TO CARERS,REDACTED,REDACTED
05.06.2019,CHILDREN'S SERVICES,REDACTED PERSONAL DATA,904,DISABILITY & HIV,PAYMENTS TO CARERS,REDACTED,REDACTED
05.06.2019,CHILDREN'S SERVICES,REDACTED PERSONAL DATA,904,DISABILITY & HIV,PAYMENTS TO CARERS,REDACTED,REDACTED
05.06.2019,CHILDREN'S SERVICES,REDACTED PERSONAL DATA,904,DISABILITY & HIV,PAYMENTS TO CARERS,REDACTED,REDACTED
05.06.2019,CHILDREN'S SERVICES,REDACTED PERSONAL DATA,904,DISABILITY & HIV,PAYMENTS TO CARERS,REDACTED,REDACTED
05.06.2019,CHILDREN'S SERVICES,REDACTED PERSONAL DATA,904,DISABILITY & HIV,PAYMENTS TO CARERS,REDACTED,REDACTED
05.06.2019,CHILDREN'S SERVICES,REDACTED PERSONAL DATA,904,DISABILITY & HIV,PAYMENTS TO CARERS,REDACTED,REDACTED
05.06.2019,CHILDREN'S SERVICES,REDACTED PERSONAL DATA,904,DISABILITY & HIV,PAYMENTS TO CARERS,REDACTED,REDACTED
05.06.2019,CHILDREN'S SERVICES,REDACTED PERSONAL DATA,904,DISABILITY & HIV,PAYMENTS TO CARERS,REDACTED,REDACTED
05.06.2019,CHILDREN'S SERVICES,REDACTED PERSONAL DATA,904,DISABILITY & HIV,PAYMENTS TO CARERS,REDACTED,REDACTED
05.06.2019,CHILDREN'S SERVICES,REDACTED PERSONAL DATA,904,DISABILITY & HIV,PAYMENTS TO CARERS,REDACTED,REDACTED
05.06.2019,CHILDREN'S SERVICES,REDACTED PERSONAL DATA,904,DISABILITY & HIV,PAYMENTS TO CARERS,REDACTED,REDACTED
05.06.2019,CHILDREN'S SERVICES,REDACTED PERSONAL DATA,924.2,DISABILITY & HIV,PAYMENTS TO CARERS,REDACTED,REDACTED
05.06.2019,CHILDREN'S SERVICES,REDACTED PERSONAL DATA,934,DISABILITY & HIV,PAYMENTS TO CARERS,REDACTED,REDACTED
05.06.2019,CHILDREN'S SERVICES,REDACTED PERSONAL DATA,991.42,DISABILITY & HIV,PAYMENTS TO CARERS,REDACTED,REDACTED
05.06.2019,CHILDREN'S SERVICES,REDACTED PERSONAL DATA,991.42,DISABILITY & HIV,PAYMENTS TO CARERS,REDACTED,REDACTED
05.06.2019,CHILDREN'S SERVICES,REDACTED PERSONAL DATA,"1,094.60",DISABILITY & HIV,PAYMENTS TO CARERS,REDACTED,REDACTED
05.06.2019,CHILDREN'S SERVICES,REDACTED PERSONAL DATA,"1,094.60",DISABILITY & HIV,PAYMENTS TO CARERS,REDACTED,REDACTED
05.06.2019,CHILDREN'S SERVICES,REDACTED PERSONAL DATA,"1,530.43",DISABILITY & HIV,PAYMENTS TO CARERS,REDACTED,REDACTED
05.06.2019,CHILDREN'S SERVICES,REDACTED PERSONAL DATA,"1,633.46",DISABILITY & HIV,PAYMENTS TO CARERS,REDACTED,REDACTED
05.06.2019,CHILDREN'S SERVICES,REDACTED PERSONAL DATA,"1,700.00",DISABILITY & HIV,PAYMENTS TO CARERS,REDACTED,REDACTED
05.06.2019,CHILDREN'S SERVICES,REDACTED PERSONAL DATA,"1,700.00",DISABILITY & HIV,PAYMENTS TO CARERS,REDACTED,REDACTED
05.06.2019,CHILDREN'S SERVICES,REDACTED PERSONAL DATA,"1,700.00",DISABILITY & HIV,PAYMENTS TO CARERS,REDACTED,REDACTED
05.06.2019,CHILDREN'S SERVICES,REDACTED PERSONAL DATA,"3,293.14",DISABILITY & HIV,PAYMENTS TO CARERS,REDACTED,REDACTED
05.06.2019,CHILDREN'S SERVICES,BY THE BRIDGE LTD,"-1,040.27",FRIENDS & FAMILY FOSTERING,EXTERNAL AGENCIES AND BODIES,2102962869,1000043961
05.06.2019,CHILDREN'S SERVICES,BY THE BRIDGE LTD,"-1,031.94",FRIENDS & FAMILY FOSTERING,EXTERNAL AGENCIES AND BODIES,2102962879,1000043961
05.06.2019,CHILDREN'S SERVICES,BY THE BRIDGE LTD,"-1,031.94",FRIENDS & FAMILY FOSTERING,EXTERNAL AGENCIES AND BODIES,2102962881,1000043961
05.06.2019,CHILDREN'S SERVICES,SWIIS FOSTER CARE LTD,598.26,FRIENDS & FAMILY FOSTERING,EXTERNAL AGENCIES AND BODIES,2102962876,1000069633
05.06.2019,CHILDREN'S SERVICES,HELP ME GROW FOSTERING SERVICES LTD,"2,057.00",FRIENDS & FAMILY FOSTERING,EXTERNAL AGENCIES AND BODIES,2102963715,1000079302
05.06.2019,CHILDREN'S SERVICES,HELP ME GROW FOSTERING SERVICES LTD,"2,869.67",FRIENDS & FAMILY FOSTERING,EXTERNAL AGENCIES AND BODIES,2102963681,1000079302
05.06.2019,CHILDREN'S SERVICES,HELP ME GROW FOSTERING SERVICES LTD,"2,869.67",FRIENDS & FAMILY FOSTERING,EXTERNAL AGENCIES AND BODIES,2102963748,1000079302
05.06.2019,CHILDREN'S SERVICES,HELP ME GROW FOSTERING SERVICES LTD,"2,879.80",FRIENDS & FAMILY FOSTERING,EXTERNAL AGENCIES AND BODIES,2102963699,1000079302
05.06.2019,CHILDREN'S SERVICES,HELP ME GROW FOSTERING SERVICES LTD,"2,879.80",FRIENDS & FAMILY FOSTERING,EXTERNAL AGENCIES AND BODIES,2102963746,1000079302
05.06.2019,CHILDREN'S SERVICES,HORIZON FOSTERING SERVICES LTD,"2,937.56",FRIENDS & FAMILY FOSTERING,EXTERNAL AGENCIES AND BODIES,2102963683,1000075679
05.06.2019,CHILDREN'S SERVICES,HORIZON FOSTERING SERVICES LTD,"2,937.56",FRIENDS & FAMILY FOSTERING,EXTERNAL AGENCIES AND BODIES,2102963741,1000075679
05.06.2019,CHILDREN'S SERVICES,HORIZON FOSTERING SERVICES LTD,"3,092.25",FRIENDS & FAMILY FOSTERING,EXTERNAL AGENCIES AND BODIES,2102963682,1000075679
05.06.2019,CHILDREN'S SERVICES,CHILDREN OF ALL NATIONS LTD,"3,104.29",FRIENDS & FAMILY FOSTERING,EXTERNAL AGENCIES AND BODIES,2102963754,1000060151
05.06.2019,CHILDREN'S SERVICES,THE XCEL 2000 PARTNERSHIP LTD,"3,157.57",FRIENDS & FAMILY FOSTERING,EXTERNAL AGENCIES AND BODIES,2102963712,1000024427
05.06.2019,CHILDREN'S SERVICES,HELP ME GROW FOSTERING SERVICES LTD,"3,188.35",FRIENDS & FAMILY FOSTERING,EXTERNAL AGENCIES AND BODIES,2102963692,1000079302
05.06.2019,CHILDREN'S SERVICES,HELP ME GROW FOSTERING SERVICES LTD,"3,188.67",FRIENDS & FAMILY FOSTERING,EXTERNAL AGENCIES AND BODIES,2102963716,1000079302
05.06.2019,CHILDREN'S SERVICES,HELP ME GROW FOSTERING SERVICES LTD,"3,188.67",FRIENDS & FAMILY FOSTERING,EXTERNAL AGENCIES AND BODIES,2102963753,1000079302
05.06.2019,CHILDREN'S SERVICES,CORE ASSETS FOSTERING LTD,"3,211.60",FRIENDS & FAMILY FOSTERING,EXTERNAL AGENCIES AND BODIES,2102963755,11288002
05.06.2019,CHILDREN'S SERVICES,COMPASS FOSTERING SOUTH LTD,"3,308.10",FRIENDS & FAMILY FOSTERING,EXTERNAL AGENCIES AND BODIES,2102963688,1000073772
05.06.2019,CHILDREN'S SERVICES,COMPASS FOSTERING SOUTH LTD,"3,308.10",FRIENDS & FAMILY FOSTERING,EXTERNAL AGENCIES AND BODIES,2102963734,1000073772
05.06.2019,CHILDREN'S SERVICES,SHINING STARS FOSTERING AGENCY LTD,"3,321.34",FRIENDS & FAMILY FOSTERING,EXTERNAL AGENCIES AND BODIES,2102963705,1000079431
05.06.2019,CHILDREN'S SERVICES,CONNECT FOSTERING SERVICES LTD,"3,343.57",FRIENDS & FAMILY FOSTERING,EXTERNAL AGENCIES AND BODIES,2102963698,1000079969
05.06.2019,CHILDREN'S SERVICES,HORIZON FOSTERING SERVICES LTD,"3,365.67",FRIENDS & FAMILY FOSTERING,EXTERNAL AGENCIES AND BODIES,2102963717,1000075679
05.06.2019,CHILDREN'S SERVICES,FIVE RIVERS CHILD CARE LTD,"3,365.71",FRIENDS & FAMILY FOSTERING,EXTERNAL AGENCIES AND BODIES,2102963745,1000018792
05.06.2019,CHILDREN'S SERVICES,RAINBOW FOSTERING SERVICES LTD,"3,377.66",FRIENDS & FAMILY FOSTERING,EXTERNAL AGENCIES AND BODIES,2102963685,1000076620
05.06.2019,CHILDREN'S SERVICES,FUTURES FOR CHILDREN LIMITED,"3,449.99",FRIENDS & FAMILY FOSTERING,EXTERNAL AGENCIES AND BODIES,2102963726,1000041984
05.06.2019,CHILDREN'S SERVICES,CHILDREN OF COLOUR,"3,472.00",FRIENDS & FAMILY FOSTERING,EXTERNAL AGENCIES AND BODIES,2102963710,1000044955
05.06.2019,CHILDREN'S SERVICES,CAPSTONE FOSTER CARE,"3,511.68",FRIENDS & FAMILY FOSTERING,EXTERNAL AGENCIES AND BODIES,2102963709,1000050353
05.06.2019,CHILDREN'S SERVICES,SUPPORTED FOSTERING SERVICES,"3,527.18",FRIENDS & FAMILY FOSTERING,EXTERNAL AGENCIES AND BODIES,2102962880,1927554
05.06.2019,CHILDREN'S SERVICES,RYANCARE FOSTERING,"3,541.75",FRIENDS & FAMILY FOSTERING,EXTERNAL AGENCIES AND BODIES,2102963686,1000062376
05.06.2019,CHILDREN'S SERVICES,SHINING STARS FOSTERING AGENCY LTD,"3,542.68",FRIENDS & FAMILY FOSTERING,EXTERNAL AGENCIES AND BODIES,2102963722,1000079431
05.06.2019,CHILDREN'S SERVICES,CHILDREN OF COLOUR,"3,558.80",FRIENDS & FAMILY FOSTERING,EXTERNAL AGENCIES AND BODIES,2102963720,1000044955
05.06.2019,CHILDREN'S SERVICES,CHILDREN OF COLOUR,"3,558.80",FRIENDS & FAMILY FOSTERING,EXTERNAL AGENCIES AND BODIES,2102963756,1000044955
05.06.2019,CHILDREN'S SERVICES,BARNARDOS SERVICES LTD,"3,559.11",FRIENDS & FAMILY FOSTERING,EXTERNAL AGENCIES AND BODIES,2102963723,1000063730
05.06.2019,CHILDREN'S SERVICES,FUTURES FOR CHILDREN LIMITED,"3,603.44",FRIENDS & FAMILY FOSTERING,EXTERNAL AGENCIES AND BODIES,2102963691,1000041984
05.06.2019,CHILDREN'S SERVICES,FUTURES FOR CHILDREN LIMITED,"3,649.94",FRIENDS & FAMILY FOSTERING,EXTERNAL AGENCIES AND BODIES,2102963700,1000041984
05.06.2019,CHILDREN'S SERVICES,SELECT FOSTERCARE SERVICES LTD,"3,653.35",FRIENDS & FAMILY FOSTERING,EXTERNAL AGENCIES AND BODIES,2102963719,1000079277
05.06.2019,CHILDREN'S SERVICES,SELECT FOSTERCARE SERVICES LTD,"3,653.35",FRIENDS & FAMILY FOSTERING,EXTERNAL AGENCIES AND BODIES,2102963728,1000079277
05.06.2019,CHILDREN'S SERVICES,SELECT FOSTERCARE SERVICES LTD,"3,653.66",FRIENDS & FAMILY FOSTERING,EXTERNAL AGENCIES AND BODIES,2102963701,1000079277
05.06.2019,CHILDREN'S SERVICES,SELECT FOSTERCARE SERVICES LTD,"3,653.66",FRIENDS & FAMILY FOSTERING,EXTERNAL AGENCIES AND BODIES,2102963750,1000079277
05.06.2019,CHILDREN'S SERVICES,ETHELBERT SPECIALIST HOMES,"3,678.11",FRIENDS & FAMILY FOSTERING,EXTERNAL AGENCIES AND BODIES,2102963689,1796129
05.06.2019,CHILDREN'S SERVICES,ETHELBERT SPECIALIST HOMES,"3,678.11",FRIENDS & FAMILY FOSTERING,EXTERNAL AGENCIES AND BODIES,2102963731,1796129
05.06.2019,CHILDREN'S SERVICES,ETHELBERT SPECIALIST HOMES,"3,678.11",FRIENDS & FAMILY FOSTERING,EXTERNAL AGENCIES AND BODIES,2102963744,1796129
05.06.2019,CHILDREN'S SERVICES,RAINBOW FOSTERING SERVICES LTD,"3,704.72",FRIENDS & FAMILY FOSTERING,EXTERNAL AGENCIES AND BODIES,2102963694,1000076620
05.06.2019,CHILDREN'S SERVICES,RAINBOW FOSTERING SERVICES LTD,"3,742.14",FRIENDS & FAMILY FOSTERING,EXTERNAL AGENCIES AND BODIES,2102963733,1000076620
05.06.2019,CHILDREN'S SERVICES,ORANGE GROVE FOSTERCARE LTD,"3,751.75",FRIENDS & FAMILY FOSTERING,EXTERNAL AGENCIES AND BODIES,2102963708,1000078716
05.06.2019,CHILDREN'S SERVICES,AIM HIGH FOSTERING SERVICES LTD,"3,764.02",FRIENDS & FAMILY FOSTERING,EXTERNAL AGENCIES AND BODIES,2102963736,1000082607
05.06.2019,CHILDREN'S SERVICES,CAPSTONE FOSTER CARE,"3,764.33",FRIENDS & FAMILY FOSTERING,EXTERNAL AGENCIES AND BODIES,2102963680,1000050353
05.06.2019,CHILDREN'S SERVICES,FUSION FOSTERING LTD,"3,767.61",FRIENDS & FAMILY FOSTERING,EXTERNAL AGENCIES AND BODIES,2102963690,1000081674
05.06.2019,CHILDREN'S SERVICES,CHILDREN FIRST FOSTERING AGENCY LTD,"3,875.00",FRIENDS & FAMILY FOSTERING,EXTERNAL AGENCIES AND BODIES,2102963737,1000060081
05.06.2019,CHILDREN'S SERVICES,ETHELBERT SPECIALIST HOMES,"3,882.40",FRIENDS & FAMILY FOSTERING,EXTERNAL AGENCIES AND BODIES,2102963714,1796129
05.06.2019,CHILDREN'S SERVICES,ETHELBERT SPECIALIST HOMES,"3,882.40",FRIENDS & FAMILY FOSTERING,EXTERNAL AGENCIES AND BODIES,2102963743,1796129
05.06.2019,CHILDREN'S SERVICES,NEXT STEP FOSTERING SERVICES LTD,"3,986.60",FRIENDS & FAMILY FOSTERING,EXTERNAL AGENCIES AND BODIES,2102963721,1000044973
05.06.2019,CHILDREN'S SERVICES,DIVERSITY FOSTER CARE LTD,"4,108.69",FRIENDS & FAMILY FOSTERING,EXTERNAL AGENCIES AND BODIES,2102963687,1000081399
05.06.2019,CHILDREN'S SERVICES,DIVERSITY FOSTER CARE LTD,"4,108.69",FRIENDS & FAMILY FOSTERING,EXTERNAL AGENCIES AND BODIES,2102963751,1000081399
05.06.2019,CHILDREN'S SERVICES,BY THE BRIDGE LTD,"4,218.52",FRIENDS & FAMILY FOSTERING,EXTERNAL AGENCIES AND BODIES,2102962889,1000043961
05.06.2019,CHILDREN'S SERVICES,COMPASS FOSTERING SOUTH EAST LTD,"4,270.25",FRIENDS & FAMILY FOSTERING,EXTERNAL AGENCIES AND BODIES,2102963724,1000081155
05.06.2019,CHILDREN'S SERVICES,ANCHOR FOSTERCARE,"4,286.99",FRIENDS & FAMILY FOSTERING,EXTERNAL AGENCIES AND BODIES,2102963752,1000065675
05.06.2019,CHILDREN'S SERVICES,BY THE BRIDGE LTD,"4,347.09",FRIENDS & FAMILY FOSTERING,EXTERNAL AGENCIES AND BODIES,2102962886,1000043961
05.06.2019,CHILDREN'S SERVICES,NEXT STEP FOSTERING SERVICES LTD,"4,349.30",FRIENDS & FAMILY FOSTERING,EXTERNAL AGENCIES AND BODIES,2102963706,1000044973
05.06.2019,CHILDREN'S SERVICES,BY THE BRIDGE LTD,"4,440.57",FRIENDS & FAMILY FOSTERING,EXTERNAL AGENCIES AND BODIES,2102962877,1000043961
05.06.2019,CHILDREN'S SERVICES,BY THE BRIDGE LTD,"4,440.57",FRIENDS & FAMILY FOSTERING,EXTERNAL AGENCIES AND BODIES,2102962883,1000043961
05.06.2019,CHILDREN'S SERVICES,BY THE BRIDGE LTD,"4,475.82",FRIENDS & FAMILY FOSTERING,EXTERNAL AGENCIES AND BODIES,2102962867,1000043961
05.06.2019,CHILDREN'S SERVICES,DIVERSE CARE (UK) LTD,"4,490.04",FRIENDS & FAMILY FOSTERING,EXTERNAL AGENCIES AND BODIES,2102963757,1000055636
05.06.2019,CHILDREN'S SERVICES,BY THE BRIDGE LTD,"4,504.96",FRIENDS & FAMILY FOSTERING,EXTERNAL AGENCIES AND BODIES,2102962890,1000043961
05.06.2019,CHILDREN'S SERVICES,CHILDREN OF ALL NATIONS LTD,"4,565.19",FRIENDS & FAMILY FOSTERING,EXTERNAL AGENCIES AND BODIES,2102963697,1000060151
05.06.2019,CHILDREN'S SERVICES,BY THE BRIDGE LTD,"4,570.02",FRIENDS & FAMILY FOSTERING,EXTERNAL AGENCIES AND BODIES,2102962870,1000043961
05.06.2019,CHILDREN'S SERVICES,BY THE BRIDGE LTD,"4,570.02",FRIENDS & FAMILY FOSTERING,EXTERNAL AGENCIES AND BODIES,2102962871,1000043961
05.06.2019,CHILDREN'S SERVICES,BY THE BRIDGE LTD,"4,570.02",FRIENDS & FAMILY FOSTERING,EXTERNAL AGENCIES AND BODIES,2102962887,1000043961
05.06.2019,CHILDREN'S SERVICES,BY THE BRIDGE LTD,"4,580.78",FRIENDS & FAMILY FOSTERING,EXTERNAL AGENCIES AND BODIES,2102962885,1000043961
05.06.2019,CHILDREN'S SERVICES,HELP ME GROW FOSTERING SERVICES LTD,"4,650.00",FRIENDS & FAMILY FOSTERING,EXTERNAL AGENCIES AND BODIES,2102963747,1000079302
05.06.2019,CHILDREN'S SERVICES,BY THE BRIDGE LTD,"4,674.27",FRIENDS & FAMILY FOSTERING,EXTERNAL AGENCIES AND BODIES,2102962866,1000043961
05.06.2019,CHILDREN'S SERVICES,FOSTERING LONDON LTD,"4,775.00",FRIENDS & FAMILY FOSTERING,EXTERNAL AGENCIES AND BODIES,2102963679,1000077541
05.06.2019,CHILDREN'S SERVICES,BY THE BRIDGE LTD,"4,805.49",FRIENDS & FAMILY FOSTERING,EXTERNAL AGENCIES AND BODIES,2102962868,1000043961
05.06.2019,CHILDREN'S SERVICES,BY THE BRIDGE LTD,"4,805.49",FRIENDS & FAMILY FOSTERING,EXTERNAL AGENCIES AND BODIES,2102962875,1000043961
05.06.2019,CHILDREN'S SERVICES,CHILDREN OF COLOUR,"4,871.42",FRIENDS & FAMILY FOSTERING,EXTERNAL AGENCIES AND BODIES,2102963703,1000044955
05.06.2019,CHILDREN'S SERVICES,BY THE BRIDGE LTD,"4,903.54",FRIENDS & FAMILY FOSTERING,EXTERNAL AGENCIES AND BODIES,2102962865,1000043961
05.06.2019,CHILDREN'S SERVICES,BY THE BRIDGE LTD,"4,903.54",FRIENDS & FAMILY FOSTERING,EXTERNAL AGENCIES AND BODIES,2102962874,1000043961
05.06.2019,CHILDREN'S SERVICES,FOSTERING LONDON LTD,"4,925.00",FRIENDS & FAMILY FOSTERING,EXTERNAL AGENCIES AND BODIES,2102963696,1000077541
05.06.2019,CHILDREN'S SERVICES,INTEGRATED SERVICES PROGRAMME,"5,176.38",FRIENDS & FAMILY FOSTERING,EXTERNAL AGENCIES AND BODIES,2102963763,1642068
05.06.2019,CHILDREN'S SERVICES,INTEGRATED SERVICES PROGRAMME,"5,176.38",FRIENDS & FAMILY FOSTERING,EXTERNAL AGENCIES AND BODIES,2102963764,1642068
05.06.2019,CHILDREN'S SERVICES,HEATH FARM FAMILY SOLUTION (FOSTERING),"5,322.08",FRIENDS & FAMILY FOSTERING,EXTERNAL AGENCIES AND BODIES,2102963738,11271268
05.06.2019,CHILDREN'S SERVICES,INTEGRATED SERVICES PROGRAMME,"5,336.34",FRIENDS & FAMILY FOSTERING,EXTERNAL AGENCIES AND BODIES,2102963760,1642068
05.06.2019,CHILDREN'S SERVICES,INTEGRATED SERVICES PROGRAMME,"5,336.34",FRIENDS & FAMILY FOSTERING,EXTERNAL AGENCIES AND BODIES,2102963761,1642068
05.06.2019,CHILDREN'S SERVICES,INTEGRATED SERVICES PROGRAMME,"5,336.34",FRIENDS & FAMILY FOSTERING,EXTERNAL AGENCIES AND BODIES,2102963762,1642068
05.06.2019,CHILDREN'S SERVICES,INTEGRATED SERVICES PROGRAMME,"5,336.34",FRIENDS & FAMILY FOSTERING,EXTERNAL AGENCIES AND BODIES,2102963766,1642068
05.06.2019,CHILDREN'S SERVICES,SYNERGY FOSTERING LTD,"5,456.00",FRIENDS & FAMILY FOSTERING,EXTERNAL AGENCIES AND BODIES,2102963742,1000031559
05.06.2019,CHILDREN'S SERVICES,BY THE BRIDGE LTD,"5,469.29",FRIENDS & FAMILY FOSTERING,EXTERNAL AGENCIES AND BODIES,2102962878,1000043961
05.06.2019,CHILDREN'S SERVICES,BY THE BRIDGE LTD,"5,469.29",FRIENDS & FAMILY FOSTERING,EXTERNAL AGENCIES AND BODIES,2102962884,1000043961
05.06.2019,CHILDREN'S SERVICES,BY THE BRIDGE LTD,"5,469.29",FRIENDS & FAMILY FOSTERING,EXTERNAL AGENCIES AND BODIES,2102962888,1000043961
05.06.2019,CHILDREN'S SERVICES,COMPASS FOSTERING SOUTH EAST LTD,"5,535.67",FRIENDS & FAMILY FOSTERING,EXTERNAL AGENCIES AND BODIES,2102963727,1000081155
05.06.2019,CHILDREN'S SERVICES,INTEGRATED SERVICES PROGRAMME,"5,575.97",FRIENDS & FAMILY FOSTERING,EXTERNAL AGENCIES AND BODIES,2102963765,1642068
05.06.2019,CHILDREN'S SERVICES,FAMILY WORKS FOSTERING LTD,"5,624.33",FRIENDS & FAMILY FOSTERING,EXTERNAL AGENCIES AND BODIES,2102963695,1000082529
05.06.2019,CHILDREN'S SERVICES,HELP ME GROW FOSTERING SERVICES LTD,"5,757.01",FRIENDS & FAMILY FOSTERING,EXTERNAL AGENCIES AND BODIES,2102963732,1000079302
05.06.2019,CHILDREN'S SERVICES,HELP ME GROW FOSTERING SERVICES LTD,"5,757.01",FRIENDS & FAMILY FOSTERING,EXTERNAL AGENCIES AND BODIES,2102963739,1000079302
05.06.2019,CHILDREN'S SERVICES,HELP ME GROW FOSTERING SERVICES LTD,"5,757.01",FRIENDS & FAMILY FOSTERING,EXTERNAL AGENCIES AND BODIES,2102963758,1000079302
05.06.2019,CHILDREN'S SERVICES,BY THE BRIDGE LTD,"5,757.14",FRIENDS & FAMILY FOSTERING,EXTERNAL AGENCIES AND BODIES,2102962872,1000043961
05.06.2019,CHILDREN'S SERVICES,LIGHTHOUSE FOSTERING LTD,"5,766.89",FRIENDS & FAMILY FOSTERING,EXTERNAL AGENCIES AND BODIES,2102963729,1000080372
05.06.2019,CHILDREN'S SERVICES,HEATH FARM FAMILY SOLUTION (FOSTERING),"5,913.56",FRIENDS & FAMILY FOSTERING,EXTERNAL AGENCIES AND BODIES,2102963704,11271268
05.06.2019,CHILDREN'S SERVICES,BY THE BRIDGE LTD,"6,231.00",FRIENDS & FAMILY FOSTERING,EXTERNAL AGENCIES AND BODIES,2102962882,1000043961
05.06.2019,CHILDREN'S SERVICES,DIVERSE CARE (UK) LTD,"6,324.00",FRIENDS & FAMILY FOSTERING,EXTERNAL AGENCIES AND BODIES,2102963725,1000055636
05.06.2019,CHILDREN'S SERVICES,ALL4U FOSTERING LTD,"6,443.04",FRIENDS & FAMILY FOSTERING,EXTERNAL AGENCIES AND BODIES,2102963713,1000080663
05.06.2019,CHILDREN'S SERVICES,ACTION FOR CHILDREN,"6,457.20",FRIENDS & FAMILY FOSTERING,EXTERNAL AGENCIES AND BODIES,2102962873,1000049964
05.06.2019,CHILDREN'S SERVICES,FOLLOWING WHISPERS FAMILY SERVICE LTD,"6,525.50",FRIENDS & FAMILY FOSTERING,EXTERNAL AGENCIES AND BODIES,2102963749,1000065611
05.06.2019,CHILDREN'S SERVICES,MOSAIC FOSTER CARE LTD,"6,642.68",FRIENDS & FAMILY FOSTERING,EXTERNAL AGENCIES AND BODIES,2102963718,1000076259
05.06.2019,CHILDREN'S SERVICES,ACTION FOR CHILDREN,"6,672.44",FRIENDS & FAMILY FOSTERING,EXTERNAL AGENCIES AND BODIES,2102963702,1000049964
05.06.2019,CHILDREN'S SERVICES,FOLLOWING WHISPERS FAMILY SERVICE LTD,"6,864.33",FRIENDS & FAMILY FOSTERING,EXTERNAL AGENCIES AND BODIES,2102963735,1000065611
05.06.2019,CHILDREN'S SERVICES,MOSAIC FOSTER CARE LTD,"6,975.00",FRIENDS & FAMILY FOSTERING,EXTERNAL AGENCIES AND BODIES,2102963684,1000076259
05.06.2019,CHILDREN'S SERVICES,MOSAIC FOSTER CARE LTD,"6,975.00",FRIENDS & FAMILY FOSTERING,EXTERNAL AGENCIES AND BODIES,2102963711,1000076259
05.06.2019,CHILDREN'S SERVICES,NEXT STEP FOSTERING SERVICES LTD,"7,193.24",FRIENDS & FAMILY FOSTERING,EXTERNAL AGENCIES AND BODIES,2102963707,1000044973
05.06.2019,CHILDREN'S SERVICES,PARENT AND CHILD FOSTERING ASSESSMENTS,"8,175.14",FRIENDS & FAMILY FOSTERING,EXTERNAL AGENCIES AND BODIES,2102963740,1000078962
05.06.2019,CHILDREN'S SERVICES,PARENT AND CHILD FOSTERING ASSESSMENTS,"8,192.85",FRIENDS & FAMILY FOSTERING,EXTERNAL AGENCIES AND BODIES,2102963693,1000078962
05.06.2019,CHILDREN'S SERVICES,FAMILY WORKS FOSTERING LTD,"9,615.79",FRIENDS & FAMILY FOSTERING,EXTERNAL AGENCIES AND BODIES,2102963759,1000082529
05.06.2019,CHILDREN'S SERVICES,REDACTED PERSONAL DATA,298,FRIENDS & FAMILY FOSTERING,PAYMENTS TO CARERS,REDACTED,REDACTED
05.06.2019,CHILDREN'S SERVICES,REDACTED PERSONAL DATA,298,FRIENDS & FAMILY FOSTERING,PAYMENTS TO CARERS,REDACTED,REDACTED
05.06.2019,CHILDREN'S SERVICES,REDACTED PERSONAL DATA,298,FRIENDS & FAMILY FOSTERING,PAYMENTS TO CARERS,REDACTED,REDACTED
05.06.2019,CHILDREN'S SERVICES,REDACTED PERSONAL DATA,335.34,FRIENDS & FAMILY FOSTERING,PAYMENTS TO CARERS,REDACTED,REDACTED
05.06.2019,CHILDREN'S SERVICES,REDACTED PERSONAL DATA,336,FRIENDS & FAMILY FOSTERING,PAYMENTS TO CARERS,REDACTED,REDACTED
05.06.2019,CHILDREN'S SERVICES,REDACTED PERSONAL DATA,336,FRIENDS & FAMILY FOSTERING,PAYMENTS TO CARERS,REDACTED,REDACTED
05.06.2019,CHILDREN'S SERVICES,REDACTED PERSONAL DATA,336,FRIENDS & FAMILY FOSTERING,PAYMENTS TO CARERS,REDACTED,REDACTED
05.06.2019,CHILDREN'S SERVICES,REDACTED PERSONAL DATA,380,FRIENDS & FAMILY FOSTERING,PAYMENTS TO CARERS,REDACTED,REDACTED
05.06.2019,CHILDREN'S SERVICES,REDACTED PERSONAL DATA,380,FRIENDS & FAMILY FOSTERING,PAYMENTS TO CARERS,REDACTED,REDACTED
05.06.2019,CHILDREN'S SERVICES,REDACTED PERSONAL DATA,380,FRIENDS & FAMILY FOSTERING,PAYMENTS TO CARERS,REDACTED,REDACTED
05.06.2019,CHILDREN'S SERVICES,REDACTED PERSONAL DATA,382.3,FRIENDS & FAMILY FOSTERING,PAYMENTS TO CARERS,REDACTED,REDACTED
05.06.2019,CHILDREN'S SERVICES,REDACTED PERSONAL DATA,382.3,FRIENDS & FAMILY FOSTERING,PAYMENTS TO CARERS,REDACTED,REDACTED
05.06.2019,CHILDREN'S SERVICES,REDACTED PERSONAL DATA,476.08,FRIENDS & FAMILY FOSTERING,PAYMENTS TO CARERS,REDACTED,REDACTED
05.06.2019,CHILDREN'S SERVICES,REDACTED PERSONAL DATA,476.08,FRIENDS & FAMILY FOSTERING,PAYMENTS TO CARERS,REDACTED,REDACTED
05.06.2019,CHILDREN'S SERVICES,REDACTED PERSONAL DATA,476.08,FRIENDS & FAMILY FOSTERING,PAYMENTS TO CARERS,REDACTED,REDACTED
05.06.2019,CHILDREN'S SERVICES,REDACTED PERSONAL DATA,476.08,FRIENDS & FAMILY FOSTERING,PAYMENTS TO CARERS,REDACTED,REDACTED
05.06.2019,CHILDREN'S SERVICES,REDACTED PERSONAL DATA,476.08,FRIENDS & FAMILY FOSTERING,PAYMENTS TO CARERS,REDACTED,REDACTED
05.06.2019,CHILDREN'S SERVICES,REDACTED PERSONAL DATA,646,FRIENDS & FAMILY FOSTERING,PAYMENTS TO CARERS,REDACTED,REDACTED
05.06.2019,CHILDREN'S SERVICES,REDACTED PERSONAL DATA,682.3,FRIENDS & FAMILY FOSTERING,PAYMENTS TO CARERS,REDACTED,REDACTED
05.06.2019,CHILDREN'S SERVICES,REDACTED PERSONAL DATA,682.3,FRIENDS & FAMILY FOSTERING,PAYMENTS TO CARERS,REDACTED,REDACTED
05.06.2019,CHILDREN'S SERVICES,REDACTED PERSONAL DATA,682.3,FRIENDS & FAMILY FOSTERING,PAYMENTS TO CARERS,REDACTED,REDACTED
05.06.2019,CHILDREN'S SERVICES,REDACTED PERSONAL DATA,682.3,FRIENDS & FAMILY FOSTERING,PAYMENTS TO CARERS,REDACTED,REDACTED
05.06.2019,CHILDREN'S SERVICES,REDACTED PERSONAL DATA,682.3,FRIENDS & FAMILY FOSTERING,PAYMENTS TO CARERS,REDACTED,REDACTED
05.06.2019,CHILDREN'S SERVICES,REDACTED PERSONAL DATA,682.3,FRIENDS & FAMILY FOSTERING,PAYMENTS TO CARERS,REDACTED,REDACTED
05.06.2019,CHILDREN'S SERVICES,REDACTED PERSONAL DATA,682.3,FRIENDS & FAMILY FOSTERING,PAYMENTS TO CARERS,REDACTED,REDACTED
05.06.2019,CHILDREN'S SERVICES,REDACTED PERSONAL DATA,682.3,FRIENDS & FAMILY FOSTERING,PAYMENTS TO CARERS,REDACTED,REDACTED
05.06.2019,CHILDREN'S SERVICES,REDACTED PERSONAL DATA,682.3,FRIENDS & FAMILY FOSTERING,PAYMENTS TO CARERS,REDACTED,REDACTED
05.06.2019,CHILDREN'S SERVICES,REDACTED PERSONAL DATA,682.3,FRIENDS & FAMILY FOSTERING,PAYMENTS TO CARERS,REDACTED,REDACTED
05.06.2019,CHILDREN'S SERVICES,REDACTED PERSONAL DATA,682.3,FRIENDS & FAMILY FOSTERING,PAYMENTS TO CARERS,REDACTED,REDACTED
05.06.2019,CHILDREN'S SERVICES,REDACTED PERSONAL DATA,696,FRIENDS & FAMILY FOSTERING,PAYMENTS TO CARERS,REDACTED,REDACTED
05.06.2019,CHILDREN'S SERVICES,REDACTED PERSONAL DATA,702.71,FRIENDS & FAMILY FOSTERING,PAYMENTS TO CARERS,REDACTED,REDACTED
05.06.2019,CHILDREN'S SERVICES,REDACTED PERSONAL DATA,767.66,FRIENDS & FAMILY FOSTERING,PAYMENTS TO CARERS,REDACTED,REDACTED
05.06.2019,CHILDREN'S SERVICES,REDACTED PERSONAL DATA,776.08,FRIENDS & FAMILY FOSTERING,PAYMENTS TO CARERS,REDACTED,REDACTED
05.06.2019,CHILDREN'S SERVICES,REDACTED PERSONAL DATA,776.08,FRIENDS & FAMILY FOSTERING,PAYMENTS TO CARERS,REDACTED,REDACTED
05.06.2019,CHILDREN'S SERVICES,REDACTED PERSONAL DATA,776.08,FRIENDS & FAMILY FOSTERING,PAYMENTS TO CARERS,REDACTED,REDACTED
05.06.2019,CHILDREN'S SERVICES,REDACTED PERSONAL DATA,776.08,FRIENDS & FAMILY FOSTERING,PAYMENTS TO CARERS,REDACTED,REDACTED
05.06.2019,CHILDREN'S SERVICES,REDACTED PERSONAL DATA,776.08,FRIENDS & FAMILY FOSTERING,PAYMENTS TO CARERS,REDACTED,REDACTED
05.06.2019,CHILDREN'S SERVICES,REDACTED PERSONAL DATA,790,FRIENDS & FAMILY FOSTERING,PAYMENTS TO CARERS,REDACTED,REDACTED
05.06.2019,CHILDREN'S SERVICES,REDACTED PERSONAL DATA,871.43,FRIENDS & FAMILY FOSTERING,PAYMENTS TO CARERS,REDACTED,REDACTED
05.06.2019,CHILDREN'S SERVICES,REDACTED PERSONAL DATA,874,FRIENDS & FAMILY FOSTERING,PAYMENTS TO CARERS,REDACTED,REDACTED
05.06.2019,CHILDREN'S SERVICES,REDACTED PERSONAL DATA,263.96,RESIDENCE ORDERS,PAYMENTS TO CARERS,REDACTED,REDACTED
05.06.2019,CHILDREN'S SERVICES,REDACTED PERSONAL DATA,269.08,RESIDENCE ORDERS,PAYMENTS TO CARERS,REDACTED,REDACTED
05.06.2019,CHILDREN'S SERVICES,REDACTED PERSONAL DATA,269.08,RESIDENCE ORDERS,PAYMENTS TO CARERS,REDACTED,REDACTED
05.06.2019,CHILDREN'S SERVICES,REDACTED PERSONAL DATA,276.1,RESIDENCE ORDERS,PAYMENTS TO CARERS,REDACTED,REDACTED
05.06.2019,CHILDREN'S SERVICES,ST CHRISTOPHER FELLOWSHIP,"3,281.25",RESIDENTIAL,EXTERNAL AGENCIES AND BODIES,2102963659,1000045269
05.06.2019,CHILDREN'S SERVICES,ST CHRISTOPHER FELLOWSHIP,"8,449.46",RESIDENTIAL,EXTERNAL AGENCIES AND BODIES,2102963667,1000045269
05.06.2019,CHILDREN'S SERVICES,KEYS CHILDCARE LTD,885.72,RESIDENTIAL,OTHER PAYMENTS FOR CLIENTS,2102963661,1000081582
05.06.2019,CHILDREN'S SERVICES,INMIND CHILDRENS SERVICES LTD,"2,128.58",RESIDENTIAL,RESIDENTIAL CARE,2102962847,1000078280
05.06.2019,CHILDREN'S SERVICES,ST CHRISTOPHER FELLOWSHIP,"3,214.29",RESIDENTIAL,RESIDENTIAL CARE,2102963666,1000045269
05.06.2019,CHILDREN'S SERVICES,THE DRIVE CARE HOMES LTD,"12,751.20",RESIDENTIAL,RESIDENTIAL CARE,2102962848,1000003889
05.06.2019,CHILDREN'S SERVICES,HORIZON CARE & EDUCATION GROUP LTD,"14,835.67",RESIDENTIAL,RESIDENTIAL CARE,2102963730,1000075467
05.06.2019,CHILDREN'S SERVICES,ST CHRISTOPHER FELLOWSHIP,"15,057.01",RESIDENTIAL,RESIDENTIAL CARE,2102963656,1000045269
05.06.2019,CHILDREN'S SERVICES,CREATING CARE CHOICES LTD,"15,500.00",RESIDENTIAL,RESIDENTIAL CARE,2102963664,1000076738
05.06.2019,CHILDREN'S SERVICES,KEYS CHILDCARE LTD,"16,607.14",RESIDENTIAL,RESIDENTIAL CARE,2102963660,1000081582
05.06.2019,CHILDREN'S SERVICES,ST CHRISTOPHER FELLOWSHIP,"16,647.41",RESIDENTIAL,RESIDENTIAL CARE,2102963658,1000045269
05.06.2019,CHILDREN'S SERVICES,CASTLE HOMES LIMITED,"16,889.51",RESIDENTIAL,RESIDENTIAL CARE,2102963657,1000019388
05.06.2019,CHILDREN'S SERVICES,FOOTSTEPS CARE LTD,"18,923.70",RESIDENTIAL,RESIDENTIAL CARE,2102963655,1000045464
05.06.2019,CHILDREN'S SERVICES,THE AMICUS COMMUNITY (ARUNDEL) LTD,"20,570.67",RESIDENTIAL,RESIDENTIAL CARE,2102963663,1000079012
05.06.2019,CHILDREN'S SERVICES,KEYS SPECIALIST RESIDENTIAL CHILDREN'S SERVICES,"21,921.43",RESIDENTIAL,RESIDENTIAL CARE,2102963665,1000081606
05.06.2019,CHILDREN'S SERVICES,CHILDHOOD FIRST,"22,200.43",RESIDENTIAL,RESIDENTIAL CARE,2102963653,1000076330
05.06.2019,CHILDREN'S SERVICES,STONELAKE LONDON LTD,"24,552.00",RESIDENTIAL,RESIDENTIAL CARE,2102963654,1000080075
05.06.2019,CHILDREN'S SERVICES,PURPLE PEBBLES(CHILD CARE) SERVICES,"1,882.14",RESOURCE PANEL,OTHER PAYMENTS FOR CLIENTS,2102962659,1000070705
05.06.2019,CHILDREN'S SERVICES,THE DRIVE CARE HOMES LTD,"4,534.86",RESOURCE PANEL,SECTION 17 PAYMENTS TO AGENCIES/CARERS,2102962858,1000003889
05.06.2019,CHILDREN'S SERVICES,MY LIFE SEMI-INDEPENDENT PROJECT LTD,"1,348.57",S24 CLA,EXTERNAL AGENCIES AND BODIES,2102962860,1000075301
05.06.2019,CHILDREN'S SERVICES,CORNERSTONE CARE PARTNERSHIP LTD,"1,411.38",S24 CLA,EXTERNAL AGENCIES AND BODIES,2102963670,1000078888
05.06.2019,CHILDREN'S SERVICES,FINEFAIR LTD,"1,687.33",S24 CLA,EXTERNAL AGENCIES AND BODIES,2102963672,1000075570
05.06.2019,CHILDREN'S SERVICES,FINEFAIR LTD,"1,687.33",S24 CLA,EXTERNAL AGENCIES AND BODIES,2102963674,1000075570
05.06.2019,CHILDREN'S SERVICES,FAMILY FOSTERING LTD,"1,771.34",S24 CLA,EXTERNAL AGENCIES AND BODIES,2102963673,1000075179
05.06.2019,CHILDREN'S SERVICES,ADULLAM SUPPORT LTD,"2,989.28",S24 CLA,EXTERNAL AGENCIES AND BODIES,2102962862,1000081148
05.06.2019,CHILDREN'S SERVICES,SILVER BIRCH CARE LTD,"3,064.28",S24 CLA,EXTERNAL AGENCIES AND BODIES,2102962864,1000076525
05.06.2019,CHILDREN'S SERVICES,FINEFAIR LTD,"3,122.01",S24 CLA,EXTERNAL AGENCIES AND BODIES,2102963669,1000075570
05.06.2019,CHILDREN'S SERVICES,ADULLAM SUPPORT LTD,"4,368.52",S24 CLA,EXTERNAL AGENCIES AND BODIES,2102962859,1000081148
05.06.2019,CHILDREN'S SERVICES,REDACTED PERSONAL DATA,784,S24 CLA,EXTERNAL AGENCIES AND BODIES,REDACTED,REDACTED
05.06.2019,CHILDREN'S SERVICES,TLK PROPERTY & INVESTMENT LTD,"1,065.00",SEMI INDEPENDENT,EXTERNAL AGENCIES AND BODIES,2102962863,1000065661
05.06.2019,CHILDREN'S SERVICES,HOLISTIC SUPPORTED LIVING LTD,"1,175.00",SEMI INDEPENDENT,EXTERNAL AGENCIES AND BODIES,2102962856,1000082130
05.06.2019,CHILDREN'S SERVICES,HOLISTIC SUPPORTED LIVING LTD,"1,175.00",SEMI INDEPENDENT,EXTERNAL AGENCIES AND BODIES,2102963675,1000082130
05.06.2019,CHILDREN'S SERVICES,ADULLAM SUPPORT LTD,"1,379.24",SEMI INDEPENDENT,EXTERNAL AGENCIES AND BODIES,2102962861,1000081148
05.06.2019,CHILDREN'S SERVICES,FINEFAIR LTD,"2,967.32",SEMI INDEPENDENT,EXTERNAL AGENCIES AND BODIES,2102963671,1000075570
05.06.2019,CHILDREN'S SERVICES,HEARTWOOD OUTREACH SERVICES LTD,"14,380.33",SEMI INDEPENDENT,EXTERNAL AGENCIES AND BODIES,2102963677,1000075021
05.06.2019,CHILDREN'S SERVICES,LONDON EARLY YEARS FOUNDATION,"1,300.00",SPECIAL GUARDIANSHIP,EXTERNAL AGENCIES AND BODIES,5902362056,1000074303
05.06.2019,CHILDREN'S SERVICES,REDACTED PERSONAL DATA,269.08,SPECIAL GUARDIANSHIP,PAYMENTS TO CARERS,REDACTED,REDACTED
05.06.2019,CHILDREN'S SERVICES,REDACTED PERSONAL DATA,269.08,SPECIAL GUARDIANSHIP,PAYMENTS TO CARERS,REDACTED,REDACTED
05.06.2019,CHILDREN'S SERVICES,REDACTED PERSONAL DATA,269.08,SPECIAL GUARDIANSHIP,PAYMENTS TO CARERS,REDACTED,REDACTED
05.06.2019,CHILDREN'S SERVICES,REDACTED PERSONAL DATA,342.45,SPECIAL GUARDIANSHIP,PAYMENTS TO CARERS,REDACTED,REDACTED
05.06.2019,CHILDREN'S SERVICES,REDACTED PERSONAL DATA,343.05,SPECIAL GUARDIANSHIP,PAYMENTS TO CARERS,REDACTED,REDACTED
05.06.2019,CHILDREN'S SERVICES,REDACTED PERSONAL DATA,356.15,SPECIAL GUARDIANSHIP,PAYMENTS TO CARERS,REDACTED,REDACTED
05.06.2019,CHILDREN'S SERVICES,REDACTED PERSONAL DATA,388.04,SPECIAL GUARDIANSHIP,PAYMENTS TO CARERS,REDACTED,REDACTED
05.06.2019,CHILDREN'S SERVICES,REDACTED PERSONAL DATA,389.34,SPECIAL GUARDIANSHIP,PAYMENTS TO CARERS,REDACTED,REDACTED
05.06.2019,CHILDREN'S SERVICES,REDACTED PERSONAL DATA,395,SPECIAL GUARDIANSHIP,PAYMENTS TO CARERS,REDACTED,REDACTED
05.06.2019,CHILDREN'S SERVICES,REDACTED PERSONAL DATA,403.04,SPECIAL GUARDIANSHIP,PAYMENTS TO CARERS,REDACTED,REDACTED
05.06.2019,CHILDREN'S SERVICES,REDACTED PERSONAL DATA,525,SPECIAL GUARDIANSHIP,PAYMENTS TO CARERS,REDACTED,REDACTED
05.06.2019,CHILDREN'S SERVICES,REDACTED PERSONAL DATA,525,SPECIAL GUARDIANSHIP,PAYMENTS TO CARERS,REDACTED,REDACTED
05.06.2019,CHILDREN'S SERVICES,REDACTED PERSONAL DATA,525,SPECIAL GUARDIANSHIP,PAYMENTS TO CARERS,REDACTED,REDACTED
05.06.2019,CHILDREN'S SERVICES,INTEGRATED SERVICES PROGRAMME,"2,411.80",STAYING PUT,EXTERNAL AGENCIES AND BODIES,2102963767,1642068
05.06.2019,CHILDREN'S SERVICES,REDACTED PERSONAL DATA,373.46,STAYING PUT,PAYMENTS TO CARERS,REDACTED,REDACTED
05.06.2019,CHILDREN'S SERVICES,REDACTED PERSONAL DATA,430,STAYING PUT,PAYMENTS TO CARERS,REDACTED,REDACTED
05.06.2019,CHILDREN'S SERVICES,REDACTED PERSONAL DATA,500,STAYING PUT,PAYMENTS TO CARERS,REDACTED,REDACTED
05.06.2019,CHILDREN'S SERVICES,REDACTED PERSONAL DATA,500,STAYING PUT,PAYMENTS TO CARERS,REDACTED,REDACTED
05.06.2019,CHILDREN'S SERVICES,REDACTED PERSONAL DATA,500,STAYING PUT,PAYMENTS TO CARERS,REDACTED,REDACTED
05.06.2019,CHILDREN'S SERVICES,REDACTED PERSONAL DATA,500,STAYING PUT,PAYMENTS TO CARERS,REDACTED,REDACTED
05.06.2019,CHILDREN'S SERVICES,REDACTED PERSONAL DATA,500,STAYING PUT,PAYMENTS TO CARERS,REDACTED,REDACTED
05.06.2019,CHILDREN'S SERVICES,REDACTED PERSONAL DATA,500,STAYING PUT,PAYMENTS TO CARERS,REDACTED,REDACTED
05.06.2019,CHILDREN'S SERVICES,REDACTED PERSONAL DATA,500,STAYING PUT,PAYMENTS TO CARERS,REDACTED,REDACTED
05.06.2019,CHILDREN'S SERVICES,REDACTED PERSONAL DATA,500,STAYING PUT,PAYMENTS TO CARERS,REDACTED,REDACTED
05.06.2019,CHILDREN'S SERVICES,REDACTED PERSONAL DATA,500,STAYING PUT,PAYMENTS TO CARERS,REDACTED,REDACTED
05.06.2019,CHILDREN'S SERVICES,REDACTED PERSONAL DATA,500,STAYING PUT,PAYMENTS TO CARERS,REDACTED,REDACTED
05.06.2019,CHILDREN'S SERVICES,REDACTED PERSONAL DATA,500,STAYING PUT,PAYMENTS TO CARERS,REDACTED,REDACTED
05.06.2019,CHILDREN'S SERVICES,REDACTED PERSONAL DATA,500,STAYING PUT,PAYMENTS TO CARERS,REDACTED,REDACTED
05.06.2019,CHILDREN'S SERVICES,REDACTED PERSONAL DATA,500,STAYING PUT,PAYMENTS TO CARERS,REDACTED,REDACTED
05.06.2019,CHILDREN'S SERVICES,REDACTED PERSONAL DATA,500,STAYING PUT,PAYMENTS TO CARERS,REDACTED,REDACTED
05.06.2019,CHILDREN'S SERVICES,REDACTED PERSONAL DATA,500,STAYING PUT,PAYMENTS TO CARERS,REDACTED,REDACTED
05.06.2019,CHILDREN'S SERVICES,REDACTED PERSONAL DATA,500,STAYING PUT,PAYMENTS TO CARERS,REDACTED,REDACTED
05.06.2019,CHILDREN'S SERVICES,REDACTED PERSONAL DATA,500,STAYING PUT,PAYMENTS TO CARERS,REDACTED,REDACTED
05.06.2019,CHILDREN'S SERVICES,REDACTED PERSONAL DATA,500,STAYING PUT,PAYMENTS TO CARERS,REDACTED,REDACTED
05.06.2019,CHILDREN'S SERVICES,REDACTED PERSONAL DATA,500,STAYING PUT,PAYMENTS TO CARERS,REDACTED,REDACTED
05.06.2019,CHILDREN'S SERVICES,REDACTED PERSONAL DATA,500,STAYING PUT,PAYMENTS TO CARERS,REDACTED,REDACTED
05.06.2019,CHILDREN'S SERVICES,REDACTED PERSONAL DATA,500,STAYING PUT,PAYMENTS TO CARERS,REDACTED,REDACTED
05.06.2019,CHILDREN'S SERVICES,REDACTED PERSONAL DATA,500,STAYING PUT,PAYMENTS TO CARERS,REDACTED,REDACTED
05.06.2019,CHILDREN'S SERVICES,REDACTED PERSONAL DATA,500,STAYING PUT,PAYMENTS TO CARERS,REDACTED,REDACTED
05.06.2019,CHILDREN'S SERVICES,REDACTED PERSONAL DATA,500,STAYING PUT,PAYMENTS TO CARERS,REDACTED,REDACTED
05.06.2019,CHILDREN'S SERVICES,REDACTED PERSONAL DATA,500,STAYING PUT,PAYMENTS TO CARERS,REDACTED,REDACTED
05.06.2019,CHILDREN'S SERVICES,REDACTED PERSONAL DATA,500,STAYING PUT,PAYMENTS TO CARERS,REDACTED,REDACTED
05.06.2019,CHILDREN'S SERVICES,REDACTED PERSONAL DATA,600,STAYING PUT,PAYMENTS TO CARERS,REDACTED,REDACTED
05.06.2019,CHILDREN'S SERVICES,REDACTED PERSONAL DATA,798.12,STAYING PUT,PAYMENTS TO CARERS,REDACTED,REDACTED
05.06.2019,CHILDREN'S SERVICES,REDACTED PERSONAL DATA,814,STAYING PUT,PAYMENTS TO CARERS,REDACTED,REDACTED
05.06.2019,CHILDREN'S SERVICES,REDACTED PERSONAL DATA,844,STAYING PUT,PAYMENTS TO CARERS,REDACTED,REDACTED
05.06.2019,CHILDREN'S SERVICES,REDACTED PERSONAL DATA,"1,379.08",STAYING PUT,PAYMENTS TO CARERS,REDACTED,REDACTED
05.06.2019,CHILDREN'S SERVICES,CASTLE WATER LTD,407.15,THOMAS CALTON CENTRE,WATER,5902362069,1000078867
05.06.2019,CHILDREN'S SERVICES,REDACTED PERSONAL DATA,400,UASC FURTHER EDUCATION SUPPORT,OTHER PAYMENTS FOR CLIENTS,REDACTED,REDACTED
05.06.2019,CHILDREN'S SERVICES,REDACTED PERSONAL DATA,700,UASC SECTION 24,EXTERNAL AGENCIES AND BODIES,REDACTED,REDACTED
05.06.2019,COMMUNITIES,LINK SUPPORT SERVICES (UK) LTD,"1,700.00",MAYORAL SUPPORT,TRAINING,5902361827,1000082733
05.06.2019,COMMUNITIES,CONSORT SHELTERED UNIT CLUB,"1,300.00",TENANTS FUND,GRANTS,5902362009,1000045023
05.06.2019,CUSTOMER EXPERIENCE HGF,DIGNITY FUNERALS LTD,"13,740.00",CORONER'S,OTHER CONTRACTORS,5902362109,1000041373
05.06.2019,CUSTOMER EXPERIENCE HGF,LONDON COUNCILS,"210,075.00",FREEDOM PASS,CONCESSIONARY FARES,5902362010,11237079
05.06.2019,CUSTOMER EXPERIENCE HGF,TRANSPORT TRADING LTD,"2,904,987.00",FREEDOM PASS,CONCESSIONARY FARES,5902362012,1000019757
05.06.2019,ENVIRONMENT DIRECTORATE,ARNOLD CLARK VEHICLE MANAGEMENT,252.91,CAR LEASING CTRL A/C,VEHICLE LEASING CHARGES,5902362072,1000079116
05.06.2019,ENVIRONMENT DIRECTORATE,ARNOLD CLARK VEHICLE MANAGEMENT,252.91,CAR LEASING CTRL A/C,VEHICLE LEASING CHARGES,5902362095,1000079116
05.06.2019,ENVIRONMENT DIRECTORATE,ARNOLD CLARK VEHICLE MANAGEMENT,271.61,CAR LEASING CTRL A/C,VEHICLE LEASING CHARGES,5902362084,1000079116
05.06.2019,ENVIRONMENT DIRECTORATE,ARNOLD CLARK VEHICLE MANAGEMENT,283.26,CAR LEASING CTRL A/C,VEHICLE LEASING CHARGES,5902362084,1000079116
05.06.2019,ENVIRONMENT DIRECTORATE,ALPHABET (GB) LTD,325.82,CAR LEASING CTRL A/C,VEHICLE LEASING CHARGES,5902362101,1000079666
05.06.2019,ENVIRONMENT DIRECTORATE,ARNOLD CLARK VEHICLE MANAGEMENT,329.14,CAR LEASING CTRL A/C,VEHICLE LEASING CHARGES,5902362086,1000079116
05.06.2019,ENVIRONMENT DIRECTORATE,ARNOLD CLARK VEHICLE MANAGEMENT,332.29,CAR LEASING CTRL A/C,VEHICLE LEASING CHARGES,5902362071,1000079116
05.06.2019,ENVIRONMENT DIRECTORATE,ARNOLD CLARK VEHICLE MANAGEMENT,332.29,CAR LEASING CTRL A/C,VEHICLE LEASING CHARGES,5902362094,1000079116
05.06.2019,ENVIRONMENT DIRECTORATE,ARNOLD CLARK VEHICLE MANAGEMENT,337.27,CAR LEASING CTRL A/C,VEHICLE LEASING CHARGES,5902362071,1000079116
05.06.2019,ENVIRONMENT DIRECTORATE,ARNOLD CLARK VEHICLE MANAGEMENT,337.27,CAR LEASING CTRL A/C,VEHICLE LEASING CHARGES,5902362094,1000079116
05.06.2019,ENVIRONMENT DIRECTORATE,ARNOLD CLARK VEHICLE MANAGEMENT,339.92,CAR LEASING CTRL A/C,VEHICLE LEASING CHARGES,5902362086,1000079116
05.06.2019,ENVIRONMENT DIRECTORATE,ARNOLD CLARK VEHICLE MANAGEMENT,343.1,CAR LEASING CTRL A/C,VEHICLE LEASING CHARGES,5902362068,1000079116
05.06.2019,ENVIRONMENT DIRECTORATE,ARNOLD CLARK VEHICLE MANAGEMENT,343.1,CAR LEASING CTRL A/C,VEHICLE LEASING CHARGES,5902362089,1000079116
05.06.2019,ENVIRONMENT DIRECTORATE,ARNOLD CLARK VEHICLE MANAGEMENT,346.96,CAR LEASING CTRL A/C,VEHICLE LEASING CHARGES,5902362068,1000079116
05.06.2019,ENVIRONMENT DIRECTORATE,ARNOLD CLARK VEHICLE MANAGEMENT,346.96,CAR LEASING CTRL A/C,VEHICLE LEASING CHARGES,5902362089,1000079116
05.06.2019,ENVIRONMENT DIRECTORATE,ARNOLD CLARK VEHICLE MANAGEMENT,348.14,CAR LEASING CTRL A/C,VEHICLE LEASING CHARGES,5902362003,1000079116
05.06.2019,ENVIRONMENT DIRECTORATE,ARNOLD CLARK VEHICLE MANAGEMENT,361.24,CAR LEASING CTRL A/C,VEHICLE LEASING CHARGES,5902362003,1000079116
05.06.2019,ENVIRONMENT DIRECTORATE,ALPHABET (GB) LTD,368.71,CAR LEASING CTRL A/C,VEHICLE LEASING CHARGES,5902362101,1000079666
05.06.2019,ENVIRONMENT DIRECTORATE,DAWSON RENTALS BUS & COACH LTD,335,COMMERCIAL VEH CTRL A/C,HIRED VEHICLES,5902362099,1000042174
05.06.2019,ENVIRONMENT DIRECTORATE,PACE ACCIDENT REPAIRS CENTRE LTD,380,COMMERCIAL VEH CTRL A/C,HIRED VEHICLES,5902362007,1000069899
05.06.2019,ENVIRONMENT DIRECTORATE,PACE ACCIDENT REPAIRS CENTRE LTD,380,COMMERCIAL VEH CTRL A/C,HIRED VEHICLES,5902362008,1000069899
05.06.2019,ENVIRONMENT DIRECTORATE,LEEDS COMMERCIAL LIMITED T/A LC VEHICLE HIRE,550,COMMERCIAL VEH CTRL A/C,HIRED VEHICLES,5902361663,1000082730
05.06.2019,ENVIRONMENT DIRECTORATE,LEEDS COMMERCIAL LIMITED T/A LC VEHICLE HIRE,"1,120.00",COMMERCIAL VEH CTRL A/C,HIRED VEHICLES,5902361669,1000082730
05.06.2019,ENVIRONMENT DIRECTORATE,LEEDS COMMERCIAL LIMITED T/A LC VEHICLE HIRE,"1,400.00",COMMERCIAL VEH CTRL A/C,HIRED VEHICLES,5902361671,1000082730
05.06.2019,ENVIRONMENT DIRECTORATE,DAWSON RENTALS BUS & COACH LTD,"1,781.55",COMMERCIAL VEH CTRL A/C,HIRED VEHICLES,5902362100,1000042174
05.06.2019,ENVIRONMENT DIRECTORATE,LONDON HIRE T/A R J MOTORS,251.53,COMMERCIAL VEH CTRL A/C,VEHICLE REPAIRS & MAINTENANCE,5902362047,1000047106
05.06.2019,ENVIRONMENT DIRECTORATE,LONDON HIRE T/A R J MOTORS,357.83,COMMERCIAL VEH CTRL A/C,VEHICLE REPAIRS & MAINTENANCE,5902362042,1000047106
05.06.2019,ENVIRONMENT DIRECTORATE,WATERLOGIC,434.24,GROUNDS MAINTENANCE - GENERAL,MATERIALS,5902361992,1000052108
05.06.2019,ENVIRONMENT DIRECTORATE,BELL BRUSH COMPANY,701.1,MANAGEMENT TEAM,MATERIALS,5902361979,1259776
05.06.2019,ENVIRONMENT DIRECTORATE,DRIVER TRAINING LONDON LTD T/A NATIONAL DRIVING CENTRE,"1,150.00",MANAGEMENT TEAM,TRAINING,5902361985,1000058040
05.06.2019,ENVIRONMENT DIRECTORATE,THE INDUSTRIAL MAINTENANCE GROUP LTD,329.19,STREET CLEANING-GENERAL,EQUIPMENT PURCHASE & REPAIR,5902361980,1000049781
05.06.2019,ENVIRONMENT DIRECTORATE,ELLIOT ENVIRONMENTAL LTD,800,STREET CLEANING-GENERAL,OTHER CONTRACTORS,5902361989,1000047392
05.06.2019,HOUSING STRATEGY AND OPTIONS,REDACTED PERSONAL DATA,761.54,HOMELESS PROJECTS,GRANTS,REDACTED,REDACTED
05.06.2019,HOUSING STRATEGY AND OPTIONS,REDACTED PERSONAL DATA,761.54,HOMELESS PROJECTS,GRANTS,REDACTED,REDACTED
05.06.2019,HOUSING STRATEGY AND OPTIONS,REDACTED PERSONAL DATA,761.54,HOMELESS PROJECTS,GRANTS,REDACTED,REDACTED
05.06.2019,LEISURE DIRECTORATE,SOUTHWARK PARK ASSOCIATION 1869,900,ADMINISTRATION,GRANTS,5902361814,1000082814
05.06.2019,LEISURE DIRECTORATE,MET MEDICAL LTD,300,DULWICH FAIR AREA,OTHER R&M,5902361918,1000082824
05.06.2019,LEISURE DIRECTORATE,ASKEWS & HOLTS LIBRARY SERVICES LTD,"2,243.95",STOCK SERVICES,BOOKS & PUBLICATIONS,5902362105,1494168
05.06.2019,NEW SOUTHWARK BUILDING SERVICES,TRAVIS PERKINS TRADING COMPANY LTD,"-1,201.00",STORES / LOGISTICS,MATERIALS,5902362063,1514319
05.06.2019,NEW SOUTHWARK BUILDING SERVICES,TRAVIS PERKINS TRADING COMPANY LTD,"1,201.00",STORES / LOGISTICS,MATERIALS,5902362059,1514319
05.06.2019,PLANNING AND TRANSPORT,HAYMARKET MEDIA GROUP LTD,"2,340.00",DEVELOPMENT CONTROL ADMINSTRATION,SOFTWARE,5902361995,1000066122
05.06.2019,SOUTHWARK BUILDING SERVICES,TRAVIS PERKINS TRADING COMPANY LTD,"-1,488.00",STORES/LOGISTICS,CREDITORS -GR/IR CLEARING ACCOUNT,5902362064,1514319
05.06.2019,SOUTHWARK BUILDING SERVICES,TRAVIS PERKINS TRADING COMPANY LTD,-976.8,STORES/LOGISTICS,CREDITORS -GR/IR CLEARING ACCOUNT,5902362065,1514319
05.06.2019,SOUTHWARK BUILDING SERVICES,TRAVIS PERKINS TRADING COMPANY LTD,-883.5,STORES/LOGISTICS,CREDITORS -GR/IR CLEARING ACCOUNT,5902362061,1514319
05.06.2019,SOUTHWARK BUILDING SERVICES,TRAVIS PERKINS TRADING COMPANY LTD,-825.6,STORES/LOGISTICS,CREDITORS -GR/IR CLEARING ACCOUNT,5902362065,1514319
05.06.2019,SOUTHWARK BUILDING SERVICES,TRAVIS PERKINS TRADING COMPANY LTD,260.12,STORES/LOGISTICS,CREDITORS -GR/IR CLEARING ACCOUNT,5902362060,1514319
05.06.2019,SOUTHWARK BUILDING SERVICES,TRAVIS PERKINS TRADING COMPANY LTD,316.94,STORES/LOGISTICS,CREDITORS -GR/IR CLEARING ACCOUNT,5902362058,1514319
05.06.2019,SOUTHWARK BUILDING SERVICES,TRAVIS PERKINS TRADING COMPANY LTD,324,STORES/LOGISTICS,CREDITORS -GR/IR CLEARING ACCOUNT,5902362058,1514319
05.06.2019,SOUTHWARK BUILDING SERVICES,TRAVIS PERKINS TRADING COMPANY LTD,332.76,STORES/LOGISTICS,CREDITORS -GR/IR CLEARING ACCOUNT,5902362058,1514319
05.06.2019,SOUTHWARK BUILDING SERVICES,TRAVIS PERKINS TRADING COMPANY LTD,336,STORES/LOGISTICS,CREDITORS -GR/IR CLEARING ACCOUNT,5902362058,1514319
05.06.2019,SOUTHWARK BUILDING SERVICES,TRAVIS PERKINS TRADING COMPANY LTD,337.1,STORES/LOGISTICS,CREDITORS -GR/IR CLEARING ACCOUNT,5902362058,1514319
05.06.2019,SOUTHWARK BUILDING SERVICES,TRAVIS PERKINS TRADING COMPANY LTD,354,STORES/LOGISTICS,CREDITORS -GR/IR CLEARING ACCOUNT,5902362058,1514319
05.06.2019,SOUTHWARK BUILDING SERVICES,TRAVIS PERKINS TRADING COMPANY LTD,446,STORES/LOGISTICS,CREDITORS -GR/IR CLEARING ACCOUNT,5902362059,1514319
05.06.2019,SOUTHWARK BUILDING SERVICES,TRAVIS PERKINS TRADING COMPANY LTD,488.4,STORES/LOGISTICS,CREDITORS -GR/IR CLEARING ACCOUNT,5902362059,1514319
05.06.2019,SOUTHWARK BUILDING SERVICES,TRAVIS PERKINS TRADING COMPANY LTD,495.36,STORES/LOGISTICS,CREDITORS -GR/IR CLEARING ACCOUNT,5902362059,1514319
05.06.2019,SOUTHWARK BUILDING SERVICES,TRAVIS PERKINS TRADING COMPANY LTD,496,STORES/LOGISTICS,CREDITORS -GR/IR CLEARING ACCOUNT,5902362059,1514319
05.06.2019,SOUTHWARK BUILDING SERVICES,TRAVIS PERKINS TRADING COMPANY LTD,506.4,STORES/LOGISTICS,CREDITORS -GR/IR CLEARING ACCOUNT,5902362060,1514319
05.06.2019,SOUTHWARK BUILDING SERVICES,TRAVIS PERKINS TRADING COMPANY LTD,554.4,STORES/LOGISTICS,CREDITORS -GR/IR CLEARING ACCOUNT,5902362059,1514319
05.06.2019,SOUTHWARK BUILDING SERVICES,TRAVIS PERKINS TRADING COMPANY LTD,586.08,STORES/LOGISTICS,CREDITORS -GR/IR CLEARING ACCOUNT,5902362059,1514319
05.06.2019,SOUTHWARK BUILDING SERVICES,TRAVIS PERKINS TRADING COMPANY LTD,600,STORES/LOGISTICS,CREDITORS -GR/IR CLEARING ACCOUNT,5902362058,1514319
05.06.2019,SOUTHWARK BUILDING SERVICES,TRAVIS PERKINS TRADING COMPANY LTD,620.62,STORES/LOGISTICS,CREDITORS -GR/IR CLEARING ACCOUNT,5902362059,1514319
05.06.2019,SOUTHWARK BUILDING SERVICES,TRAVIS PERKINS TRADING COMPANY LTD,660.8,STORES/LOGISTICS,CREDITORS -GR/IR CLEARING ACCOUNT,5902362059,1514319
05.06.2019,SOUTHWARK BUILDING SERVICES,TRAVIS PERKINS TRADING COMPANY LTD,672,STORES/LOGISTICS,CREDITORS -GR/IR CLEARING ACCOUNT,5902362058,1514319
05.06.2019,SOUTHWARK BUILDING SERVICES,TRAVIS PERKINS TRADING COMPANY LTD,688,STORES/LOGISTICS,CREDITORS -GR/IR CLEARING ACCOUNT,5902362059,1514319
05.06.2019,SOUTHWARK BUILDING SERVICES,TRAVIS PERKINS TRADING COMPANY LTD,720.6,STORES/LOGISTICS,CREDITORS -GR/IR CLEARING ACCOUNT,5902362060,1514319
05.06.2019,SOUTHWARK BUILDING SERVICES,TRAVIS PERKINS TRADING COMPANY LTD,756,STORES/LOGISTICS,CREDITORS -GR/IR CLEARING ACCOUNT,5902362058,1514319
05.06.2019,SOUTHWARK BUILDING SERVICES,TRAVIS PERKINS TRADING COMPANY LTD,759.12,STORES/LOGISTICS,CREDITORS -GR/IR CLEARING ACCOUNT,5902362060,1514319
05.06.2019,SOUTHWARK BUILDING SERVICES,TRAVIS PERKINS TRADING COMPANY LTD,765,STORES/LOGISTICS,CREDITORS -GR/IR CLEARING ACCOUNT,5902362058,1514319
05.06.2019,SOUTHWARK BUILDING SERVICES,TRAVIS PERKINS TRADING COMPANY LTD,799.2,STORES/LOGISTICS,CREDITORS -GR/IR CLEARING ACCOUNT,5902362060,1514319
05.06.2019,SOUTHWARK BUILDING SERVICES,TRAVIS PERKINS TRADING COMPANY LTD,825.6,STORES/LOGISTICS,CREDITORS -GR/IR CLEARING ACCOUNT,5902362060,1514319
05.06.2019,SOUTHWARK BUILDING SERVICES,TRAVIS PERKINS TRADING COMPANY LTD,883.5,STORES/LOGISTICS,CREDITORS -GR/IR CLEARING ACCOUNT,5902362060,1514319
05.06.2019,SOUTHWARK BUILDING SERVICES,TRAVIS PERKINS TRADING COMPANY LTD,976.8,STORES/LOGISTICS,CREDITORS -GR/IR CLEARING ACCOUNT,5902362060,1514319
05.06.2019,SOUTHWARK BUILDING SERVICES,TRAVIS PERKINS TRADING COMPANY LTD,"1,098.00",STORES/LOGISTICS,CREDITORS -GR/IR CLEARING ACCOUNT,5902362058,1514319
05.06.2019,SOUTHWARK BUILDING SERVICES,TRAVIS PERKINS TRADING COMPANY LTD,"1,140.00",STORES/LOGISTICS,CREDITORS -GR/IR CLEARING ACCOUNT,5902362059,1514319
05.06.2019,SOUTHWARK BUILDING SERVICES,TRAVIS PERKINS TRADING COMPANY LTD,"1,321.60",STORES/LOGISTICS,CREDITORS -GR/IR CLEARING ACCOUNT,5902362059,1514319
05.06.2019,SOUTHWARK BUILDING SERVICES,TRAVIS PERKINS TRADING COMPANY LTD,"1,488.00",STORES/LOGISTICS,CREDITORS -GR/IR CLEARING ACCOUNT,5902362060,1514319
05.06.2019,SOUTHWARK BUILDING SERVICES,TRAVIS PERKINS TRADING COMPANY LTD,"1,599.40",STORES/LOGISTICS,CREDITORS -GR/IR CLEARING ACCOUNT,5902362059,1514319
05.06.2019,SOUTHWARK BUILDING SERVICES,TRAVIS PERKINS TRADING COMPANY LTD,"1,854.60",STORES/LOGISTICS,CREDITORS -GR/IR CLEARING ACCOUNT,5902362060,1514319
05.06.2019,SOUTHWARK BUILDING SERVICES,TRAVIS PERKINS TRADING COMPANY LTD,"2,846.00",STORES/LOGISTICS,CREDITORS -GR/IR CLEARING ACCOUNT,5902362058,1514319
05.06.2019,SOUTHWARK BUILDING SERVICES,TRAVIS PERKINS TRADING COMPANY LTD,"2,846.00",STORES/LOGISTICS,CREDITORS -GR/IR CLEARING ACCOUNT,5902362058,1514319
05.06.2019,SOUTHWARK BUILDING SERVICES,TRAVIS PERKINS TRADING COMPANY LTD,"5,692.00",STORES/LOGISTICS,CREDITORS -GR/IR CLEARING ACCOUNT,5902362058,1514319
06.06.2019,ADULT SOCIAL CARE,SIAN DAVIES,450,DIR OF ASC,LEGAL FEES & COURT COSTS,2102964076,1000042111
06.06.2019,ADULT SOCIAL CARE,LONDON CARE LTD,"40,602.00",EXTRA CARE CONTRACT,HOMECARE - C&V,5902362241,1000003398
06.06.2019,ADULT SOCIAL CARE,LONDON CARE LTD,"40,602.00",EXTRA CARE CONTRACT,HOMECARE - C&V,5902362243,1000003398
06.06.2019,ADULT SOCIAL CARE,LONDON CARE LTD,"60,300.00",EXTRA CARE CONTRACT,HOMECARE - C&V,5902362235,1000003398
06.06.2019,ADULT SOCIAL CARE,LONDON CARE LTD,"60,300.00",EXTRA CARE CONTRACT,HOMECARE - C&V,5902362236,1000003398
06.06.2019,ADULT SOCIAL CARE,THE NEW SHOOTS,375,LD LTS 18-64,DAYCARE,2102963966,1000073970
06.06.2019,ADULT SOCIAL CARE,REDACTED PERSONAL DATA,"3,682.28",LD LTS 18-64,SUPPORTED LIVING,REDACTED,REDACTED
06.06.2019,ADULT SOCIAL CARE,NORFOLK COUNTY COUNCIL,500,MH AMHP TEAM,OTHER PAYMENTS FOR CLIENTS,5902362153,1115898
06.06.2019,ADULT SOCIAL CARE,SUPREME CARE SERVICES LTD,555.28,PHY LTS 18-64,HOMECARE - C&V,2102963956,1000059416
06.06.2019,ADULT SOCIAL CARE,SUPREME CARE SERVICES LTD,"1,586.50",PHY LTS 18-64,HOMECARE - C&V,2102963952,1000059416
06.06.2019,ADULT SOCIAL CARE,SUPREME CARE SERVICES LTD,"3,740.80",PHY LTS 18-64,HOMECARE - C&V,2102963964,1000059416
06.06.2019,ADULT SOCIAL CARE,CONCEPT CARE SOLUTIONS LTD,297.5,PHY LTS 18-64,HOMECARE - SPOT,2102963926,1000081790
06.06.2019,ADULT SOCIAL CARE,CONCEPT CARE SOLUTIONS LTD,361.25,PHY LTS 18-64,HOMECARE - SPOT,2102963896,1000081790
06.06.2019,ADULT SOCIAL CARE,CONCEPT CARE SOLUTIONS LTD,361.25,PHY LTS 18-64,HOMECARE - SPOT,2102963902,1000081790
06.06.2019,ADULT SOCIAL CARE,CONCEPT CARE SOLUTIONS LTD,361.25,PHY LTS 18-64,HOMECARE - SPOT,2102963920,1000081790
06.06.2019,ADULT SOCIAL CARE,CONCEPT CARE SOLUTIONS LTD,361.25,PHY LTS 18-64,HOMECARE - SPOT,2102963932,1000081790
06.06.2019,ADULT SOCIAL CARE,SERVESOUL LTD,408.91,PHY LTS 18-64,HOMECARE - SPOT,2102963794,1000081503
06.06.2019,ADULT SOCIAL CARE,CONCEPT CARE SOLUTIONS LTD,620.5,PHY LTS 18-64,HOMECARE - SPOT,2102963900,1000081790
06.06.2019,ADULT SOCIAL CARE,CONCEPT CARE SOLUTIONS LTD,620.5,PHY LTS 18-64,HOMECARE - SPOT,2102963904,1000081790
06.06.2019,ADULT SOCIAL CARE,CONCEPT CARE SOLUTIONS LTD,620.5,PHY LTS 18-64,HOMECARE - SPOT,2102963910,1000081790
06.06.2019,ADULT SOCIAL CARE,CONCEPT CARE SOLUTIONS LTD,620.5,PHY LTS 18-64,HOMECARE - SPOT,2102963912,1000081790
06.06.2019,ADULT SOCIAL CARE,CONCEPT CARE SOLUTIONS LTD,620.5,PHY LTS 18-64,HOMECARE - SPOT,2102963924,1000081790
06.06.2019,ADULT SOCIAL CARE,CONCEPT CARE SOLUTIONS LTD,646,PHY LTS 18-64,HOMECARE - SPOT,2102963888,1000081790
06.06.2019,ADULT SOCIAL CARE,CONCEPT CARE SOLUTIONS LTD,654.5,PHY LTS 18-64,HOMECARE - SPOT,2102963918,1000081790
06.06.2019,ADULT SOCIAL CARE,SUPREME CARE SERVICES LTD,300.6,PHY LTS 65+,HOMECARE - C&V,2102963950,1000059416
06.06.2019,ADULT SOCIAL CARE,SUPREME CARE SERVICES LTD,651.3,PHY LTS 65+,HOMECARE - C&V,2102963958,1000059416
06.06.2019,ADULT SOCIAL CARE,SUPREME CARE SERVICES LTD,960.25,PHY LTS 65+,HOMECARE - C&V,2102963954,1000059416
06.06.2019,ADULT SOCIAL CARE,SUPREME CARE SERVICES LTD,"1,118.90",PHY LTS 65+,HOMECARE - C&V,2102963948,1000059416
06.06.2019,ADULT SOCIAL CARE,SERVESOUL LTD,262.87,PHY LTS 65+,HOMECARE - SPOT,2102963802,1000081503
06.06.2019,ADULT SOCIAL CARE,SERVESOUL LTD,292.08,PHY LTS 65+,HOMECARE - SPOT,2102963804,1000081503
06.06.2019,ADULT SOCIAL CARE,CONCEPT CARE SOLUTIONS LTD,297.5,PHY LTS 65+,HOMECARE - SPOT,2102963884,1000081790
06.06.2019,ADULT SOCIAL CARE,CONCEPT CARE SOLUTIONS LTD,297.5,PHY LTS 65+,HOMECARE - SPOT,2102963890,1000081790
06.06.2019,ADULT SOCIAL CARE,CONCEPT CARE SOLUTIONS LTD,297.5,PHY LTS 65+,HOMECARE - SPOT,2102963916,1000081790
06.06.2019,ADULT SOCIAL CARE,CONCEPT CARE SOLUTIONS LTD,297.5,PHY LTS 65+,HOMECARE - SPOT,2102963928,1000081790
06.06.2019,ADULT SOCIAL CARE,CONCEPT CARE SOLUTIONS LTD,323,PHY LTS 65+,HOMECARE - SPOT,2102963934,1000081790
06.06.2019,ADULT SOCIAL CARE,SERVESOUL LTD,346.32,PHY LTS 65+,HOMECARE - SPOT,2102963826,1000081503
06.06.2019,ADULT SOCIAL CARE,SERVESOUL LTD,350.49,PHY LTS 65+,HOMECARE - SPOT,2102963838,1000081503
06.06.2019,ADULT SOCIAL CARE,SERVESOUL LTD,421.42,PHY LTS 65+,HOMECARE - SPOT,2102963858,1000081503
06.06.2019,ADULT SOCIAL CARE,SERVESOUL LTD,433.94,PHY LTS 65+,HOMECARE - SPOT,2102963856,1000081503
06.06.2019,ADULT SOCIAL CARE,SERVESOUL LTD,433.94,PHY LTS 65+,HOMECARE - SPOT,2102963872,1000081503
06.06.2019,ADULT SOCIAL CARE,SERVESOUL LTD,467.32,PHY LTS 65+,HOMECARE - SPOT,2102963876,1000081503
06.06.2019,ADULT SOCIAL CARE,SERVESOUL LTD,525.74,PHY LTS 65+,HOMECARE - SPOT,2102963810,1000081503
06.06.2019,ADULT SOCIAL CARE,SERVESOUL LTD,525.74,PHY LTS 65+,HOMECARE - SPOT,2102963820,1000081503
06.06.2019,ADULT SOCIAL CARE,SERVESOUL LTD,525.74,PHY LTS 65+,HOMECARE - SPOT,2102963846,1000081503
06.06.2019,ADULT SOCIAL CARE,SERVESOUL LTD,525.74,PHY LTS 65+,HOMECARE - SPOT,2102963852,1000081503
06.06.2019,ADULT SOCIAL CARE,SERVESOUL LTD,542.43,PHY LTS 65+,HOMECARE - SPOT,2102963818,1000081503
06.06.2019,ADULT SOCIAL CARE,SERVESOUL LTD,579.98,PHY LTS 65+,HOMECARE - SPOT,2102963788,1000081503
06.06.2019,ADULT SOCIAL CARE,SERVESOUL LTD,584.15,PHY LTS 65+,HOMECARE - SPOT,2102963808,1000081503
06.06.2019,ADULT SOCIAL CARE,CONCEPT CARE SOLUTIONS LTD,586.5,PHY LTS 65+,HOMECARE - SPOT,2102963898,1000081790
06.06.2019,ADULT SOCIAL CARE,CONCEPT CARE SOLUTIONS LTD,620.5,PHY LTS 65+,HOMECARE - SPOT,2102963878,1000081790
06.06.2019,ADULT SOCIAL CARE,CONCEPT CARE SOLUTIONS LTD,629,PHY LTS 65+,HOMECARE - SPOT,2102963894,1000081790
06.06.2019,ADULT SOCIAL CARE,SERVESOUL LTD,642.57,PHY LTS 65+,HOMECARE - SPOT,2102963834,1000081503
06.06.2019,ADULT SOCIAL CARE,CONCEPT CARE SOLUTIONS LTD,658.75,PHY LTS 65+,HOMECARE - SPOT,2102963892,1000081790
06.06.2019,ADULT SOCIAL CARE,CONCEPT CARE SOLUTIONS LTD,658.75,PHY LTS 65+,HOMECARE - SPOT,2102963908,1000081790
06.06.2019,ADULT SOCIAL CARE,CONCEPT CARE SOLUTIONS LTD,658.75,PHY LTS 65+,HOMECARE - SPOT,2102963914,1000081790
06.06.2019,ADULT SOCIAL CARE,CONCEPT CARE SOLUTIONS LTD,658.75,PHY LTS 65+,HOMECARE - SPOT,2102963922,1000081790
06.06.2019,ADULT SOCIAL CARE,THAMES HOMECARE SERVICE LTD,"27,300.00",REABLEMENT CONTRACT,HOMECARE - C&V,5902362234,1000079295
06.06.2019,ADULT SOCIAL CARE,THAMES HOMECARE SERVICE LTD,"27,300.00",REABLEMENT CONTRACT,HOMECARE - C&V,5902362239,1000079295
06.06.2019,ADULT SOCIAL CARE,THAMES HOMECARE SERVICE LTD,"27,300.00",REABLEMENT CONTRACT,HOMECARE - C&V,5902362242,1000079295
06.06.2019,ADULT SOCIAL CARE,THAMES HOMECARE SERVICE LTD,"27,300.00",REABLEMENT CONTRACT,HOMECARE - C&V,5902362245,1000079295
06.06.2019,ADULT SOCIAL CARE,MKD LONDON LTD,486.8,SAFEGUARDING TEAM,EXTERNAL AGENCIES AND BODIES,5902362173,1000075532
06.06.2019,ADULT SOCIAL CARE,ROMEDICAL LTD,572.28,SAFEGUARDING TEAM,OTHER CONTRACTORS,5902362111,1000076318
06.06.2019,ADULT SOCIAL CARE,ROMEDICAL LTD,575.48,SAFEGUARDING TEAM,OTHER CONTRACTORS,5902362115,1000076318
06.06.2019,ADULT SOCIAL CARE,ROMEDICAL LTD,"1,099.72",SAFEGUARDING TEAM,OTHER CONTRACTORS,5902362119,1000076318
06.06.2019,ADULT SOCIAL CARE,ROMEDICAL LTD,"1,120.22",SAFEGUARDING TEAM,OTHER CONTRACTORS,5902362124,1000076318
06.06.2019,ADULT SOCIAL CARE,SERVESOUL LTD,375.53,SUB LTS 18-64,HOMECARE - SPOT,2102963862,1000081503
06.06.2019,ADULT SOCIAL CARE,LONDON CARE LTD,"17,085.60",TRANSFORMING COM E,HOMECARE - C&V,5902362232,1000003398
06.06.2019,ASSET MANAGEMENT,CHESHIRE ESTATE AND LEGAL LTD,"2,000.00",DISREPAIR,PAYMENTS FOR LEGAL SERVICES,2102964062,1000081908
06.06.2019,ASSET MANAGEMENT,CHESHIRE ESTATE AND LEGAL LTD,"2,634.28",DISREPAIR,PAYMENTS FOR LEGAL SERVICES,2102964060,1000081908
06.06.2019,ASSET MANAGEMENT,HODGE JONES & ALLEN,"7,250.00",DISREPAIR,PAYMENTS FOR LEGAL SERVICES,2102964059,11011881
06.06.2019,ASSET MANAGEMENT,BELSHAW & CURTIN SOLICITORS,"1,267.15",DISREPAIR,PAYMENTS FOR LEGAL SERVICES,2102964057,1767379
06.06.2019,ASSET MANAGEMENT,MLA SOLICITORS,"5,000.00",DISREPAIR,PAYMENTS FOR LEGAL SERVICES,2102964058,1000079716
06.06.2019,ASSET MANAGEMENT,GT STEWART LTD,"5,350.86",DISREPAIR,PAYMENTS FOR LEGAL SERVICES,2102964061,1000061213
06.06.2019,ASSET MANAGEMENT,BELSHAW & CURTIN SOLICITORS,"8,000.00",DISREPAIR,PAYMENTS FOR LEGAL SERVICES,2102964063,1767379
06.06.2019,CAMBERWELL COMMUNITY COUNCIL,THEATRE PECKHAM,"2,500.00",FUTURE ARTS PROFESSIONALS,GRANT,CHEQUE PAYMENT,CHEQUE PAYMENT
06.06.2019,CENTRAL FUNCTIONS,KINLEIGH FOLKARD & HAYWARD LTD,"2,988.39",GARAGE REPAIRS,SERVICE CHARGES,5902362254,1000027237
06.06.2019,CENTRAL FUNCTIONS,KINLEIGH FOLKARD & HAYWARD LTD,"5,966.10",GARAGE REPAIRS,SERVICE CHARGES,5902362251,1000027237
06.06.2019,CENTRAL FUNCTIONS,TFL TELESALES / OYSTER FULFILMENT,390,OPERATIONAL TEAM,PUBLIC TRANSPORT,5902362259,1000059727
06.06.2019,CHIEF EXECUTIVE,HARRADINES REMOVALS,"1,800.00",CAPITAL PS (REGEN),CONSTRUCTION FEES,5902362188,1006511
06.06.2019,CHIEF EXECUTIVE,KENT COUNTY COUNCIL - LASER,"1,928.90",CAPITAL PS (REGEN),CONSTRUCTION MAIN CONTRACT -CERTIFICATED,5902362141,1000012926
06.06.2019,CHIEF EXECUTIVE,BRINSON STANILAND PARTNERSHIP LTD,"5,937.49",CAPITAL PS (REGEN),UTILITIES INSTALLATION,5902362180,1000059553
06.06.2019,CHILDREN AND ADULT,DAVID MILES & PARTNERS LTD,"1,840.00",CAPITAL PS (SOC SERV),CONSTRUCTION MAIN CONTRACT,5902362270,1000001119
06.06.2019,CHILDREN'S SERVICES,KENT COUNTY COUNCIL - LASER,"1,470.76",BUILDING SUMNER,GAS,5902362192,1000012926
06.06.2019,CHILDREN'S SERVICES,KENT COUNTY COUNCIL - LASER,"2,294.64",BUILDING SUMNER,GAS,5902362189,1000012926
06.06.2019,CHILDREN'S SERVICES,KENT COUNTY COUNCIL - LASER,"2,459.83",BUILDING SUMNER,GAS,5902362182,1000012926
06.06.2019,CHILDREN'S SERVICES,KENT COUNTY COUNCIL - LASER,"2,553.58",BUILDING SUMNER,GAS,5902362210,1000012926
06.06.2019,CHILDREN'S SERVICES,INFINITY NETWORKS LTD,"2,892.00",CENTRAL SUPPORT,OFFICE EXPENSES,5902362261,1000035571
06.06.2019,CHILDREN'S SERVICES,ACTION TRANSFORMATION LEADERSHIP,578.34,FAMILY GROUP CONFERENCES,PROFESSIONAL FEES,5902362262,1000081394
06.06.2019,CHILDREN'S SERVICES,1ST PLACE CHILDREN & PARENTS CENTRE,"8,000.00",FREE AND EARLY LEARNING TEAM,RENTS,2102963768,1000049952
06.06.2019,CHILDREN'S SERVICES,MARTEN WALSH CHERER LTD,265.76,LEGAL,LEGAL FEES & COURT COSTS,2102964073,1000038950
06.06.2019,CHILDREN'S SERVICES,TIM PARKER,600,LEGAL,LEGAL FEES & COURT COSTS,2102964079,1000061949
06.06.2019,CHILDREN'S SERVICES,NICHOLAS GOODWIN,"1,700.00",LEGAL,LEGAL FEES & COURT COSTS,2102964074,1000082473
06.06.2019,CHILDREN'S SERVICES,FRG LTD,450,LIFELONG LINKS,EXTERNAL AGENCIES AND BODIES,5902362252,1000046413
06.06.2019,CHILDREN'S SERVICES,PULSE HEALTHCARE LTD,308,SCH TRANS - CONTRACT COST,AGENCY STAFF,5902362277,1000035063
06.06.2019,CHILDREN'S SERVICES,REDACTED PERSONAL DATA,"1,199.86",SEMI INDEPENDENT,OTHER PAYMENTS FOR CLIENTS,REDACTED,REDACTED
06.06.2019,CHILDREN'S SERVICES,MOTHER GOOSE NURSERIES - GREENDALE FIELDS LTD,396,SEND INCLUSION FUNDING,OTHER LOCAL AUTHORITIES,2102964056,1000025888
06.06.2019,CHILDREN'S SERVICES,ANN BERNADT NURSERY SCHOOL,"1,012.00",SEND INCLUSION FUNDING,OTHER LOCAL AUTHORITIES,2102964050,5001000085
06.06.2019,CHILDREN'S SERVICES,PLAYSHACK PLAYGROUP,"1,012.00",SEND INCLUSION FUNDING,OTHER LOCAL AUTHORITIES,2102964051,1608859
06.06.2019,CHILDREN'S SERVICES,LONDON EARLY YEARS FOUNDATION,"1,012.00",SEND INCLUSION FUNDING,OTHER LOCAL AUTHORITIES,2102964055,1000074303
06.06.2019,CHILDREN'S SERVICES,GOOSE GREEN PRIMARY AND NURSERY SCHOOL,"1,012.00",SEND INCLUSION FUNDING,STATEMENTED FEES,2102964049,1000070613
06.06.2019,CHILDREN'S SERVICES,SURREY SQUARE PRIMARY SCHOOL,"1,012.00",SEND INCLUSION FUNDING,STATEMENTED FEES,2102964053,1000082648
06.06.2019,CHILDREN'S SERVICES,SURREY SQUARE PRIMARY SCHOOL,"1,012.00",SEND INCLUSION FUNDING,STATEMENTED FEES,2102964054,1000082648
06.06.2019,CHILDREN'S SERVICES,ARC COMMUNITY TRUSTEES,650,SPECIAL GUARDIANSHIP,EXTERNAL AGENCIES AND BODIES,5902362253,1000046206
06.06.2019,CHILDREN'S SERVICES,REDACTED PERSONAL DATA,-617.52,SPECIAL GUARDIANSHIP,OTHER PAYMENTS FOR CLIENTS,REDACTED,REDACTED
06.06.2019,CHILDREN'S SERVICES,REDACTED PERSONAL DATA,349.19,SPECIAL GUARDIANSHIP,PAYMENTS TO CARERS,REDACTED,REDACTED
06.06.2019,CHILDREN'S SERVICES,REDACTED PERSONAL DATA,683.69,SPECIAL GUARDIANSHIP,PAYMENTS TO CARERS,REDACTED,REDACTED
06.06.2019,CHILDREN'S SERVICES,CASTLE WATER LTD,352.72,THOMAS CALTON CENTRE,WATER,5902362216,1000078867
06.06.2019,CHILDREN'S SERVICES,CASTLE WATER LTD,374.36,THOMAS CALTON CENTRE,WATER,5902362215,1000078867
06.06.2019,CHILDREN'S SERVICES,CASTLE WATER LTD,459.19,THOMAS CALTON CENTRE,WATER,5902362218,1000078867
06.06.2019,CHILDREN'S SERVICES,CASTLE WATER LTD,532.17,THOMAS CALTON CENTRE,WATER,5902362212,1000078867
06.06.2019,CHILDREN'S SERVICES,CASTLE WATER LTD,812.51,THOMAS CALTON CENTRE,WATER,5902362211,1000078867
06.06.2019,CHILDREN'S SERVICES,CASTLE WATER LTD,"1,014.65",THOMAS CALTON CENTRE,WATER,5902362209,1000078867
06.06.2019,COMMISSIONING & CENTRAL,HERBERT CONSULTING LIMITED,"6,200.00",C&AS SYSTEMS TEAM,PROFESSIONAL FEES,5902362205,1000062551
06.06.2019,COMMUNITIES,LEATHERMARKET COMMUNITY BENEFIT SOCIETY LTD,"246,086.35",LEATHERMARKET CO-OP,M&M ALLOWANCE CO-OPS,5902362220,1000076870
06.06.2019,COMMUNITIES,MEADOW ROW & SMEATON COURT T&RA,"1,300.00",TENANTS FUND,GRANTS,5902362219,1000068155
06.06.2019,CUSTOMER EXPERIENCE HGF,ALLIED PUBLICITY SERVICES LTD,709.13,BLUE BADGES,MATERIALS,5902362201,1000082115
06.06.2019,CUSTOMER EXPERIENCE HGF,JONATHAN HOUGH,500,CORONER'S,LEGAL FEES & COURT COSTS,2102964072,1000037332
06.06.2019,CUSTOMER EXPERIENCE HGF,CITYGLEN LTD,"42,654.00",NIGHTLY TA (NSC),EXTERNAL AGENCIES AND BODIES,5902362229,1000026239
06.06.2019,CUSTOMER EXPERIENCE HGF,VENTURE HOUSING (LONDON) LTD,"160,045.70",NIGHTLY TA (NSC),EXTERNAL AGENCIES AND BODIES,5902362231,1000056686
06.06.2019,ENVIRONMENT AND LEISURE,RUSSELL LEISURE LTD,"5,000.00",CAPITAL PS (LEISURE),CONSTRUCTION MAIN CONTRACT -CERTIFICATED,5902362221,1000038091
06.06.2019,ENVIRONMENT DIRECTORATE,ARNOLD CLARK VEHICLE MANAGEMENT,288.9,CAR LEASING CTRL A/C,VEHICLE LEASING CHARGES,5902362144,1000079116
06.06.2019,ENVIRONMENT DIRECTORATE,ARNOLD CLARK VEHICLE MANAGEMENT,297.49,CAR LEASING CTRL A/C,VEHICLE LEASING CHARGES,5902362144,1000079116
06.06.2019,ENVIRONMENT DIRECTORATE,LEX AUTOLEASE,362.49,CAR LEASING CTRL A/C,VEHICLE LEASING CHARGES,5902362140,1000069462
06.06.2019,ENVIRONMENT DIRECTORATE,AUTOMOTIVE LEASING,508.25,CAR LEASING CTRL A/C,VEHICLE LEASING CHARGES,5902362176,11014756
06.06.2019,ENVIRONMENT DIRECTORATE,AUTOMOTIVE LEASING,552.96,CAR LEASING CTRL A/C,VEHICLE LEASING CHARGES,5902362176,11014756
06.06.2019,ENVIRONMENT DIRECTORATE,SCOT GROUP LIMITED,350.56,COMMERCIAL VEH CTRL A/C,HIRED VEHICLES,5902362174,1709512
06.06.2019,F & C S EXCLUDING CORPORATE BUDGETS,DSI BILLING SERVICES LTD,"2,276.75",ADMINISTRATIVE SUPPORT,POSTAGES,5902362160,1000058640
06.06.2019,F & C S EXCLUDING CORPORATE BUDGETS,NORTHGATE PUBLIC SERVICES (UK) LTD,"2,365.54",ADMINISTRATIVE SUPPORT,SOFTWARE,5902362193,1000037405
06.06.2019,F & C S EXCLUDING CORPORATE BUDGETS,THE BLUE BERMONDSEY BID CO LTD,"27,030.31",BERMONDSEY BID,EXTERNAL AGENCIES AND BODIES,5902362155,1000074877
06.06.2019,F & C S EXCLUDING CORPORATE BUDGETS,BDO LLP,"4,166.67",RISK ADMIN,PROFESSIONAL FEES,5902362265,1000057898
06.06.2019,HOUSING HRA,CALFORD SEADEN LLP,"1,201.72",CAPITAL PS (HRA),CONSTRUCTION FEES  - EXTERNAL,5902362185,1061592
06.06.2019,HOUSING HRA,CALFORD SEADEN LLP,"1,201.72",CAPITAL PS (HRA),CONSTRUCTION FEES  - EXTERNAL,5902362190,1061592
06.06.2019,HOUSING HRA,CALFORD SEADEN LLP,"1,545.08",CAPITAL PS (HRA),CONSTRUCTION FEES  - EXTERNAL,5902362237,1061592
06.06.2019,HOUSING STRATEGY AND OPTIONS,SOUTHWARK LAW CENTRE,"11,500.00",HOMELESS & HOUSING OPTIONS MGT,LEGAL FEES & COURT COSTS,2102964078,1931684
06.06.2019,HOUSING STRATEGY AND OPTIONS,ISAAC BABALOLA,"1,000.00",HOMELESS PROJECTS,GRANTS,5902362238,1000082647
06.06.2019,LEISURE DIRECTORATE,TOTAL GAS & POWER LIMITED,415.45,BURGESS AREA TEAM,GAS,5902362208,1000054198
06.06.2019,LEISURE DIRECTORATE,SIMPLY HIRE LTD,863.58,FACILITIES MAINTENANCE,BUILDING R&M,5902362206,1000018354
06.06.2019,LEISURE DIRECTORATE,SIMPLY HIRE LTD,"1,033.16",FACILITIES MAINTENANCE,BUILDING R&M,5902362207,1000018354
06.06.2019,LEISURE DIRECTORATE,ASKEWS & HOLTS LIBRARY SERVICES LTD,405.39,STOCK SERVICES,BOOKS & PUBLICATIONS,5902362161,1494168
06.06.2019,MODERNISATION HGF,FAST KEY SERVICES LTD,480.24,160 TOOLEY ST.,BUILDING R&M,5902362157,1000040672
06.06.2019,MODERNISATION HGF,BURLINGTON UNIFORMS,492.75,160 TOOLEY ST.,"CLOTHING, UNIFORMS & LAUNDRY",5902362181,1000062536
06.06.2019,MODERNISATION HGF,KENT COUNTY COUNCIL - LASER,"38,327.15",160 TOOLEY ST.,ELECTRICITY,5902362166,1000012926
06.06.2019,MODERNISATION HGF,INTERSERVE (FACILITIES MANAGEMENT),"73,202.75",FM SERVICES BY INTERSERVE,BUILDING R&M,5902362213,1000070792
06.06.2019,MODERNISATION HGF,KIER FACILITIES SERVICES LTD,"3,449.88",PLANNED FM SERVICES BY KIER,BUILDING R&M,5902362217,1000040603
06.06.2019,MODERNISATION HGF,PULSE CORPORATION LTD,"1,372.50",REPAIR AND MAINTENANCE SERVICES,HARDWARE,5902362178,1000072911
06.06.2019,MODERNISATION HGF,COMENSURA LTD,"410,315.32",WEEKLY PAYMENTS,AGENCY STAFF,5902362248,1000051261
06.06.2019,PECKHAM AND NUNHEAD COMMUNITY COUNCIL,KINGS GRIFFINS NETBALL CLUB ,"3,000.00",KINGS GRIFFINS NETBALL CLUB ,GRANT,CHEQUE PAYMENT,CHEQUE PAYMENT
06.06.2019,PUBLIC HEALTH,CHELSEA AND WESTMINSTER HOSPITAL,629.37,SEXUAL HEALTH - STI,EXTERNAL AGENCIES AND BODIES,5902362278,1000072053
06.06.2019,RESIDENT SERVICES,CHRIS BRYDEN,330,OPERATIONS/OFFICES ACCOMMODATION,LEGAL FEES & COURT COSTS,2102964065,1000053939
06.06.2019,RESIDENT SERVICES,GEORGIA WHITING,375,OPERATIONS/OFFICES ACCOMMODATION,LEGAL FEES & COURT COSTS,2102964069,1000078433
06.06.2019,RESIDENT SERVICES,GEORGIA WHITING,450,OPERATIONS/OFFICES ACCOMMODATION,LEGAL FEES & COURT COSTS,2102964070,1000078433
06.06.2019,RESIDENT SERVICES,CHRIS BRYDEN,500,OPERATIONS/OFFICES ACCOMMODATION,LEGAL FEES & COURT COSTS,2102964064,1000053939
06.06.2019,RESIDENT SERVICES,CHRIS BRYDEN,500,OPERATIONS/OFFICES ACCOMMODATION,LEGAL FEES & COURT COSTS,2102964066,1000053939
06.06.2019,RESIDENT SERVICES,CHRIS BRYDEN,861.67,OPERATIONS/OFFICES ACCOMMODATION,LEGAL FEES & COURT COSTS,2102964067,1000053939
06.06.2019,SOUTHWARK BUILDING SERVICES,EDWARDES BROS (DULWICH) LTD,389.35,STORES/LOGISTICS,CREDITORS -GR/IR CLEARING ACCOUNT,5902362142,1004945
06.06.2019,SOUTHWARK BUILDING SERVICES,EDWARDES BROS (DULWICH) LTD,673.4,STORES/LOGISTICS,CREDITORS -GR/IR CLEARING ACCOUNT,5902362139,1004945
06.06.2019,SOUTHWARK BUILDING SERVICES,EDWARDES BROS (DULWICH) LTD,963,STORES/LOGISTICS,CREDITORS -GR/IR CLEARING ACCOUNT,5902362134,1004945
06.06.2019,SOUTHWARK BUILDING SERVICES,EDWARDES BROS (DULWICH) LTD,963,STORES/LOGISTICS,CREDITORS -GR/IR CLEARING ACCOUNT,5902362146,1004945
06.06.2019,SOUTHWARK BUILDING SERVICES,EDWARDES BROS (DULWICH) LTD,"1,407.65",STORES/LOGISTICS,CREDITORS -GR/IR CLEARING ACCOUNT,5902362134,1004945
06.06.2019,SOUTHWARK BUILDING SERVICES,EDWARDES BROS (DULWICH) LTD,"1,443.00",STORES/LOGISTICS,CREDITORS -GR/IR CLEARING ACCOUNT,5902362132,1004945
06.06.2019,SOUTHWARK BUILDING SERVICES,EDWARDES BROS (DULWICH) LTD,"2,700.00",STORES/LOGISTICS,CREDITORS -GR/IR CLEARING ACCOUNT,5902362129,1004945
07.06.2019,ADULT SOCIAL CARE,FOUNTAIN CARE LTD,329.4,APPOINTEESHIPS,OTHER PAYMENTS FOR CLIENTS,2102964283,1000066815
07.06.2019,ADULT SOCIAL CARE,EDEN SPRINGS (UK) LTD,312.16,MH PREMISES COSTS,OP LEASE/HIRE CHARGES:PLANT/EQUIP/FURNIT,5902362290,1000037350
07.06.2019,ADULT SOCIAL CARE,RADHA CONSULTING LTD,712.25,SAFEGUARDING TEAM,OTHER CONTRACTORS,5902361946,1000061154
07.06.2019,ADULT SOCIAL CARE,PEOPLE PLUS,"8,371.25",SPEC NEEDS CHILDREN,PAYMENTS FOR FINANCIAL SERVICES,5902362340,1000076642
07.06.2019,ADULT SOCIAL CARE,PEOPLE PLUS,448,SPEC NEEDS CHILDREN,PROFESSIONAL FEES,5902362362,1000076642
07.06.2019,ADULT SOCIAL CARE,PEOPLE PLUS,560,SPEC NEEDS CHILDREN,PROFESSIONAL FEES,5902362367,1000076642
07.06.2019,ASSET MANAGEMENT,MASHER BROTHERS LTD,"3,311.70",R&M CONTRACTS (SOUTH),BUILDING R&M,2102964180,3000001100
07.06.2019,ASSET MANAGEMENT,SANDERSONS BUILDING SERVICES LTD,"8,764.04",R&M CONTRACTS (SOUTH),BUILDING R&M,2102964181,3000002065
07.06.2019,ASSET MANAGEMENT,SINCLAIR JOHNSTON & PARTNERS LTD,925,REPAIRS OPERATIONS,PROFESSIONAL FEES,5902362371,1000052146
07.06.2019,ASSET MANAGEMENT,STABILIS ASSOCIATES LTD,"7,843.92",REPAIRS OPERATIONS,PROFESSIONAL FEES,5902362409,1000082512
07.06.2019,BERMONDSEY AND ROTHERHITHE COMMUNITY COUNCIL,ASTLEY & COOPER ROAD TRA,"1,000.00",FAMILY FUNDAY,GRANT,CHEQUE PAYMENT,CHEQUE PAYMENT
07.06.2019,CENTRAL FUNCTIONS,STANBURY BUILDING SERVICES LTD,295,COMMERCIAL PROPERTIES,BUILDING R&M,2102964273,3000001967
07.06.2019,CENTRAL FUNCTIONS,STANBURY BUILDING SERVICES LTD,325,COMMERCIAL PROPERTIES,BUILDING R&M,2102964185,3000001967
07.06.2019,CENTRAL FUNCTIONS,BRESLIN CONSTRUCTION LTD,"4,595.86",COMMERCIAL PROPERTIES,BUILDING R&M,2102964172,3000001948
07.06.2019,CENTRAL FUNCTIONS,SHERCURITY LTD,"1,432.48",COMMERCIAL PROPERTIES,LEGAL FEES & COURT COSTS,2102964075,1000067090
07.06.2019,CENTRAL FUNCTIONS,SHERCURITY LTD,"3,360.00",COMMERCIAL PROPERTIES,LEGAL FEES & COURT COSTS,2102964080,1000067090
07.06.2019,CENTRAL FUNCTIONS,SHERCURITY LTD,"3,360.00",COMMERCIAL PROPERTIES,LEGAL FEES & COURT COSTS,2102964081,1000067090
07.06.2019,CENTRAL FUNCTIONS,SHERCURITY LTD,"3,360.00",COMMERCIAL PROPERTIES,LEGAL FEES & COURT COSTS,2102964082,1000067090
07.06.2019,CENTRAL FUNCTIONS,SHERCURITY LTD,"3,360.00",COMMERCIAL PROPERTIES,LEGAL FEES & COURT COSTS,2102964085,1000067090
07.06.2019,CENTRAL FUNCTIONS,SHERCURITY LTD,"3,360.00",COMMERCIAL PROPERTIES,LEGAL FEES & COURT COSTS,2102964087,1000067090
07.06.2019,CENTRAL FUNCTIONS,SHERCURITY LTD,"3,360.00",COMMERCIAL PROPERTIES,LEGAL FEES & COURT COSTS,2102964088,1000067090
07.06.2019,CENTRAL FUNCTIONS,SHERCURITY LTD,"3,840.00",COMMERCIAL PROPERTIES,LEGAL FEES & COURT COSTS,2102964083,1000067090
07.06.2019,CENTRAL FUNCTIONS,SHERCURITY LTD,"3,840.00",COMMERCIAL PROPERTIES,LEGAL FEES & COURT COSTS,2102964084,1000067090
07.06.2019,CENTRAL FUNCTIONS,SHERCURITY LTD,"3,840.00",COMMERCIAL PROPERTIES,LEGAL FEES & COURT COSTS,2102964086,1000067090
07.06.2019,CHIEF EXECUTIVE,CBS MAINTENANCE SERVICES LTD,700,CAPITAL PS (REGEN),CONSTRUCTION FEES - ENGINEER,2102964175,3000001518
07.06.2019,CHIEF EXECUTIVE,CBS MAINTENANCE SERVICES LTD,"2,486.00",CAPITAL PS (REGEN),CONSTRUCTION FEES - ENGINEER,2102964174,3000001518
07.06.2019,CHIEF EXECUTIVE,CBS MAINTENANCE SERVICES LTD,"2,750.00",CAPITAL PS (REGEN),CONSTRUCTION FEES - ENGINEER,2102964176,3000001518
07.06.2019,CHIEF EXECUTIVE,CBS MAINTENANCE SERVICES LTD,"11,092.00",CAPITAL PS (REGEN),CONSTRUCTION FEES - ENGINEER,2102964177,3000001518
07.06.2019,CHIEF EXECUTIVE,WERNICK EVENT HIRE LTD,"137,503.26",CAPITAL PS (STRAT SERV),CONSTRUCTION FEES - ARCHITECT,5902362360,1000073942
07.06.2019,CHILDREN'S SERVICES,CARBONE CLINIC UK LTD,450,CASEWORK OLA  0-8,CONTRIBUTION TO PROVISIONS (TP PAYMENTS),2102964255,1000080937
07.06.2019,CHILDREN'S SERVICES,OCTAVIA HOUSE SCHOOLS LTD,"13,000.00",CASEWORK OLA  0-8,RECOUPMENT,2102964214,1000073579
07.06.2019,CHILDREN'S SERVICES,BEYOND AUTISM T/A PARK HOUSE SCHOOL,"17,115.70",CASEWORK OLA  0-8,RECOUPMENT,2102964228,1000048234
07.06.2019,CHILDREN'S SERVICES,BEYOND AUTISM T/A PARK HOUSE SCHOOL,"17,115.70",CASEWORK OLA  0-8,RECOUPMENT,2102964230,1000048234
07.06.2019,CHILDREN'S SERVICES,BEYOND AUTISM T/A PARK HOUSE SCHOOL,"17,115.70",CASEWORK OLA  0-8,RECOUPMENT,2102964231,1000048234
07.06.2019,CHILDREN'S SERVICES,BEYOND AUTISM T/A PARK HOUSE SCHOOL,"17,115.70",CASEWORK OLA  0-8,RECOUPMENT,2102964232,1000048234
07.06.2019,CHILDREN'S SERVICES,BEYOND AUTISM T/A PARK HOUSE SCHOOL,"17,115.70",CASEWORK OLA  0-8,RECOUPMENT,2102964233,1000048234
07.06.2019,CHILDREN'S SERVICES,BEYOND AUTISM T/A PARK HOUSE SCHOOL,"17,115.70",CASEWORK OLA  0-8,RECOUPMENT,2102964238,1000048234
07.06.2019,CHILDREN'S SERVICES,BEYOND AUTISM T/A PARK HOUSE SCHOOL,"17,115.70",CASEWORK OLA  0-8,RECOUPMENT,2102964239,1000048234
07.06.2019,CHILDREN'S SERVICES,BEYOND AUTISM T/A PARK HOUSE SCHOOL,"17,115.70",CASEWORK OLA  0-8,RECOUPMENT,2102964240,1000048234
07.06.2019,CHILDREN'S SERVICES,BEYOND AUTISM T/A PARK HOUSE SCHOOL,"17,115.70",CASEWORK OLA  0-8,RECOUPMENT,2102964241,1000048234
07.06.2019,CHILDREN'S SERVICES,BEYOND AUTISM T/A PARK HOUSE SCHOOL,"17,115.70",CASEWORK OLA  0-8,RECOUPMENT,2102964243,1000048234
07.06.2019,CHILDREN'S SERVICES,BEYOND AUTISM T/A PARK HOUSE SCHOOL,"17,115.70",CASEWORK OLA  0-8,RECOUPMENT,2102964244,1000048234
07.06.2019,CHILDREN'S SERVICES,BEYOND AUTISM T/A PARK HOUSE SCHOOL,"17,501.12",CASEWORK OLA  0-8,RECOUPMENT,2102964242,1000048234
07.06.2019,CHILDREN'S SERVICES,BEYOND AUTISM T/A PARK HOUSE SCHOOL,"21,347.66",CASEWORK OLA  0-8,RECOUPMENT,2102964229,1000048234
07.06.2019,CHILDREN'S SERVICES,BEYOND AUTISM T/A PARK HOUSE SCHOOL,"21,347.66",CASEWORK OLA  0-8,RECOUPMENT,2102964234,1000048234
07.06.2019,CHILDREN'S SERVICES,BEYOND AUTISM T/A PARK HOUSE SCHOOL,"21,347.66",CASEWORK OLA  0-8,RECOUPMENT,2102964235,1000048234
07.06.2019,CHILDREN'S SERVICES,BEYOND AUTISM T/A PARK HOUSE SCHOOL,"21,347.66",CASEWORK OLA  0-8,RECOUPMENT,2102964236,1000048234
07.06.2019,CHILDREN'S SERVICES,BEYOND AUTISM T/A PARK HOUSE SCHOOL,"21,347.66",CASEWORK OLA  0-8,RECOUPMENT,2102964237,1000048234
07.06.2019,CHILDREN'S SERVICES,FLEET TUTORS,968,CASEWORK OLA  0-8,"SCHOOLS CAPITATION, OTHER GRANTS",2102964247,1000044820
07.06.2019,CHILDREN'S SERVICES,FLEET TUTORS,"1,054.00",CASEWORK OLA  0-8,"SCHOOLS CAPITATION, OTHER GRANTS",2102964246,1000044820
07.06.2019,CHILDREN'S SERVICES,REDACTED PERSONAL DATA,"1,800.00",CASEWORK SOUTHWARK 0-8,M&M ALLOWANCE CO-OPS,REDACTED,REDACTED
07.06.2019,CHILDREN'S SERVICES,UNIVERSITY ENGINEERING ACADEMY,"12,715.00",CASEWORK SOUTHWARK 0-8,STATEMENTED FEES,2102964250,1000074104
07.06.2019,CHILDREN'S SERVICES,UNIVERSITY ENGINEERING ACADEMY,"15,663.45",CASEWORK SOUTHWARK 0-8,STATEMENTED FEES,2102964253,1000074104
07.06.2019,CHILDREN'S SERVICES,UNIVERSITY ENGINEERING ACADEMY,"27,762.37",CASEWORK SOUTHWARK 0-8,STATEMENTED FEES,2102964254,1000074104
07.06.2019,CHILDREN'S SERVICES,ISABELLE GRAVENSTEIN T/A REVIVAL,"1,160.00",CENTRAL SUPPORT,MEDICAL / HEALTH & SAFETY SERVICES,5902362279,1000027424
07.06.2019,CHILDREN'S SERVICES,M & K SPARROW,918.64,DIRECT DELIVERY,EQUIPMENT PURCHASE & REPAIR,5902362361,11259323
07.06.2019,CHILDREN'S SERVICES,BEYONDAUTISM,"-17,703.12",PFA TEAM SOUTHWARK 9 PLUS,RECOUPMENT,2102964257,1000080312
07.06.2019,CHILDREN'S SERVICES,BEYONDAUTISM,"21,347.66",PFA TEAM SOUTHWARK 9 PLUS,RECOUPMENT,2102964220,1000080312
07.06.2019,CHILDREN'S SERVICES,BEYONDAUTISM,"21,347.66",PFA TEAM SOUTHWARK 9 PLUS,RECOUPMENT,2102964221,1000080312
07.06.2019,CHILDREN'S SERVICES,BEYONDAUTISM,"21,347.66",PFA TEAM SOUTHWARK 9 PLUS,RECOUPMENT,2102964222,1000080312
07.06.2019,CHILDREN'S SERVICES,BEYONDAUTISM,"21,347.66",PFA TEAM SOUTHWARK 9 PLUS,RECOUPMENT,2102964223,1000080312
07.06.2019,CHILDREN'S SERVICES,BEYONDAUTISM,"21,347.66",PFA TEAM SOUTHWARK 9 PLUS,RECOUPMENT,2102964224,1000080312
07.06.2019,CHILDREN'S SERVICES,BEYONDAUTISM,"21,347.66",PFA TEAM SOUTHWARK 9 PLUS,RECOUPMENT,2102964225,1000080312
07.06.2019,CHILDREN'S SERVICES,BEYONDAUTISM,"21,347.66",PFA TEAM SOUTHWARK 9 PLUS,RECOUPMENT,2102964227,1000080312
07.06.2019,CHILDREN'S SERVICES,BEYONDAUTISM,"24,680.99",PFA TEAM SOUTHWARK 9 PLUS,RECOUPMENT,2102964226,1000080312
07.06.2019,CHILDREN'S SERVICES,KISIMUL GROUP LTD,"25,015.30",PFA TEAM SOUTHWARK 9 PLUS,RECOUPMENT,2102964211,1000079657
07.06.2019,CHILDREN'S SERVICES,WIZE UP INDEPENDENT SCHOOL,"1,000.00",PFA TEAM SOUTHWARK 9 PLUS,RECOUPMENT,2102964189,1000080560
07.06.2019,CHILDREN'S SERVICES,WIZE UP INDEPENDENT SCHOOL,"2,400.00",PFA TEAM SOUTHWARK 9 PLUS,RECOUPMENT,2102964188,1000080560
07.06.2019,CHILDREN'S SERVICES,CAMPBELL HARRIS TUTORS LTD,340,PFA TEAM SOUTHWARK 9 PLUS,"SCHOOLS CAPITATION, OTHER GRANTS",2102964219,1000082646
07.06.2019,CHILDREN'S SERVICES,THE COMPLETE WORKS INDEPENDENT SCHOOL,575,PFA TEAM SOUTHWARK 9 PLUS,"SCHOOLS CAPITATION, OTHER GRANTS",2102964217,1000033256
07.06.2019,CHILDREN'S SERVICES,THE COMPLETE WORKS INDEPENDENT SCHOOL,690,PFA TEAM SOUTHWARK 9 PLUS,"SCHOOLS CAPITATION, OTHER GRANTS",2102964218,1000033256
07.06.2019,CHILDREN'S SERVICES,BLOOMFIELD LEARNING CENTRE,"3,250.00",PFA TEAM SOUTHWARK 9 PLUS,"SCHOOLS CAPITATION, OTHER GRANTS",2102964212,1000033357
07.06.2019,CHILDREN'S SERVICES,BLOOMFIELD LEARNING CENTRE,"3,900.00",PFA TEAM SOUTHWARK 9 PLUS,"SCHOOLS CAPITATION, OTHER GRANTS",2102964213,1000033357
07.06.2019,CHILDREN'S SERVICES,EDUCATION MY LIFE MATTERS CIC,"4,460.00",PFA TEAM SOUTHWARK 9 PLUS,"SCHOOLS CAPITATION, OTHER GRANTS",2102964196,1000078939
07.06.2019,CHILDREN'S SERVICES,NEWCASTLE COLLEGE GROUP,531.33,PFA TEAM SOUTHWARK 9 PLUS,"SCHOOLS CAPITATION, STANDARDS FUND",2102964203,1000080965
07.06.2019,CHILDREN'S SERVICES,NEWCASTLE COLLEGE GROUP,531.33,PFA TEAM SOUTHWARK 9 PLUS,"SCHOOLS CAPITATION, STANDARDS FUND",2102964204,1000080965
07.06.2019,CHILDREN'S SERVICES,SHOOTERS HILL CAMPUS,685,PFA TEAM SOUTHWARK 9 PLUS,"SCHOOLS CAPITATION, STANDARDS FUND",2102964191,1000074183
07.06.2019,CHILDREN'S SERVICES,SHOOTERS HILL CAMPUS,"1,019.00",PFA TEAM SOUTHWARK 9 PLUS,"SCHOOLS CAPITATION, STANDARDS FUND",2102964194,1000074183
07.06.2019,CHILDREN'S SERVICES,SHOOTERS HILL CAMPUS,"1,927.00",PFA TEAM SOUTHWARK 9 PLUS,"SCHOOLS CAPITATION, STANDARDS FUND",2102964192,1000074183
07.06.2019,CHILDREN'S SERVICES,SHOOTERS HILL CAMPUS,"8,417.00",PFA TEAM SOUTHWARK 9 PLUS,"SCHOOLS CAPITATION, STANDARDS FUND",2102964193,1000074183
07.06.2019,CHILDREN'S SERVICES,NEW CITY COLLEGE,"9,717.02",PFA TEAM SOUTHWARK 9 PLUS,"SCHOOLS CAPITATION, STANDARDS FUND",2102964202,1000080741
07.06.2019,CHILDREN'S SERVICES,NEW CITY COLLEGE,"19,434.03",PFA TEAM SOUTHWARK 9 PLUS,"SCHOOLS CAPITATION, STANDARDS FUND",2102964201,1000080741
07.06.2019,CHILDREN'S SERVICES,BEYONDAUTISM,"21,347.66",PFA TEAM SOUTHWARK 9 PLUS,"SCHOOLS CAPITATION, STANDARDS FUND",2102964245,1000080312
07.06.2019,CHILDREN'S SERVICES,SOUTH THAMES COLLEGE,"22,485.66",PFA TEAM SOUTHWARK 9 PLUS,"SCHOOLS CAPITATION, STANDARDS FUND",2102964195,1000068274
07.06.2019,CHILDREN'S SERVICES,UNIVERSITY ENGINEERING ACADEMY,"1,298.97",PFA TEAM SOUTHWARK 9 PLUS,STATEMENTED FEES,2102964249,1000074104
07.06.2019,CHILDREN'S SERVICES,UNIVERSITY ENGINEERING ACADEMY,"4,989.69",PFA TEAM SOUTHWARK 9 PLUS,STATEMENTED FEES,2102964251,1000074104
07.06.2019,CHILDREN'S SERVICES,UNIVERSITY ENGINEERING ACADEMY,"64,555.01",PFA TEAM SOUTHWARK 9 PLUS,STATEMENTED FEES,2102964252,1000074104
07.06.2019,CHILDREN'S SERVICES,ARK GREENWICH FREE SCHOOL,"2,887.94",PFA TEAM SOUTHWARK 9 PLUS,STATEMENTED FEES,2102964215,1000082530
07.06.2019,CHILDREN'S SERVICES,THE UNIVERSITY OF KENT ACADEMIES TRUST,500,PUPIL PREMIUM CURRENT YEAR,SCHOOLS CAPITATION,2102962300,1000082802
07.06.2019,CHILDREN'S SERVICES,E4 LAW LTD,"1,279.00",S & FAM SUPP - PRAC GRP F SET 29-31,OTHER PAYMENTS FOR CLIENTS,5902362282,1000072222
07.06.2019,CHILDREN'S SERVICES,ST JAMES CE SCHOOL,"3,006.36",SCHOOLS DIRECT SALARY FUNDING,SCHOOLS CAPITATION,2102964301,5001000070
07.06.2019,CHILDREN'S SERVICES,CHARLOTTE  SHARMAN PRIMARY SCHOOL,"5,130.00",SCHOOLS DIRECT SALARY FUNDING,SCHOOLS CAPITATION,2102964300,5001000016
07.06.2019,CHILDREN'S SERVICES,ST PETERS CE SCHOOL,"17,975.97",SCHOOLS IN FINANCIAL DIFFICULTY,SCHOOLS CAPITATION,2102964303,5001000083
07.06.2019,CHILDREN'S SERVICES,ST JUDES CHURCH OF ENGLAND PRIMARY,"30,625.00",SCHOOLS IN FINANCIAL DIFFICULTY,SCHOOLS CAPITATION,2102964304,5001000019
07.06.2019,CHILDREN'S SERVICES,ST JOHNS WALWORTH CE SCHOOL,"64,004.38",SCHOOLS IN FINANCIAL DIFFICULTY,SCHOOLS CAPITATION,2102964302,5001000072
07.06.2019,CHILDREN'S SERVICES,THE LUCY FAITHFULL FOUNDATION,"1,000.00",SCHOOLS-HR TRADED SERVICE,TRAINING,5902362368,1000005641
07.06.2019,CHILDREN'S SERVICES,GOOSE GREEN PRIMARY AND NURSERY SCHOOL,"2,888.62",TRADE UNIONS,SCHOOLS CAPITATION,2102964299,1000070613
07.06.2019,COMMUNITIES,MSR HOUSING,775,NO RECOURSE TO PUBLIC FUNDS,ACCOMMODATION CHARGES,5902362391,1000079359
07.06.2019,COMMUNITIES,METROPOLITAN SUPPORT TRUST,953.2,NO RECOURSE TO PUBLIC FUNDS,ACCOMMODATION CHARGES,5902362372,1000047547
07.06.2019,COMMUNITIES,METROPOLITAN SUPPORT TRUST,953.2,NO RECOURSE TO PUBLIC FUNDS,ACCOMMODATION CHARGES,5902362373,1000047547
07.06.2019,COMMUNITIES,EKAYA HOUSING ASSOCIATION,"1,042.22",NO RECOURSE TO PUBLIC FUNDS,ACCOMMODATION CHARGES,5902362407,1000003191
07.06.2019,COMMUNITIES,WILLOW ESTATE AGENTS (LONDON) LTD,"1,116.00",NO RECOURSE TO PUBLIC FUNDS,ACCOMMODATION CHARGES,5902362379,1000060607
07.06.2019,COMMUNITIES,WILLOW ESTATE AGENTS (LONDON) LTD,"1,271.00",NO RECOURSE TO PUBLIC FUNDS,ACCOMMODATION CHARGES,5902362377,1000060607
07.06.2019,COMMUNITIES,DINARDO SUPPORTS LTD,"1,520.00",NO RECOURSE TO PUBLIC FUNDS,ACCOMMODATION CHARGES,5902362344,1000063093
07.06.2019,COMMUNITIES,DINARDO SUPPORTS LTD,"1,520.00",NO RECOURSE TO PUBLIC FUNDS,ACCOMMODATION CHARGES,5902362348,1000063093
07.06.2019,COMMUNITIES,PURPLE PEBBLES(CHILD CARE) SERVICES,"3,512.86",NO RECOURSE TO PUBLIC FUNDS,ACCOMMODATION CHARGES,5902362356,1000070705
07.06.2019,COMMUNITIES,SOUTH OF THE RIVER INVESTMENTS LTD,"3,939.60",NO RECOURSE TO PUBLIC FUNDS,ACCOMMODATION CHARGES,5902362358,1000073638
07.06.2019,COMMUNITIES,S & G PROPERTIES,"6,797.99",NO RECOURSE TO PUBLIC FUNDS,ACCOMMODATION CHARGES,5902362370,1000005082
07.06.2019,COMMUNITIES,ROYTON REMOVALS,350,NO RECOURSE TO PUBLIC FUNDS,REMOVAL EXPENSES,5902362396,1000082770
07.06.2019,COMMUNITIES,ROYTON REMOVALS,350,NO RECOURSE TO PUBLIC FUNDS,REMOVAL EXPENSES,5902362397,1000082770
07.06.2019,COMMUNITIES,CARE UNLIMITED GROUP LTD,"6,066.39",NO RECOURSE TO PUBLIC FUNDS,RESIDENTIAL CARE,5902362402,11172617
07.06.2019,COMMUNITIES,GOOSE GREEN PRIMARY AND NURSERY SCHOOL,"7,500.00",SYRIAN REFUGEE RESETTLEMENT,SPECIFIC GOV'T ADMIN GRANT,5902362399,1000070613
07.06.2019,COMMUNITIES,ARARA (ASTBURY ROAD AREA RESIDENTS ASSOCIATION),"1,300.00",TENANTS FUND,GRANTS,5902361443,1000006449
07.06.2019,COMMUNITIES,CRANSTOUN,"3,500.00",TIER 4 SERVICES,OTHER CONTRACTORS,5902362288,11283784
07.06.2019,CUSTOMER EXPERIENCE HGF,ZFA ACCOMMODATION LTD,"1,710.00",NIGHTLY TA (NSC),EXTERNAL AGENCIES AND BODIES,5902362385,1000082620
07.06.2019,CUSTOMER EXPERIENCE HGF,ZFA ACCOMMODATION LTD,"44,682.40",NIGHTLY TA (NSC),EXTERNAL AGENCIES AND BODIES,5902362388,1000082620
07.06.2019,ELECTORAL SVCES,THE ASSOCIATION OF ELECTORAL ADMINISTRATION,939,BOROUGH COUNCIL ELECTIONS,MARKETING & PUBLICITY SERVICES,5902362353,1000045146
07.06.2019,ENVIRONMENT AND LEISURE,STANBURY BUILDING SERVICES LTD,495,CAPITAL PS (LEISURE),CONST'N MAIN CONTRACT - NON CERTIFICATED,2102964256,3000001967
07.06.2019,ENVIRONMENT AND LEISURE,STANBURY BUILDING SERVICES LTD,"1,250.00",CAPITAL PS (LEISURE),CONST'N MAIN CONTRACT - NON CERTIFICATED,2102964183,3000001967
07.06.2019,ENVIRONMENT AND LEISURE,LAND USE CONSULTANTS LTD,"5,247.00",CAPITAL PS (LEISURE),CONSTRUCTION FEES  - EXTERNAL,5902361608,11132526
07.06.2019,ENVIRONMENT AND LEISURE,STREET TREE CARE LTD,"22,876.00",CAPITAL PS (LEISURE),CONSTRUCTION FEES  - EXTERNAL,5902362337,1000055901
07.06.2019,ENVIRONMENT AND LEISURE,BARCHAM TREES PLC,747.4,CAPITAL PS (LEISURE),CONSTRUCTION FEES - INTERNAL,5902362341,11254891
07.06.2019,ENVIRONMENT AND LEISURE,BARCHAM TREES PLC,751.5,CAPITAL PS (LEISURE),CONSTRUCTION FEES - INTERNAL,5902362350,11254891
07.06.2019,ENVIRONMENT AND LEISURE,BARCHAM TREES PLC,"1,442.20",CAPITAL PS (LEISURE),CONSTRUCTION FEES - INTERNAL,5902362346,11254891
07.06.2019,ENVIRONMENT AND LEISURE,BARCHAM TREES PLC,"1,589.40",CAPITAL PS (LEISURE),CONSTRUCTION FEES - INTERNAL,5902362345,11254891
07.06.2019,ENVIRONMENT AND LEISURE,BARCHAM TREES PLC,"1,882.80",CAPITAL PS (LEISURE),CONSTRUCTION FEES - INTERNAL,5902362352,11254891
07.06.2019,ENVIRONMENT AND LEISURE,BARCHAM TREES PLC,"4,289.40",CAPITAL PS (LEISURE),CONSTRUCTION FEES - INTERNAL,5902362347,11254891
07.06.2019,ENVIRONMENT DIRECTORATE,E. H. ROBERTS - PENET GROUP LTD,410,COMMERCIAL VEH CTRL A/C,HIRED VEHICLES,5902361679,1000082787
07.06.2019,ENVIRONMENT DIRECTORATE,THE T.P. PARTNERSHIP,445,ESTATE CLEANING-GENERAL,OTHER CONTRACTORS,5902362389,1000045906
07.06.2019,ENVIRONMENT DIRECTORATE,AVIS BUDGET UK LTD,266.44,FLEET INSURANCE WORKS,TRANSPORT INSURANCE COSTS,5902361848,1000082785
07.06.2019,ENVIRONMENT DIRECTORATE,NPOWER,491.29,POLLUTION CONTROL,STATIONERY,5902362326,1000032342
07.06.2019,ENVIRONMENT DIRECTORATE,SECURE-A-FIELD LTD,259.1,PROJECT SUPPORT,STATIONERY,5902361115,1000072371
07.06.2019,ENVIRONMENT DIRECTORATE,WSP UK LTD,"7,446.28",TRANSPORT PROJECTS,OTHER CONTRACTORS,5902361634,1000054214
07.06.2019,F & C S EXCLUDING CORPORATE BUDGETS,ZYLPHA LTD,"3,000.00",LEGAL SVCES MANAGEMENT,SOFTWARE,5902362381,1000066877
07.06.2019,FINANCE & GOVERNANCE,LAND REGISTRY,331,REGENERATION,LEGAL & COURT FEES,6101888821,DIRECT DEBIT PAYMENT
07.06.2019,HOUSING GENERAL FUND,LIBRA CONSTRUCTION SERVICES LTD,"9,615.00",CAPITAL PS (REGEN),CONSTRUCTION MAIN CONTRACT -CERTIFICATED,2102964179,3000000875
07.06.2019,HOUSING HRA,BCS (ELECTRICAL & BUILDING SERVICES LTD),"111,084.44",BCS,I-WORLD CONTRACTORS HOLDING ACCOUNT,5902362308,1000062321
07.06.2019,HOUSING HRA,BRIDGEWATER ROOFING CONTRACTORS LTD,"79,943.66",BRC,I-WORLD CONTRACTORS HOLDING ACCOUNT,2102964173,3000001482
07.06.2019,HOUSING HRA,C&C BUILDERS LTD,"2,160.00",CAPITAL PS (HRA),CONST'N MAIN CONTRACT - NON CERTIFICATED,2102964178,3000001986
07.06.2019,HOUSING HRA,ASPEN BUILD (EAST ANGLIA) LTD,"36,502.62",CAPITAL PS (HRA),CONSTRUCTION MAIN CONTRACT -CERTIFICATED,2102964171,3000002075
07.06.2019,HOUSING HRA,STANBURY BUILDING SERVICES LTD,950,CAPITAL PS (REGEN),CONSTRUCTION FEES  - EXTERNAL,2102964184,3000001967
07.06.2019,HOUSING HRA,SPOKEMEAD MAINTENANCE LTD,"92,544.84",PAYMENTS CONTROL ACCOUNT - SPOKEMEAD,MANUAL CREDITORS,5902361873,1000059211
07.06.2019,HOUSING HRA,KENT COUNTY COUNCIL - LASER,"17,707.95",RESIDENT SERVICES BUSINESS SUPPORT,ELECTRICITY,6101888819,DIRECT DEBIT PAYMENT
07.06.2019,HOUSING HRA,KENT COUNTY COUNCIL - LASER,"58,326.19",RESIDENT SERVICES BUSINESS SUPPORT,ELECTRICITY,6101888820,DIRECT DEBIT PAYMENT
07.06.2019,HOUSING HRA,SMITH & BYFORD LTD,"452,216.65",SMITH AND BYFORD,I-WORLD CONTRACTORS HOLDING ACCOUNT,2102964182,3000000520
07.06.2019,HOUSING STRATEGY AND OPTIONS,WOODLANDS ESTATES LTD,910,HOMELESS PROJECTS,GRANTS,5902361687,1000082782
07.06.2019,LEISURE DIRECTORATE,LEE SNASHFOLD CREMETORIA MANAGEMENT,"1,506.00",CREMATORIUM,PROFESSIONAL FEES,5902362324,1000077845
07.06.2019,LEISURE DIRECTORATE,KENT COUNTY COUNCIL - LASER,"2,160.10",KINGSWOOD HOUSE,ELECTRICITY,5902362412,1000012926
07.06.2019,LEISURE DIRECTORATE,THE PLAY INSPECTION COMPANY LTD,"2,331.50",PLAY CENTRAL,OTHER R&M,5902361760,1000072456
07.06.2019,LEISURE DIRECTORATE,ROTHERHITHE FESTIVAL GROUP,"4,500.00",ROTHERHITHE FESTIVAL,GRANTS,5902362404,1000046401
07.06.2019,LEISURE DIRECTORATE,COMPLETE ECOLOGY LIMITED,"2,000.00",TREES O'HEADS,PROFESSIONAL FEES,5902362408,1000062303
07.06.2019,MODERNISATION HGF,ROYAL MAIL GROUP LTD,"3,625.85",160 TOOLEY ST.,POSTAGES,5902362316,1000008168
07.06.2019,MODERNISATION HGF,ROYAL MAIL GROUP LTD,"3,867.30",160 TOOLEY ST.,POSTAGES,5902362313,1000008168
07.06.2019,MODERNISATION HGF,ROYAL MAIL GROUP LTD,"4,513.75",160 TOOLEY ST.,POSTAGES,5902362312,1000008168
07.06.2019,MODERNISATION HGF,INTERSERVE (FACILITIES MANAGEMENT),"1,289.67",FM SERVICES BY INTERSERVE,BUILDING R&M,5902362294,1000070792
07.06.2019,MODERNISATION HGF,INTERSERVE (FACILITIES MANAGEMENT),"465,146.78",FM SERVICES BY INTERSERVE,INTEGRATED FACILITIES MANAGEMENT CONTRACT,5902362289,1000070792
07.06.2019,MODERNISATION HGF,WORKING ON WELLBEING LTD,"7,171.79",OPTIMA HEALTH,CONSULTANTS SERVICES,5902362311,1000077251
07.06.2019,MODERNISATION HGF,WORKING ON WELLBEING LTD,"30,574.46",OPTIMA HEALTH,CONSULTANTS SERVICES,5902362311,1000077251
07.06.2019,MODERNISATION HGF,WORKING ON WELLBEING LTD,"-9,627.41",OPTIMA HEALTH,MEDICAL / HEALTH & SAFETY SERVICES,5902350299,1000077251
07.06.2019,MODERNISATION HGF,WORKING ON WELLBEING LTD,"-2,258.28",OPTIMA HEALTH,MEDICAL / HEALTH & SAFETY SERVICES,5902350299,1000077251
07.06.2019,MODERNISATION HGF,KIER FACILITIES SERVICES LTD,"56,121.19",PLANNED FM SERVICES BY KIER,INTEGRATED FACILITIES MANAGEMENT CONTRACT,5902362284,1000040603
07.06.2019,MODERNISATION HGF,PULSE CORPORATION LTD,"1,925.00",REPAIR AND MAINTENANCE SERVICES,HARDWARE,5902362310,1000072911
07.06.2019,MODERNISATION HGF,EMS EVENTS LTD,898,REPAIR AND MAINTENANCE SERVICES,OP LEASE/HIRE CHARGES:PLANT/EQUIP/FURNIT,5902362383,1000057494
07.06.2019,MODERNISATION HGF,EMS EVENTS LTD,"4,822.80",REPAIR AND MAINTENANCE SERVICES,OP LEASE/HIRE CHARGES:PLANT/EQUIP/FURNIT,5902362382,1000057494
07.06.2019,PUBLIC HEALTH,WESTERN SUSSEX HOSPITALS NHS FOUNDATION TRUST C/O SERCO,257.62,SEXUAL HEALTH - STI,EXTERNAL AGENCIES AND BODIES,5902362334,1000077805
07.06.2019,PUBLIC HEALTH,KENT COMMUNITY HEALTH NHS TRUST,284.88,SEXUAL HEALTH - STI,EXTERNAL AGENCIES AND BODIES,5902362299,1000073298
07.06.2019,PUBLIC HEALTH,KENT COMMUNITY HEALTH NHS TRUST,292.32,SEXUAL HEALTH - STI,EXTERNAL AGENCIES AND BODIES,5902362369,1000073298
07.06.2019,RESIDENT SERVICES,RUSKIN PARK HOUSE LTD,843.39,CAMBERWELL,RENTS,5902362400,1000038111
07.06.2019,RESIDENT SERVICES,CARLISLE SECURITY SERVICES LTD,"12,884.64",CAMBERWELL,SECURITY SERVICES,5902362271,11212342
08.06.2019,ADULT SOCIAL CARE,PANCHSHEEL GLOBAL PVT LTD,"2,873.17",SAFEGUARDING TEAM,OTHER CONTRACTORS,5902362175,1000078003
08.06.2019,ASSET MANAGEMENT,FRANKHAM CONSULTANCY GROUP LTD,930,REPAIRS OPERATIONS,PAYMENTS FOR LEGAL SERVICES,5902361672,1000043952
08.06.2019,ASSET MANAGEMENT,FRANKHAM CONSULTANCY GROUP LTD,930,REPAIRS OPERATIONS,PAYMENTS FOR LEGAL SERVICES,5902361698,1000043952
08.06.2019,CENTRAL FUNCTIONS,MERLIN DMS LTD,826.69,HOME OWNERSHIP,OFFICE EXPENSES,5902362244,1000062300
08.06.2019,CUSTOMER EXPERIENCE HGF,BIRCHAM DYSON BELL,"123,448.75",LONDON BRIDGE INQUEST,LEGAL FEES & COURT COSTS,5902361766,1000048605
08.06.2019,HOUSING HRA,OCO LIMITED,"503,279.82",PAYMENTS CONTROL ACCOUNT - OCO,MANUAL CREDITORS,5902361977,1006066
08.06.2019,LEISURE DIRECTORATE,STYLE DOOR SYSTEMS LTD,340,CANADA WATER LIBRARY,EQUIPMENT PURCHASE & REPAIR,5902361797,1000081562
08.06.2019,LEISURE DIRECTORATE,KENT COUNTY COUNCIL - LASER,"2,038.02",DULWICH LIBRARY,ELECTRICITY,5902362374,1000012926
08.06.2019,MODERNISATION HGF,TMP (UK) LIMITED,"1,150.00",ADVERTISING,RECRUITMENT ADVERTISING,5902361633,1000041810
08.06.2019,MODERNISATION HGF,INTERSERVE (FACILITIES MANAGEMENT),"46,771.61",FM SERVICES BY INTERSERVE,BUILDING R&M,5902362295,1000070792
08.06.2019,MODERNISATION HGF,INTERSERVE (FACILITIES MANAGEMENT),"74,587.82",FM SERVICES BY INTERSERVE,SECURITY SERVICES,5902362292,1000070792
09.06.2019,ADULT SOCIAL CARE,ADESEK LIMITED,431.2,SAFEGUARDING TEAM,EXTERNAL AGENCIES AND BODIES,5902361937,1000082388
09.06.2019,ADULT SOCIAL CARE,ADESEK LIMITED,657.6,SAFEGUARDING TEAM,EXTERNAL AGENCIES AND BODIES,5902361940,1000082388
09.06.2019,CHIEF EXECUTIVE,COMMUNITY LINKS TRADING LTD,295,CAPITAL PS (REGEN),CONSTR'N SUB CONTRACT - NON CERTIFICATED,5902361754,1000049897
09.06.2019,CHIEF EXECUTIVE,COMMUNITY LINKS TRADING LTD,295,CAPITAL PS (REGEN),CONSTR'N SUB CONTRACT - NON CERTIFICATED,5902361761,1000049897
09.06.2019,CHILDREN AND ADULT,RSK ENVIRONMENT LTD,"1,596.97",CAPITAL PS (SOC SERV),CONSTRUCTION FEES,5902362191,1000057186
09.06.2019,CUSTOMER EXPERIENCE HGF,VALTECH LTD,380.64,BLUE BADGES,MATERIALS,5902361984,1000082245
09.06.2019,CUSTOMER EXPERIENCE HGF,BIRCHAM DYSON BELL,"223,833.85",LONDON BRIDGE INQUEST,LEGAL FEES & COURT COSTS,5902361765,1000048605
09.06.2019,ENVIRONMENT AND LEISURE,ADVANCED TRANSPORT RESEARCH LTD,620,CAPITAL PS (LEISURE),CONSTRUCTION,5902361815,1000070527
09.06.2019,ENVIRONMENT DIRECTORATE,LAND SKILLS TRAINING LTD,465,NON HOUSING GROUNDS,TRAINING,5902361922,1000060035
09.06.2019,F & C S EXCLUDING CORPORATE BUDGETS,BDO LLP,"44,010.00",INTERNAL AUDIT CONTRACTS,PAYMENTS FOR FINANCIAL SERVICES,5902361936,1000057898
09.06.2019,HOUSING HRA,RSK ENVIRONMENT LTD,"3,909.83",CAPITAL PS (HRA),CONSTRUCTION FEES,5902362191,1000057186
09.06.2019,HOUSING HRA,SPOKEMEAD MAINTENANCE LTD,"48,286.68",PAYMENTS CONTROL ACCOUNT - SPOKEMEAD,MANUAL CREDITORS,5902361872,1000059211
09.06.2019,LEISURE DIRECTORATE,VIVEDIA LIMITED,745,CREMATORIUM,SUBSCRIPTIONS,5902362323,1000064867
09.06.2019,PUBLIC HEALTH,QUALITY MEDICAL SOLUTIONS LTD (QMS),"17,875.75",HEALTH CHECKS CONTRACTS,EXTERNAL AGENCIES AND BODIES,5902361906,1000072192
10.06.2019,ADULT SOCIAL CARE,LORDSHIP FLOORING COMPANY,914.2,APPOINTEESHIPS,OTHER PAYMENTS FOR CLIENTS,2102967043,1000074718
10.06.2019,ADULT SOCIAL CARE,GROVE HOTEL LTD,"1,085.00",APPOINTEESHIPS,OTHER PAYMENTS FOR CLIENTS,5902362487,1000043663
10.06.2019,ADULT SOCIAL CARE,COATES SOLICITORS LTD,"11,182.72",APPOINTEESHIPS,OTHER PAYMENTS FOR CLIENTS,2102967041,1000082794
10.06.2019,ADULT SOCIAL CARE,REDACTED PERSONAL DATA,277.3,APPOINTEESHIPS,OTHER PAYMENTS FOR CLIENTS,REDACTED,REDACTED
10.06.2019,ADULT SOCIAL CARE,PAULWAYS KENNELS,310,ASC OP SOUTH TEAM,MISCELLANEOUS EXPENSES,5902362448,1068767
10.06.2019,ADULT SOCIAL CARE,PAULWAYS KENNELS,557,ASC OP SOUTH TEAM,MISCELLANEOUS EXPENSES,5902362486,1068767
10.06.2019,ADULT SOCIAL CARE,ALLPAY NET LIMITED,274.78,CLIENT FINANCE TEAM,PAYMENTS FOR FINANCIAL SERVICES,5902354505,1000043001
10.06.2019,ADULT SOCIAL CARE,REDACTED PERSONAL DATA,320,FAMILY LINK,PAYMENTS TO CARERS,REDACTED,REDACTED
10.06.2019,ADULT SOCIAL CARE,REDACTED PERSONAL DATA,365.33,FAMILY LINK,PAYMENTS TO CARERS,REDACTED,REDACTED
10.06.2019,ADULT SOCIAL CARE,PAULWAYS KENNELS,670,HOSPITAL DISCHARGE TEAM,MISCELLANEOUS EXPENSES,5902362478,1068767
10.06.2019,ADULT SOCIAL CARE,ACCESS MOBILITY TRANSPORT LTD,"2,456.00",LD LTS 18-64,CLIENT TRANSPORT,2102965667,1000074637
10.06.2019,ADULT SOCIAL CARE,THE CAMDEN SOCIETY (SOCIAL CARE),340.08,LD LTS 18-64,DAYCARE,2102965613,1000036369
10.06.2019,ADULT SOCIAL CARE,THE CAMDEN SOCIETY (SOCIAL CARE),384,LD LTS 18-64,DAYCARE,2102965641,1000036369
10.06.2019,ADULT SOCIAL CARE,AURORA OPTIONS,408,LD LTS 18-64,DAYCARE,2102964921,1000066695
10.06.2019,ADULT SOCIAL CARE,SAFFRONLAND HOMES (HESTIA),462.36,LD LTS 18-64,DAYCARE,2102966451,1000021616
10.06.2019,ADULT SOCIAL CARE,THE CAMDEN SOCIETY (SOCIAL CARE),465.6,LD LTS 18-64,DAYCARE,2102965624,1000036369
10.06.2019,ADULT SOCIAL CARE,THE CAMDEN SOCIETY (SOCIAL CARE),465.6,LD LTS 18-64,DAYCARE,2102965625,1000036369
10.06.2019,ADULT SOCIAL CARE,THE CAMDEN SOCIETY (SOCIAL CARE),465.6,LD LTS 18-64,DAYCARE,2102965651,1000036369
10.06.2019,ADULT SOCIAL CARE,THE CAMDEN SOCIETY (SOCIAL CARE),480,LD LTS 18-64,DAYCARE,2102965619,1000036369
10.06.2019,ADULT SOCIAL CARE,THE CAMDEN SOCIETY (SOCIAL CARE),500,LD LTS 18-64,DAYCARE,2102965628,1000036369
10.06.2019,ADULT SOCIAL CARE,THE CAMDEN SOCIETY (SOCIAL CARE),594,LD LTS 18-64,DAYCARE,2102965647,1000036369
10.06.2019,ADULT SOCIAL CARE,THE CAMDEN SOCIETY (SOCIAL CARE),599.36,LD LTS 18-64,DAYCARE,2102965630,1000036369
10.06.2019,ADULT SOCIAL CARE,THE CAMDEN SOCIETY (SOCIAL CARE),609.6,LD LTS 18-64,DAYCARE,2102965616,1000036369
10.06.2019,ADULT SOCIAL CARE,THE CAMDEN SOCIETY (SOCIAL CARE),612,LD LTS 18-64,DAYCARE,2102965655,1000036369
10.06.2019,ADULT SOCIAL CARE,THE CAMDEN SOCIETY (SOCIAL CARE),674.16,LD LTS 18-64,DAYCARE,2102965653,1000036369
10.06.2019,ADULT SOCIAL CARE,THE CAMDEN SOCIETY (SOCIAL CARE),676.8,LD LTS 18-64,DAYCARE,2102965633,1000036369
10.06.2019,ADULT SOCIAL CARE,THE CAMDEN SOCIETY (SOCIAL CARE),704,LD LTS 18-64,DAYCARE,2102965635,1000036369
10.06.2019,ADULT SOCIAL CARE,THE CAMDEN SOCIETY (SOCIAL CARE),704,LD LTS 18-64,DAYCARE,2102965643,1000036369
10.06.2019,ADULT SOCIAL CARE,THE CAMDEN SOCIETY (SOCIAL CARE),704,LD LTS 18-64,DAYCARE,2102965649,1000036369
10.06.2019,ADULT SOCIAL CARE,THE CAMDEN SOCIETY (SOCIAL CARE),704,LD LTS 18-64,DAYCARE,2102965661,1000036369
10.06.2019,ADULT SOCIAL CARE,THE CAMDEN SOCIETY (SOCIAL CARE),705.6,LD LTS 18-64,DAYCARE,2102965623,1000036369
10.06.2019,ADULT SOCIAL CARE,THE CAMDEN SOCIETY (SOCIAL CARE),705.6,LD LTS 18-64,DAYCARE,2102965650,1000036369
10.06.2019,ADULT SOCIAL CARE,SAFFRONLAND HOMES (HESTIA),750.76,LD LTS 18-64,DAYCARE,2102966791,1000021616
10.06.2019,ADULT SOCIAL CARE,THE CAMDEN SOCIETY (SOCIAL CARE),753.6,LD LTS 18-64,DAYCARE,2102965627,1000036369
10.06.2019,ADULT SOCIAL CARE,THE CAMDEN SOCIETY (SOCIAL CARE),753.6,LD LTS 18-64,DAYCARE,2102965634,1000036369
10.06.2019,ADULT SOCIAL CARE,THE CAMDEN SOCIETY (SOCIAL CARE),753.6,LD LTS 18-64,DAYCARE,2102965646,1000036369
10.06.2019,ADULT SOCIAL CARE,THE CAMDEN SOCIETY (SOCIAL CARE),753.6,LD LTS 18-64,DAYCARE,2102965656,1000036369
10.06.2019,ADULT SOCIAL CARE,THE CAMDEN SOCIETY (SOCIAL CARE),897.6,LD LTS 18-64,DAYCARE,2102965654,1000036369
10.06.2019,ADULT SOCIAL CARE,THE CAMDEN SOCIETY (SOCIAL CARE),903.6,LD LTS 18-64,DAYCARE,2102965614,1000036369
10.06.2019,ADULT SOCIAL CARE,SAFFRONLAND HOMES (HESTIA),918.76,LD LTS 18-64,DAYCARE,2102966953,1000021616
10.06.2019,ADULT SOCIAL CARE,THE CAMDEN SOCIETY (SOCIAL CARE),960,LD LTS 18-64,DAYCARE,2102965611,1000036369
10.06.2019,ADULT SOCIAL CARE,THE CAMDEN SOCIETY (SOCIAL CARE),960,LD LTS 18-64,DAYCARE,2102965664,1000036369
10.06.2019,ADULT SOCIAL CARE,THE CAMDEN SOCIETY (SOCIAL CARE),988,LD LTS 18-64,DAYCARE,2102965626,1000036369
10.06.2019,ADULT SOCIAL CARE,THE CAMDEN SOCIETY (SOCIAL CARE),988,LD LTS 18-64,DAYCARE,2102965648,1000036369
10.06.2019,ADULT SOCIAL CARE,THE CAMDEN SOCIETY (SOCIAL CARE),990,LD LTS 18-64,DAYCARE,2102965637,1000036369
10.06.2019,ADULT SOCIAL CARE,THE CAMDEN SOCIETY (SOCIAL CARE),"1,056.00",LD LTS 18-64,DAYCARE,2102965640,1000036369
10.06.2019,ADULT SOCIAL CARE,THE CAMDEN SOCIETY (SOCIAL CARE),"1,056.00",LD LTS 18-64,DAYCARE,2102965663,1000036369
10.06.2019,ADULT SOCIAL CARE,THE CAMDEN SOCIETY (SOCIAL CARE),"1,056.00",LD LTS 18-64,DAYCARE,2102965666,1000036369
10.06.2019,ADULT SOCIAL CARE,THE CAMDEN SOCIETY (SOCIAL CARE),"1,128.00",LD LTS 18-64,DAYCARE,2102965642,1000036369
10.06.2019,ADULT SOCIAL CARE,THE CAMDEN SOCIETY (SOCIAL CARE),"1,128.00",LD LTS 18-64,DAYCARE,2102965645,1000036369
10.06.2019,ADULT SOCIAL CARE,THE CAMDEN SOCIETY (SOCIAL CARE),"1,408.00",LD LTS 18-64,DAYCARE,2102965659,1000036369
10.06.2019,ADULT SOCIAL CARE,THE CAMDEN SOCIETY (SOCIAL CARE),"1,451.52",LD LTS 18-64,DAYCARE,2102965615,1000036369
10.06.2019,ADULT SOCIAL CARE,THE CAMDEN SOCIETY (SOCIAL CARE),"1,473.60",LD LTS 18-64,DAYCARE,2102965639,1000036369
10.06.2019,ADULT SOCIAL CARE,THE CAMDEN SOCIETY (SOCIAL CARE),"1,500.00",LD LTS 18-64,DAYCARE,2102965620,1000036369
10.06.2019,ADULT SOCIAL CARE,THE CAMDEN SOCIETY (SOCIAL CARE),"1,536.00",LD LTS 18-64,DAYCARE,2102965657,1000036369
10.06.2019,ADULT SOCIAL CARE,THE CAMDEN SOCIETY (SOCIAL CARE),"1,634.76",LD LTS 18-64,DAYCARE,2102965617,1000036369
10.06.2019,ADULT SOCIAL CARE,THE CAMDEN SOCIETY (SOCIAL CARE),"1,760.00",LD LTS 18-64,DAYCARE,2102965610,1000036369
10.06.2019,ADULT SOCIAL CARE,THE CAMDEN SOCIETY (SOCIAL CARE),"1,760.00",LD LTS 18-64,DAYCARE,2102965612,1000036369
10.06.2019,ADULT SOCIAL CARE,THE CAMDEN SOCIETY (SOCIAL CARE),"1,760.00",LD LTS 18-64,DAYCARE,2102965658,1000036369
10.06.2019,ADULT SOCIAL CARE,THE CAMDEN SOCIETY (SOCIAL CARE),"1,824.40",LD LTS 18-64,DAYCARE,2102965662,1000036369
10.06.2019,ADULT SOCIAL CARE,THE CAMDEN SOCIETY (SOCIAL CARE),"1,848.00",LD LTS 18-64,DAYCARE,2102965618,1000036369
10.06.2019,ADULT SOCIAL CARE,THE CAMDEN SOCIETY (SOCIAL CARE),"1,848.00",LD LTS 18-64,DAYCARE,2102965644,1000036369
10.06.2019,ADULT SOCIAL CARE,THE CAMDEN SOCIETY (SOCIAL CARE),"1,924.00",LD LTS 18-64,DAYCARE,2102965638,1000036369
10.06.2019,ADULT SOCIAL CARE,THE CAMDEN SOCIETY (SOCIAL CARE),"2,000.00",LD LTS 18-64,DAYCARE,2102965632,1000036369
10.06.2019,ADULT SOCIAL CARE,THE CAMDEN SOCIETY (SOCIAL CARE),"2,020.00",LD LTS 18-64,DAYCARE,2102965629,1000036369
10.06.2019,ADULT SOCIAL CARE,THE CAMDEN SOCIETY (SOCIAL CARE),"2,160.00",LD LTS 18-64,DAYCARE,2102965631,1000036369
10.06.2019,ADULT SOCIAL CARE,THE CAMDEN SOCIETY (SOCIAL CARE),"2,374.00",LD LTS 18-64,DAYCARE,2102965636,1000036369
10.06.2019,ADULT SOCIAL CARE,THE CAMDEN SOCIETY (SOCIAL CARE),"2,448.00",LD LTS 18-64,DAYCARE,2102965660,1000036369
10.06.2019,ADULT SOCIAL CARE,THE CAMDEN SOCIETY (SOCIAL CARE),"2,489.68",LD LTS 18-64,DAYCARE,2102965652,1000036369
10.06.2019,ADULT SOCIAL CARE,THE REGARD PARTNERSHIP,-442.6,LD LTS 18-64,DISCRETIONARY FLEXIBLE FEES & INCOME,2102965542,1823223
10.06.2019,ADULT SOCIAL CARE,PEOPLEPLUS ILS,-327,LD LTS 18-64,DISCRETIONARY FLEXIBLE FEES & INCOME,2102965314,1000061886
10.06.2019,ADULT SOCIAL CARE,SWK DISABLEMENT ASSN,"2,122.56",LD LTS 18-64,HOMECARE - C&V,2102965601,1000011698
10.06.2019,ADULT SOCIAL CARE,TRUECARE HAVEN SUPPORT LTD,"1,520.00",LD LTS 18-64,HOMECARE - SPOT,2102964473,1000078974
10.06.2019,ADULT SOCIAL CARE,HORNCASTLE CARE CENTRE,-402.6,LD LTS 18-64,"MAND STATUTORY CHARGES, NURSING",2102966885,1000060228
10.06.2019,ADULT SOCIAL CARE,NEXUS PROGRAMME LTD,"-3,824.70",LD LTS 18-64,"MAND STATUTORY CHARGES, RESIDENTIAL",2102965899,1000025336
10.06.2019,ADULT SOCIAL CARE,THE PADDOCK (THE SWALLOW GROUP),-552.4,LD LTS 18-64,"MAND STATUTORY CHARGES, RESIDENTIAL",2102966106,11153854
10.06.2019,ADULT SOCIAL CARE,THE PADDOCK (THE SWALLOW GROUP),-552.4,LD LTS 18-64,"MAND STATUTORY CHARGES, RESIDENTIAL",2102966118,11153854
10.06.2019,ADULT SOCIAL CARE,AITCH CARE HOMES (LONDON) LTD,-552.4,LD LTS 18-64,"MAND STATUTORY CHARGES, RESIDENTIAL",2102966156,1000059432
10.06.2019,ADULT SOCIAL CARE,SAFFRONLAND HOMES,-552.4,LD LTS 18-64,"MAND STATUTORY CHARGES, RESIDENTIAL",2102966437,1000072152
10.06.2019,ADULT SOCIAL CARE,ANCHOR TRUST,-552.4,LD LTS 18-64,"MAND STATUTORY CHARGES, RESIDENTIAL",2102966574,11257534
10.06.2019,ADULT SOCIAL CARE,CARE MANAGEMENT GROUP,-552.4,LD LTS 18-64,"MAND STATUTORY CHARGES, RESIDENTIAL",2102966746,1000040475
10.06.2019,ADULT SOCIAL CARE,CLEARWATER CARE (HACKNEY) LTD,-430.6,LD LTS 18-64,"MAND STATUTORY CHARGES, RESIDENTIAL",2102965996,1000070479
10.06.2019,ADULT SOCIAL CARE,CRAEGMOOR WHEELHOUSE PRIORY,-427.4,LD LTS 18-64,"MAND STATUTORY CHARGES, RESIDENTIAL",2102967029,1000068452
10.06.2019,ADULT SOCIAL CARE,THE MEATH,-426.4,LD LTS 18-64,"MAND STATUTORY CHARGES, RESIDENTIAL",2102966141,1000056796
10.06.2019,ADULT SOCIAL CARE,GLEN CARE GROUP,-409.52,LD LTS 18-64,"MAND STATUTORY CHARGES, RESIDENTIAL",2102966703,1000050223
10.06.2019,ADULT SOCIAL CARE,THE REGARD PARTNERSHIP,-409,LD LTS 18-64,"MAND STATUTORY CHARGES, RESIDENTIAL",2102965826,1823223
10.06.2019,ADULT SOCIAL CARE,CRAEGMOOR WILLOWS HYTHE PRIORY,-409,LD LTS 18-64,"MAND STATUTORY CHARGES, RESIDENTIAL",2102965860,1000072287
10.06.2019,ADULT SOCIAL CARE,BRANDON TRUST,-409,LD LTS 18-64,"MAND STATUTORY CHARGES, RESIDENTIAL",2102965880,1000042417
10.06.2019,ADULT SOCIAL CARE,BRANDON TRUST,-409,LD LTS 18-64,"MAND STATUTORY CHARGES, RESIDENTIAL",2102965926,1000042417
10.06.2019,ADULT SOCIAL CARE,CHOICE CARE GROUP,-409,LD LTS 18-64,"MAND STATUTORY CHARGES, RESIDENTIAL",2102965981,1572506
10.06.2019,ADULT SOCIAL CARE,BRANDON TRUST,-409,LD LTS 18-64,"MAND STATUTORY CHARGES, RESIDENTIAL",2102965986,1000042417
10.06.2019,ADULT SOCIAL CARE,VOYAGE LTD (EVESLEIGH KENT),-409,LD LTS 18-64,"MAND STATUTORY CHARGES, RESIDENTIAL",2102966039,1000041320
10.06.2019,ADULT SOCIAL CARE,BRANDON TRUST,-409,LD LTS 18-64,"MAND STATUTORY CHARGES, RESIDENTIAL",2102966126,1000042417
10.06.2019,ADULT SOCIAL CARE,THE REGARD PARTNERSHIP,-409,LD LTS 18-64,"MAND STATUTORY CHARGES, RESIDENTIAL",2102966186,1823223
10.06.2019,ADULT SOCIAL CARE,THE REGARD PARTNERSHIP,-409,LD LTS 18-64,"MAND STATUTORY CHARGES, RESIDENTIAL",2102966265,1823223
10.06.2019,ADULT SOCIAL CARE,BRANDON TRUST,-409,LD LTS 18-64,"MAND STATUTORY CHARGES, RESIDENTIAL",2102966279,1000042417
10.06.2019,ADULT SOCIAL CARE,BRANDON TRUST,-409,LD LTS 18-64,"MAND STATUTORY CHARGES, RESIDENTIAL",2102966396,1000042417
10.06.2019,ADULT SOCIAL CARE,CRAEGMOOR DEVONSHIRE ROAD PRIORY,-409,LD LTS 18-64,"MAND STATUTORY CHARGES, RESIDENTIAL",2102966455,1000068453
10.06.2019,ADULT SOCIAL CARE,ROYAL MENCAP SOCIETY,-409,LD LTS 18-64,"MAND STATUTORY CHARGES, RESIDENTIAL",2102966473,1000034706
10.06.2019,ADULT SOCIAL CARE,SAFFRONLAND HOMES,-409,LD LTS 18-64,"MAND STATUTORY CHARGES, RESIDENTIAL",2102966565,1000072153
10.06.2019,ADULT SOCIAL CARE,BRANDON TRUST,-409,LD LTS 18-64,"MAND STATUTORY CHARGES, RESIDENTIAL",2102966621,1000042417
10.06.2019,ADULT SOCIAL CARE,BRANDON TRUST,-409,LD LTS 18-64,"MAND STATUTORY CHARGES, RESIDENTIAL",2102966623,1000042417
10.06.2019,ADULT SOCIAL CARE,BRANDON TRUST,-409,LD LTS 18-64,"MAND STATUTORY CHARGES, RESIDENTIAL",2102966692,1000042417
10.06.2019,ADULT SOCIAL CARE,BRANDON TRUST,-409,LD LTS 18-64,"MAND STATUTORY CHARGES, RESIDENTIAL",2102966754,1000042417
10.06.2019,ADULT SOCIAL CARE,BRANDON TRUST,-409,LD LTS 18-64,"MAND STATUTORY CHARGES, RESIDENTIAL",2102966838,1000042417
10.06.2019,ADULT SOCIAL CARE,MAYFIELD CHILDRENS HOME,-409,LD LTS 18-64,"MAND STATUTORY CHARGES, RESIDENTIAL",2102966895,1000054051
10.06.2019,ADULT SOCIAL CARE,THE REGARD PARTNERSHIP,-409,LD LTS 18-64,"MAND STATUTORY CHARGES, RESIDENTIAL",2102967003,1823223
10.06.2019,ADULT SOCIAL CARE,CARE MANAGEMENT GROUP,-408.04,LD LTS 18-64,"MAND STATUTORY CHARGES, RESIDENTIAL",2102965802,1000040475
10.06.2019,ADULT SOCIAL CARE,HAZELDENE LTD,-402.6,LD LTS 18-64,"MAND STATUTORY CHARGES, RESIDENTIAL",2102966290,1000019679
10.06.2019,ADULT SOCIAL CARE,31 WOODBOURNE (FRANCES TAYLOR FOUNDATION),-402.6,LD LTS 18-64,"MAND STATUTORY CHARGES, RESIDENTIAL",2102966316,1000063870
10.06.2019,ADULT SOCIAL CARE,CHOICE CARE GROUP,-402.6,LD LTS 18-64,"MAND STATUTORY CHARGES, RESIDENTIAL",2102966602,1572506
10.06.2019,ADULT SOCIAL CARE,THE FRANCES TAYLOR FOUNDATION,-402.6,LD LTS 18-64,"MAND STATUTORY CHARGES, RESIDENTIAL",2102966752,1000007274
10.06.2019,ADULT SOCIAL CARE,HAZELDENE LTD,-402.6,LD LTS 18-64,"MAND STATUTORY CHARGES, RESIDENTIAL",2102966965,1000019679
10.06.2019,ADULT SOCIAL CARE,SENSE,-402.6,LD LTS 18-64,"MAND STATUTORY CHARGES, RESIDENTIAL",2102966986,1000046797
10.06.2019,ADULT SOCIAL CARE,ASHDENE HOUSE LIMITED,-401.56,LD LTS 18-64,"MAND STATUTORY CHARGES, RESIDENTIAL",2102966625,1000021007
10.06.2019,ADULT SOCIAL CARE,THE REGARD PARTNERSHIP (INGLEWOOD HSE),-400.6,LD LTS 18-64,"MAND STATUTORY CHARGES, RESIDENTIAL",2102965870,11307451
10.06.2019,ADULT SOCIAL CARE,OGILVIE COURT,-400.6,LD LTS 18-64,"MAND STATUTORY CHARGES, RESIDENTIAL",2102965876,1910302
10.06.2019,ADULT SOCIAL CARE,CRAEGMOOR (WINDSOR HOUSE),-400.6,LD LTS 18-64,"MAND STATUTORY CHARGES, RESIDENTIAL",2102966706,1000072462
10.06.2019,ADULT SOCIAL CARE,INSIGHT,-395.8,LD LTS 18-64,"MAND STATUTORY CHARGES, RESIDENTIAL",2102966234,1825618
10.06.2019,ADULT SOCIAL CARE,THE REGARD PARTNERSHIP,-393.36,LD LTS 18-64,"MAND STATUTORY CHARGES, RESIDENTIAL",2102966351,1823223
10.06.2019,ADULT SOCIAL CARE,PLUS SERVICES,-387.2,LD LTS 18-64,"MAND STATUTORY CHARGES, RESIDENTIAL",2102966445,1000021241
10.06.2019,ADULT SOCIAL CARE,CLACTON FAMILY TRUST LTD,-386.6,LD LTS 18-64,"MAND STATUTORY CHARGES, RESIDENTIAL",2102966250,1000012183
10.06.2019,ADULT SOCIAL CARE,CHOICE SUPPORT,-384.8,LD LTS 18-64,"MAND STATUTORY CHARGES, RESIDENTIAL",2102966600,1000031156
10.06.2019,ADULT SOCIAL CARE,CRAEGMOOR HEALTHCARE,-372.6,LD LTS 18-64,"MAND STATUTORY CHARGES, RESIDENTIAL",2102966497,1323845
10.06.2019,ADULT SOCIAL CARE,CHOICE CARE GROUP,-365,LD LTS 18-64,"MAND STATUTORY CHARGES, RESIDENTIAL",2102966363,1572506
10.06.2019,ADULT SOCIAL CARE,DIAGRAMA HEALTH CARE,-360.8,LD LTS 18-64,"MAND STATUTORY CHARGES, RESIDENTIAL",2102966073,1000075492
10.06.2019,ADULT SOCIAL CARE,THE MEATH,-360.8,LD LTS 18-64,"MAND STATUTORY CHARGES, RESIDENTIAL",2102966398,1000056796
10.06.2019,ADULT SOCIAL CARE,GROVE CARE PARTNERSHIP,-355.32,LD LTS 18-64,"MAND STATUTORY CHARGES, RESIDENTIAL",2102966944,1000052893
10.06.2019,ADULT SOCIAL CARE,VOYAGE LTD (EVESLEIGH KENT),-349.6,LD LTS 18-64,"MAND STATUTORY CHARGES, RESIDENTIAL",2102966865,1000041320
10.06.2019,ADULT SOCIAL CARE,VALUE IN CARE LTD,-348.6,LD LTS 18-64,"MAND STATUTORY CHARGES, RESIDENTIAL",2102965828,1000041975
10.06.2019,ADULT SOCIAL CARE,FIR TREE LODGE (SEE ABILITY),-348.6,LD LTS 18-64,"MAND STATUTORY CHARGES, RESIDENTIAL",2102966988,1000052257
10.06.2019,ADULT SOCIAL CARE,CARE MANAGEMENT GROUP,-343.8,LD LTS 18-64,"MAND STATUTORY CHARGES, RESIDENTIAL",2102965804,1000040475
10.06.2019,ADULT SOCIAL CARE,LEONARD CHESHIRE (GARDEN HOUSE),-343.8,LD LTS 18-64,"MAND STATUTORY CHARGES, RESIDENTIAL",2102966426,1000049748
10.06.2019,ADULT SOCIAL CARE,CHOICE SUPPORT,-340.84,LD LTS 18-64,"MAND STATUTORY CHARGES, RESIDENTIAL",2102966998,1104183
10.06.2019,ADULT SOCIAL CARE,BRANDON TRUST,-340.12,LD LTS 18-64,"MAND STATUTORY CHARGES, RESIDENTIAL",2102966728,1000042417
10.06.2019,ADULT SOCIAL CARE,INSIGHT,-335.56,LD LTS 18-64,"MAND STATUTORY CHARGES, RESIDENTIAL",2102966656,1825618
10.06.2019,ADULT SOCIAL CARE,COMMUNITY INTEGRATED CARE,-327.12,LD LTS 18-64,"MAND STATUTORY CHARGES, RESIDENTIAL",2102967010,1000072886
10.06.2019,ADULT SOCIAL CARE,ENDURANCE CARE LTD,-327,LD LTS 18-64,"MAND STATUTORY CHARGES, RESIDENTIAL",2102965814,1000080552
10.06.2019,ADULT SOCIAL CARE,SEEABILITY,-327,LD LTS 18-64,"MAND STATUTORY CHARGES, RESIDENTIAL",2102965952,1000043641
10.06.2019,ADULT SOCIAL CARE,FERRY CARE LTD,-327,LD LTS 18-64,"MAND STATUTORY CHARGES, RESIDENTIAL",2102966004,1000041775
10.06.2019,ADULT SOCIAL CARE,NATIONAL AUTISTIC SOCIETY CARE PACK,-327,LD LTS 18-64,"MAND STATUTORY CHARGES, RESIDENTIAL",2102966017,1000020538
10.06.2019,ADULT SOCIAL CARE,SAFFRONLAND HOMES,-327,LD LTS 18-64,"MAND STATUTORY CHARGES, RESIDENTIAL",2102966026,1000072152
10.06.2019,ADULT SOCIAL CARE,BROADHAM CARE LIMITED,-327,LD LTS 18-64,"MAND STATUTORY CHARGES, RESIDENTIAL",2102966064,1000057411
10.06.2019,ADULT SOCIAL CARE,THE DRIVE CARE HOMES LTD (ADULTS),-327,LD LTS 18-64,"MAND STATUTORY CHARGES, RESIDENTIAL",2102966272,1000055145
10.06.2019,ADULT SOCIAL CARE,DIAGRAMA HEALTH CARE,-327,LD LTS 18-64,"MAND STATUTORY CHARGES, RESIDENTIAL",2102966297,1000075492
10.06.2019,ADULT SOCIAL CARE,THE AVENUES TRUST,-327,LD LTS 18-64,"MAND STATUTORY CHARGES, RESIDENTIAL",2102966389,1981708
10.06.2019,ADULT SOCIAL CARE,SAFFRONLAND HOMES (HESTIA),-327,LD LTS 18-64,"MAND STATUTORY CHARGES, RESIDENTIAL",2102966450,1000021616
10.06.2019,ADULT SOCIAL CARE,SAFFRONLAND HOMES (HESTIA),-327,LD LTS 18-64,"MAND STATUTORY CHARGES, RESIDENTIAL",2102966492,1000021616
10.06.2019,ADULT SOCIAL CARE,RYDE HOUSE,-327,LD LTS 18-64,"MAND STATUTORY CHARGES, RESIDENTIAL",2102966526,1022373
10.06.2019,ADULT SOCIAL CARE,SAFFRONLAND HOMES,-327,LD LTS 18-64,"MAND STATUTORY CHARGES, RESIDENTIAL",2102966585,1000072152
10.06.2019,ADULT SOCIAL CARE,ASHINGHAM HOUSE LIMITED,-327,LD LTS 18-64,"MAND STATUTORY CHARGES, RESIDENTIAL",2102966607,1000016504
10.06.2019,ADULT SOCIAL CARE,ACTION ON HEARING LOSS,-327,LD LTS 18-64,"MAND STATUTORY CHARGES, RESIDENTIAL",2102966630,1000014488
10.06.2019,ADULT SOCIAL CARE,SAFFRONLAND HOMES (HESTIA),-327,LD LTS 18-64,"MAND STATUTORY CHARGES, RESIDENTIAL",2102966730,1000021616
10.06.2019,ADULT SOCIAL CARE,GLENPAT HOMES,-327,LD LTS 18-64,"MAND STATUTORY CHARGES, RESIDENTIAL",2102966734,1000059312
10.06.2019,ADULT SOCIAL CARE,DIAGRAMA HEALTH CARE,-327,LD LTS 18-64,"MAND STATUTORY CHARGES, RESIDENTIAL",2102966775,1000075492
10.06.2019,ADULT SOCIAL CARE,ASD UNIQUE SERVICES LTD,-327,LD LTS 18-64,"MAND STATUTORY CHARGES, RESIDENTIAL",2102966777,1000038819
10.06.2019,ADULT SOCIAL CARE,SAFFRONLAND HOMES (HESTIA),-327,LD LTS 18-64,"MAND STATUTORY CHARGES, RESIDENTIAL",2102966790,1000021616
10.06.2019,ADULT SOCIAL CARE,DIAGRAMA HEALTH CARE,-327,LD LTS 18-64,"MAND STATUTORY CHARGES, RESIDENTIAL",2102966793,1000075492
10.06.2019,ADULT SOCIAL CARE,THE CHILTERNS - OPTIMA CARE,-327,LD LTS 18-64,"MAND STATUTORY CHARGES, RESIDENTIAL",2102966795,1000042209
10.06.2019,ADULT SOCIAL CARE,LEONARD CHESHIRE (GARDEN HOUSE),-327,LD LTS 18-64,"MAND STATUTORY CHARGES, RESIDENTIAL",2102966840,1000049748
10.06.2019,ADULT SOCIAL CARE,LEONARD CHESHIRE (THICKET ROAD),-327,LD LTS 18-64,"MAND STATUTORY CHARGES, RESIDENTIAL",2102966921,1000049761
10.06.2019,ADULT SOCIAL CARE,SAFFRONLAND HOMES (HESTIA),-327,LD LTS 18-64,"MAND STATUTORY CHARGES, RESIDENTIAL",2102966952,1000021616
10.06.2019,ADULT SOCIAL CARE,VOYAGE LTD (EVESLEIGH KENT),-327,LD LTS 18-64,"MAND STATUTORY CHARGES, RESIDENTIAL",2102966961,1000041320
10.06.2019,ADULT SOCIAL CARE,CARLTON NURSING HOMES LTD,-327,LD LTS 18-64,"MAND STATUTORY CHARGES, RESIDENTIAL",2102966975,1000070431
10.06.2019,ADULT SOCIAL CARE,CHOICE CARE GROUP,-327,LD LTS 18-64,"MAND STATUTORY CHARGES, RESIDENTIAL",2102966994,1572506
10.06.2019,ADULT SOCIAL CARE,STEPPING STONES RESETTLEMENT UNIT,-327,LD LTS 18-64,"MAND STATUTORY CHARGES, RESIDENTIAL",2102967001,1000032806
10.06.2019,ADULT SOCIAL CARE,BRANDON TRUST,-327,LD LTS 18-64,"MAND STATUTORY CHARGES, RESIDENTIAL",2102967020,1000042417
10.06.2019,ADULT SOCIAL CARE,VOYAGE CARE (MOUNTEARL),-321.8,LD LTS 18-64,"MAND STATUTORY CHARGES, RESIDENTIAL",2102966088,1000078173
10.06.2019,ADULT SOCIAL CARE,ATHOL HOUSE LONDON CHESHIRE HOMES,-321.8,LD LTS 18-64,"MAND STATUTORY CHARGES, RESIDENTIAL",2102966813,1022907
10.06.2019,ADULT SOCIAL CARE,THE DRIVE CARE HOMES LTD,-266.2,LD LTS 18-64,"MAND STATUTORY CHARGES, RESIDENTIAL",2102965811,1000003889
10.06.2019,ADULT SOCIAL CARE,THE DRIVE CARE HOMES LTD,-266.2,LD LTS 18-64,"MAND STATUTORY CHARGES, RESIDENTIAL",2102966457,1000003889
10.06.2019,ADULT SOCIAL CARE,NEXUS PROGRAMME LTD,"3,436.48",LD LTS 18-64,"MAND STATUTORY CHARGES, RESIDENTIAL",2102965988,1000025336
10.06.2019,ADULT SOCIAL CARE,REDACTED PERSONAL DATA,-321.56,LD LTS 18-64,"MAND STATUTORY CHARGES, RESIDENTIAL",REDACTED,REDACTED
10.06.2019,ADULT SOCIAL CARE,FIR TREE LODGE (SEE ABILITY),323.2,LD LTS 18-64,OTHER PAYMENTS FOR CLIENTS,2102966924,1000052257
10.06.2019,ADULT SOCIAL CARE,ROYAL MENCAP SOCIETY,750.4,LD LTS 18-64,OTHER PAYMENTS FOR CLIENTS,2102966474,1000034706
10.06.2019,ADULT SOCIAL CARE,CRAEGMOOR WHEELHOUSE PRIORY,870,LD LTS 18-64,OTHER PAYMENTS FOR CLIENTS,2102966191,1000068452
10.06.2019,ADULT SOCIAL CARE,RESIDENTIAL CARE SERVICES LTD,"1,120.00",LD LTS 18-64,OTHER PAYMENTS FOR CLIENTS,2102965853,1000082629
10.06.2019,ADULT SOCIAL CARE,NATIONAL AUTISTIC SOCIETY CARE PACK,"2,568.96",LD LTS 18-64,OTHER PAYMENTS FOR CLIENTS,2102966210,1000020538
10.06.2019,ADULT SOCIAL CARE,PEOPLEPLUS ILS,-992.5,LD LTS 18-64,PAYMENTS TO CLIENTS (DIRECT PAYMENTS),2102964696,1000061886
10.06.2019,ADULT SOCIAL CARE,PEOPLEPLUS ILS,254.68,LD LTS 18-64,PAYMENTS TO CLIENTS (DIRECT PAYMENTS),2102965482,1000061886
10.06.2019,ADULT SOCIAL CARE,PEOPLEPLUS ILS,260,LD LTS 18-64,PAYMENTS TO CLIENTS (DIRECT PAYMENTS),2102964761,1000061886
10.06.2019,ADULT SOCIAL CARE,PEOPLEPLUS ILS,266,LD LTS 18-64,PAYMENTS TO CLIENTS (DIRECT PAYMENTS),2102964790,1000061886
10.06.2019,ADULT SOCIAL CARE,PEOPLEPLUS ILS,273.68,LD LTS 18-64,PAYMENTS TO CLIENTS (DIRECT PAYMENTS),2102965154,1000061886
10.06.2019,ADULT SOCIAL CARE,PEOPLEPLUS ILS,288.4,LD LTS 18-64,PAYMENTS TO CLIENTS (DIRECT PAYMENTS),2102964883,1000061886
10.06.2019,ADULT SOCIAL CARE,PEOPLEPLUS ILS,299.6,LD LTS 18-64,PAYMENTS TO CLIENTS (DIRECT PAYMENTS),2102965563,1000061886
10.06.2019,ADULT SOCIAL CARE,PEOPLEPLUS ILS,300,LD LTS 18-64,PAYMENTS TO CLIENTS (DIRECT PAYMENTS),2102965564,1000061886
10.06.2019,ADULT SOCIAL CARE,PEOPLEPLUS ILS,307.84,LD LTS 18-64,PAYMENTS TO CLIENTS (DIRECT PAYMENTS),2102965006,1000061886
10.06.2019,ADULT SOCIAL CARE,PEOPLEPLUS ILS,318,LD LTS 18-64,PAYMENTS TO CLIENTS (DIRECT PAYMENTS),2102965120,1000061886
10.06.2019,ADULT SOCIAL CARE,PEOPLEPLUS ILS,329.8,LD LTS 18-64,PAYMENTS TO CLIENTS (DIRECT PAYMENTS),2102965047,1000061886
10.06.2019,ADULT SOCIAL CARE,PEOPLEPLUS ILS,334,LD LTS 18-64,PAYMENTS TO CLIENTS (DIRECT PAYMENTS),2102964820,1000061886
10.06.2019,ADULT SOCIAL CARE,PEOPLEPLUS ILS,347.44,LD LTS 18-64,PAYMENTS TO CLIENTS (DIRECT PAYMENTS),2102965019,1000061886
10.06.2019,ADULT SOCIAL CARE,PEOPLEPLUS ILS,352,LD LTS 18-64,PAYMENTS TO CLIENTS (DIRECT PAYMENTS),2102965036,1000061886
10.06.2019,ADULT SOCIAL CARE,PEOPLEPLUS ILS,356.92,LD LTS 18-64,PAYMENTS TO CLIENTS (DIRECT PAYMENTS),2102965190,1000061886
10.06.2019,ADULT SOCIAL CARE,PEOPLEPLUS ILS,385.6,LD LTS 18-64,PAYMENTS TO CLIENTS (DIRECT PAYMENTS),2102965093,1000061886
10.06.2019,ADULT SOCIAL CARE,PEOPLEPLUS ILS,408.4,LD LTS 18-64,PAYMENTS TO CLIENTS (DIRECT PAYMENTS),2102964794,1000061886
10.06.2019,ADULT SOCIAL CARE,PEOPLEPLUS ILS,424,LD LTS 18-64,PAYMENTS TO CLIENTS (DIRECT PAYMENTS),2102965477,1000061886
10.06.2019,ADULT SOCIAL CARE,PEOPLEPLUS ILS,440,LD LTS 18-64,PAYMENTS TO CLIENTS (DIRECT PAYMENTS),2102964891,1000061886
10.06.2019,ADULT SOCIAL CARE,PEOPLEPLUS ILS,450,LD LTS 18-64,PAYMENTS TO CLIENTS (DIRECT PAYMENTS),2102965138,1000061886
10.06.2019,ADULT SOCIAL CARE,PEOPLEPLUS ILS,493.36,LD LTS 18-64,PAYMENTS TO CLIENTS (DIRECT PAYMENTS),2102965130,1000061886
10.06.2019,ADULT SOCIAL CARE,PEOPLEPLUS ILS,502.12,LD LTS 18-64,PAYMENTS TO CLIENTS (DIRECT PAYMENTS),2102965218,1000061886
10.06.2019,ADULT SOCIAL CARE,PEOPLEPLUS ILS,513.36,LD LTS 18-64,PAYMENTS TO CLIENTS (DIRECT PAYMENTS),2102965411,1000061886
10.06.2019,ADULT SOCIAL CARE,PEOPLEPLUS ILS,520.88,LD LTS 18-64,PAYMENTS TO CLIENTS (DIRECT PAYMENTS),2102964809,1000061886
10.06.2019,ADULT SOCIAL CARE,PEOPLEPLUS ILS,554.8,LD LTS 18-64,PAYMENTS TO CLIENTS (DIRECT PAYMENTS),2102964997,1000061886
10.06.2019,ADULT SOCIAL CARE,PEOPLEPLUS ILS,555.2,LD LTS 18-64,PAYMENTS TO CLIENTS (DIRECT PAYMENTS),2102965294,1000061886
10.06.2019,ADULT SOCIAL CARE,PEOPLEPLUS ILS,569.8,LD LTS 18-64,PAYMENTS TO CLIENTS (DIRECT PAYMENTS),2102964872,1000061886
10.06.2019,ADULT SOCIAL CARE,PEOPLEPLUS ILS,578,LD LTS 18-64,PAYMENTS TO CLIENTS (DIRECT PAYMENTS),2102965438,1000061886
10.06.2019,ADULT SOCIAL CARE,PEOPLEPLUS ILS,579.12,LD LTS 18-64,PAYMENTS TO CLIENTS (DIRECT PAYMENTS),2102964878,1000061886
10.06.2019,ADULT SOCIAL CARE,PEOPLEPLUS ILS,599.2,LD LTS 18-64,PAYMENTS TO CLIENTS (DIRECT PAYMENTS),2102965509,1000061886
10.06.2019,ADULT SOCIAL CARE,PEOPLEPLUS ILS,633.2,LD LTS 18-64,PAYMENTS TO CLIENTS (DIRECT PAYMENTS),2102965496,1000061886
10.06.2019,ADULT SOCIAL CARE,PEOPLEPLUS ILS,670,LD LTS 18-64,PAYMENTS TO CLIENTS (DIRECT PAYMENTS),2102964855,1000061886
10.06.2019,ADULT SOCIAL CARE,PEOPLEPLUS ILS,670,LD LTS 18-64,PAYMENTS TO CLIENTS (DIRECT PAYMENTS),2102964890,1000061886
10.06.2019,ADULT SOCIAL CARE,PEOPLEPLUS ILS,679.2,LD LTS 18-64,PAYMENTS TO CLIENTS (DIRECT PAYMENTS),2102965570,1000061886
10.06.2019,ADULT SOCIAL CARE,PEOPLEPLUS ILS,680,LD LTS 18-64,PAYMENTS TO CLIENTS (DIRECT PAYMENTS),2102964840,1000061886
10.06.2019,ADULT SOCIAL CARE,PEOPLEPLUS ILS,712.4,LD LTS 18-64,PAYMENTS TO CLIENTS (DIRECT PAYMENTS),2102964825,1000061886
10.06.2019,ADULT SOCIAL CARE,PEOPLEPLUS ILS,718,LD LTS 18-64,PAYMENTS TO CLIENTS (DIRECT PAYMENTS),2102964759,1000061886
10.06.2019,ADULT SOCIAL CARE,PEOPLEPLUS ILS,722.4,LD LTS 18-64,PAYMENTS TO CLIENTS (DIRECT PAYMENTS),2102965525,1000061886
10.06.2019,ADULT SOCIAL CARE,PEOPLEPLUS ILS,724.24,LD LTS 18-64,PAYMENTS TO CLIENTS (DIRECT PAYMENTS),2102964724,1000061886
10.06.2019,ADULT SOCIAL CARE,PEOPLEPLUS ILS,743.04,LD LTS 18-64,PAYMENTS TO CLIENTS (DIRECT PAYMENTS),2102964688,1000061886
10.06.2019,ADULT SOCIAL CARE,PEOPLEPLUS ILS,753.04,LD LTS 18-64,PAYMENTS TO CLIENTS (DIRECT PAYMENTS),2102965571,1000061886
10.06.2019,ADULT SOCIAL CARE,PEOPLEPLUS ILS,754,LD LTS 18-64,PAYMENTS TO CLIENTS (DIRECT PAYMENTS),2102965420,1000061886
10.06.2019,ADULT SOCIAL CARE,PEOPLEPLUS ILS,758.72,LD LTS 18-64,PAYMENTS TO CLIENTS (DIRECT PAYMENTS),2102965547,1000061886
10.06.2019,ADULT SOCIAL CARE,PEOPLEPLUS ILS,784.08,LD LTS 18-64,PAYMENTS TO CLIENTS (DIRECT PAYMENTS),2102965549,1000061886
10.06.2019,ADULT SOCIAL CARE,PEOPLEPLUS ILS,789.6,LD LTS 18-64,PAYMENTS TO CLIENTS (DIRECT PAYMENTS),2102965286,1000061886
10.06.2019,ADULT SOCIAL CARE,PEOPLEPLUS ILS,794,LD LTS 18-64,PAYMENTS TO CLIENTS (DIRECT PAYMENTS),2102965196,1000061886
10.06.2019,ADULT SOCIAL CARE,PEOPLEPLUS ILS,813.36,LD LTS 18-64,PAYMENTS TO CLIENTS (DIRECT PAYMENTS),2102965230,1000061886
10.06.2019,ADULT SOCIAL CARE,PEOPLEPLUS ILS,819.84,LD LTS 18-64,PAYMENTS TO CLIENTS (DIRECT PAYMENTS),2102965049,1000061886
10.06.2019,ADULT SOCIAL CARE,PEOPLEPLUS ILS,860,LD LTS 18-64,PAYMENTS TO CLIENTS (DIRECT PAYMENTS),2102965436,1000061886
10.06.2019,ADULT SOCIAL CARE,PEOPLEPLUS ILS,862.64,LD LTS 18-64,PAYMENTS TO CLIENTS (DIRECT PAYMENTS),2102964998,1000061886
10.06.2019,ADULT SOCIAL CARE,PEOPLEPLUS ILS,870,LD LTS 18-64,PAYMENTS TO CLIENTS (DIRECT PAYMENTS),2102965508,1000061886
10.06.2019,ADULT SOCIAL CARE,PEOPLEPLUS ILS,875.6,LD LTS 18-64,PAYMENTS TO CLIENTS (DIRECT PAYMENTS),2102965178,1000061886
10.06.2019,ADULT SOCIAL CARE,FRESH IDEAS & SOLUTIONS SERVICES CIC,875.6,LD LTS 18-64,PAYMENTS TO CLIENTS (DIRECT PAYMENTS),2102965457,1000070832
10.06.2019,ADULT SOCIAL CARE,FRESH IDEAS & SOLUTIONS SERVICES CIC,895.6,LD LTS 18-64,PAYMENTS TO CLIENTS (DIRECT PAYMENTS),2102965127,1000070832
10.06.2019,ADULT SOCIAL CARE,PEOPLEPLUS ILS,896.8,LD LTS 18-64,PAYMENTS TO CLIENTS (DIRECT PAYMENTS),2102965582,1000061886
10.06.2019,ADULT SOCIAL CARE,PEOPLEPLUS ILS,918,LD LTS 18-64,PAYMENTS TO CLIENTS (DIRECT PAYMENTS),2102964785,1000061886
10.06.2019,ADULT SOCIAL CARE,PEOPLEPLUS ILS,934,LD LTS 18-64,PAYMENTS TO CLIENTS (DIRECT PAYMENTS),2102965290,1000061886
10.06.2019,ADULT SOCIAL CARE,PEOPLEPLUS ILS,957.2,LD LTS 18-64,PAYMENTS TO CLIENTS (DIRECT PAYMENTS),2102964919,1000061886
10.06.2019,ADULT SOCIAL CARE,PEOPLEPLUS ILS,968,LD LTS 18-64,PAYMENTS TO CLIENTS (DIRECT PAYMENTS),2102965145,1000061886
10.06.2019,ADULT SOCIAL CARE,PEOPLEPLUS ILS,970.2,LD LTS 18-64,PAYMENTS TO CLIENTS (DIRECT PAYMENTS),2102965495,1000061886
10.06.2019,ADULT SOCIAL CARE,PEOPLEPLUS ILS,988,LD LTS 18-64,PAYMENTS TO CLIENTS (DIRECT PAYMENTS),2102965479,1000061886
10.06.2019,ADULT SOCIAL CARE,PEOPLEPLUS ILS,"1,013.48",LD LTS 18-64,PAYMENTS TO CLIENTS (DIRECT PAYMENTS),2102964933,1000061886
10.06.2019,ADULT SOCIAL CARE,FRESH IDEAS & SOLUTIONS SERVICES CIC,"1,047.52",LD LTS 18-64,PAYMENTS TO CLIENTS (DIRECT PAYMENTS),2102965386,1000070832
10.06.2019,ADULT SOCIAL CARE,PEOPLEPLUS ILS,"1,052.00",LD LTS 18-64,PAYMENTS TO CLIENTS (DIRECT PAYMENTS),2102965310,1000061886
10.06.2019,ADULT SOCIAL CARE,PEOPLEPLUS ILS,"1,054.00",LD LTS 18-64,PAYMENTS TO CLIENTS (DIRECT PAYMENTS),2102964735,1000061886
10.06.2019,ADULT SOCIAL CARE,PEOPLEPLUS ILS,"1,056.00",LD LTS 18-64,PAYMENTS TO CLIENTS (DIRECT PAYMENTS),2102964975,1000061886
10.06.2019,ADULT SOCIAL CARE,FRESH IDEAS & SOLUTIONS SERVICES CIC,"1,067.12",LD LTS 18-64,PAYMENTS TO CLIENTS (DIRECT PAYMENTS),2102964892,1000070832
10.06.2019,ADULT SOCIAL CARE,PEOPLEPLUS ILS,"1,072.72",LD LTS 18-64,PAYMENTS TO CLIENTS (DIRECT PAYMENTS),2102964829,1000061886
10.06.2019,ADULT SOCIAL CARE,PEOPLEPLUS ILS,"1,171.28",LD LTS 18-64,PAYMENTS TO CLIENTS (DIRECT PAYMENTS),2102965108,1000061886
10.06.2019,ADULT SOCIAL CARE,PEOPLEPLUS ILS,"1,172.48",LD LTS 18-64,PAYMENTS TO CLIENTS (DIRECT PAYMENTS),2102964733,1000061886
10.06.2019,ADULT SOCIAL CARE,PEOPLEPLUS ILS,"1,192.64",LD LTS 18-64,PAYMENTS TO CLIENTS (DIRECT PAYMENTS),2102965137,1000061886
10.06.2019,ADULT SOCIAL CARE,PEOPLEPLUS ILS,"1,239.04",LD LTS 18-64,PAYMENTS TO CLIENTS (DIRECT PAYMENTS),2102965251,1000061886
10.06.2019,ADULT SOCIAL CARE,PEOPLEPLUS ILS,"1,242.40",LD LTS 18-64,PAYMENTS TO CLIENTS (DIRECT PAYMENTS),2102965117,1000061886
10.06.2019,ADULT SOCIAL CARE,PEOPLEPLUS ILS,"1,319.24",LD LTS 18-64,PAYMENTS TO CLIENTS (DIRECT PAYMENTS),2102964810,1000061886
10.06.2019,ADULT SOCIAL CARE,PEOPLEPLUS ILS,"1,324.40",LD LTS 18-64,PAYMENTS TO CLIENTS (DIRECT PAYMENTS),2102964827,1000061886
10.06.2019,ADULT SOCIAL CARE,PEOPLEPLUS ILS,"1,375.56",LD LTS 18-64,PAYMENTS TO CLIENTS (DIRECT PAYMENTS),2102965553,1000061886
10.06.2019,ADULT SOCIAL CARE,PEOPLEPLUS ILS,"1,430.96",LD LTS 18-64,PAYMENTS TO CLIENTS (DIRECT PAYMENTS),2102965475,1000061886
10.06.2019,ADULT SOCIAL CARE,PEOPLEPLUS ILS,"1,438.80",LD LTS 18-64,PAYMENTS TO CLIENTS (DIRECT PAYMENTS),2102964846,1000061886
10.06.2019,ADULT SOCIAL CARE,FRESH IDEAS & SOLUTIONS SERVICES CIC,"1,464.32",LD LTS 18-64,PAYMENTS TO CLIENTS (DIRECT PAYMENTS),2102965424,1000070832
10.06.2019,ADULT SOCIAL CARE,PEOPLEPLUS ILS,"1,471.60",LD LTS 18-64,PAYMENTS TO CLIENTS (DIRECT PAYMENTS),2102964940,1000061886
10.06.2019,ADULT SOCIAL CARE,PEOPLEPLUS ILS,"1,474.96",LD LTS 18-64,PAYMENTS TO CLIENTS (DIRECT PAYMENTS),2102965263,1000061886
10.06.2019,ADULT SOCIAL CARE,PEOPLEPLUS ILS,"1,475.84",LD LTS 18-64,PAYMENTS TO CLIENTS (DIRECT PAYMENTS),2102965031,1000061886
10.06.2019,ADULT SOCIAL CARE,PEOPLEPLUS ILS,"1,480.20",LD LTS 18-64,PAYMENTS TO CLIENTS (DIRECT PAYMENTS),2102964930,1000061886
10.06.2019,ADULT SOCIAL CARE,PEOPLEPLUS ILS,"1,605.76",LD LTS 18-64,PAYMENTS TO CLIENTS (DIRECT PAYMENTS),2102964877,1000061886
10.06.2019,ADULT SOCIAL CARE,PEOPLEPLUS ILS,"1,617.28",LD LTS 18-64,PAYMENTS TO CLIENTS (DIRECT PAYMENTS),2102965468,1000061886
10.06.2019,ADULT SOCIAL CARE,PEOPLEPLUS ILS,"1,659.04",LD LTS 18-64,PAYMENTS TO CLIENTS (DIRECT PAYMENTS),2102964818,1000061886
10.06.2019,ADULT SOCIAL CARE,PEOPLEPLUS ILS,"1,690.24",LD LTS 18-64,PAYMENTS TO CLIENTS (DIRECT PAYMENTS),2102965393,1000061886
10.06.2019,ADULT SOCIAL CARE,PEOPLEPLUS ILS,"1,696.32",LD LTS 18-64,PAYMENTS TO CLIENTS (DIRECT PAYMENTS),2102965459,1000061886
10.06.2019,ADULT SOCIAL CARE,PEOPLEPLUS ILS,"1,714.00",LD LTS 18-64,PAYMENTS TO CLIENTS (DIRECT PAYMENTS),2102965023,1000061886
10.06.2019,ADULT SOCIAL CARE,PEOPLEPLUS ILS,"1,755.00",LD LTS 18-64,PAYMENTS TO CLIENTS (DIRECT PAYMENTS),2102965341,1000061886
10.06.2019,ADULT SOCIAL CARE,PEOPLEPLUS ILS,"1,756.76",LD LTS 18-64,PAYMENTS TO CLIENTS (DIRECT PAYMENTS),2102964776,1000061886
10.06.2019,ADULT SOCIAL CARE,PEOPLEPLUS ILS,"1,799.48",LD LTS 18-64,PAYMENTS TO CLIENTS (DIRECT PAYMENTS),2102964720,1000061886
10.06.2019,ADULT SOCIAL CARE,PEOPLEPLUS ILS,"1,811.28",LD LTS 18-64,PAYMENTS TO CLIENTS (DIRECT PAYMENTS),2102965293,1000061886
10.06.2019,ADULT SOCIAL CARE,PEOPLEPLUS ILS,"1,823.48",LD LTS 18-64,PAYMENTS TO CLIENTS (DIRECT PAYMENTS),2102964756,1000061886
10.06.2019,ADULT SOCIAL CARE,PEOPLEPLUS ILS,"1,829.00",LD LTS 18-64,PAYMENTS TO CLIENTS (DIRECT PAYMENTS),2102964839,1000061886
10.06.2019,ADULT SOCIAL CARE,PEOPLEPLUS ILS,"1,829.60",LD LTS 18-64,PAYMENTS TO CLIENTS (DIRECT PAYMENTS),2102965313,1000061886
10.06.2019,ADULT SOCIAL CARE,PEOPLEPLUS ILS,"1,837.60",LD LTS 18-64,PAYMENTS TO CLIENTS (DIRECT PAYMENTS),2102965465,1000061886
10.06.2019,ADULT SOCIAL CARE,FRESH IDEAS & SOLUTIONS SERVICES CIC,"1,848.00",LD LTS 18-64,PAYMENTS TO CLIENTS (DIRECT PAYMENTS),2102965400,1000070832
10.06.2019,ADULT SOCIAL CARE,PEOPLEPLUS ILS,"1,862.00",LD LTS 18-64,PAYMENTS TO CLIENTS (DIRECT PAYMENTS),2102965523,1000061886
10.06.2019,ADULT SOCIAL CARE,PEOPLEPLUS ILS,"1,888.28",LD LTS 18-64,PAYMENTS TO CLIENTS (DIRECT PAYMENTS),2102965500,1000061886
10.06.2019,ADULT SOCIAL CARE,PEOPLEPLUS ILS,"1,911.52",LD LTS 18-64,PAYMENTS TO CLIENTS (DIRECT PAYMENTS),2102965144,1000061886
10.06.2019,ADULT SOCIAL CARE,PEOPLEPLUS ILS,"1,912.40",LD LTS 18-64,PAYMENTS TO CLIENTS (DIRECT PAYMENTS),2102965110,1000061886
10.06.2019,ADULT SOCIAL CARE,PEOPLEPLUS ILS,"1,950.96",LD LTS 18-64,PAYMENTS TO CLIENTS (DIRECT PAYMENTS),2102965486,1000061886
10.06.2019,ADULT SOCIAL CARE,PEOPLEPLUS ILS,"2,090.00",LD LTS 18-64,PAYMENTS TO CLIENTS (DIRECT PAYMENTS),2102965326,1000061886
10.06.2019,ADULT SOCIAL CARE,PEOPLEPLUS ILS,"2,097.56",LD LTS 18-64,PAYMENTS TO CLIENTS (DIRECT PAYMENTS),2102965431,1000061886
10.06.2019,ADULT SOCIAL CARE,PEOPLEPLUS ILS,"2,131.20",LD LTS 18-64,PAYMENTS TO CLIENTS (DIRECT PAYMENTS),2102965157,1000061886
10.06.2019,ADULT SOCIAL CARE,PEOPLEPLUS ILS,"2,268.84",LD LTS 18-64,PAYMENTS TO CLIENTS (DIRECT PAYMENTS),2102965212,1000061886
10.06.2019,ADULT SOCIAL CARE,PEOPLEPLUS ILS,"2,312.40",LD LTS 18-64,PAYMENTS TO CLIENTS (DIRECT PAYMENTS),2102965234,1000061886
10.06.2019,ADULT SOCIAL CARE,PEOPLEPLUS ILS,"2,332.00",LD LTS 18-64,PAYMENTS TO CLIENTS (DIRECT PAYMENTS),2102964788,1000061886
10.06.2019,ADULT SOCIAL CARE,PEOPLEPLUS ILS,"2,447.76",LD LTS 18-64,PAYMENTS TO CLIENTS (DIRECT PAYMENTS),2102964811,1000061886
10.06.2019,ADULT SOCIAL CARE,PEOPLEPLUS ILS,"2,490.00",LD LTS 18-64,PAYMENTS TO CLIENTS (DIRECT PAYMENTS),2102965572,1000061886
10.06.2019,ADULT SOCIAL CARE,PEOPLEPLUS ILS,"2,494.00",LD LTS 18-64,PAYMENTS TO CLIENTS (DIRECT PAYMENTS),2102965237,1000061886
10.06.2019,ADULT SOCIAL CARE,PEOPLEPLUS ILS,"2,529.52",LD LTS 18-64,PAYMENTS TO CLIENTS (DIRECT PAYMENTS),2102965205,1000061886
10.06.2019,ADULT SOCIAL CARE,PEOPLEPLUS ILS,"2,733.64",LD LTS 18-64,PAYMENTS TO CLIENTS (DIRECT PAYMENTS),2102965287,1000061886
10.06.2019,ADULT SOCIAL CARE,PEOPLEPLUS ILS,"2,906.00",LD LTS 18-64,PAYMENTS TO CLIENTS (DIRECT PAYMENTS),2102965055,1000061886
10.06.2019,ADULT SOCIAL CARE,PEOPLEPLUS ILS,"2,918.00",LD LTS 18-64,PAYMENTS TO CLIENTS (DIRECT PAYMENTS),2102964709,1000061886
10.06.2019,ADULT SOCIAL CARE,PEOPLEPLUS ILS,"2,946.20",LD LTS 18-64,PAYMENTS TO CLIENTS (DIRECT PAYMENTS),2102965147,1000061886
10.06.2019,ADULT SOCIAL CARE,PEOPLEPLUS ILS,"3,360.88",LD LTS 18-64,PAYMENTS TO CLIENTS (DIRECT PAYMENTS),2102965387,1000061886
10.06.2019,ADULT SOCIAL CARE,PEOPLEPLUS ILS,"3,610.00",LD LTS 18-64,PAYMENTS TO CLIENTS (DIRECT PAYMENTS),2102965407,1000061886
10.06.2019,ADULT SOCIAL CARE,PEOPLEPLUS ILS,"3,809.20",LD LTS 18-64,PAYMENTS TO CLIENTS (DIRECT PAYMENTS),2102965060,1000061886
10.06.2019,ADULT SOCIAL CARE,PEOPLEPLUS ILS,"4,160.00",LD LTS 18-64,PAYMENTS TO CLIENTS (DIRECT PAYMENTS),2102965346,1000061886
10.06.2019,ADULT SOCIAL CARE,PEOPLEPLUS ILS,"7,521.32",LD LTS 18-64,PAYMENTS TO CLIENTS (DIRECT PAYMENTS),2102965155,1000061886
10.06.2019,ADULT SOCIAL CARE,PEOPLEPLUS ILS,"7,908.96",LD LTS 18-64,PAYMENTS TO CLIENTS (DIRECT PAYMENTS),2102965526,1000061886
10.06.2019,ADULT SOCIAL CARE,PEOPLEPLUS ILS,"9,126.80",LD LTS 18-64,PAYMENTS TO CLIENTS (DIRECT PAYMENTS),2102964800,1000061886
10.06.2019,ADULT SOCIAL CARE,PEOPLEPLUS ILS,"11,809.20",LD LTS 18-64,PAYMENTS TO CLIENTS (DIRECT PAYMENTS),2102964904,1000061886
10.06.2019,ADULT SOCIAL CARE,PEOPLEPLUS ILS,"12,619.20",LD LTS 18-64,PAYMENTS TO CLIENTS (DIRECT PAYMENTS),2102964983,1000061886
10.06.2019,ADULT SOCIAL CARE,PEOPLEPLUS ILS,"12,619.20",LD LTS 18-64,PAYMENTS TO CLIENTS (DIRECT PAYMENTS),2102965223,1000061886
10.06.2019,ADULT SOCIAL CARE,PEOPLEPLUS ILS,"13,214.68",LD LTS 18-64,PAYMENTS TO CLIENTS (DIRECT PAYMENTS),2102965099,1000061886
10.06.2019,ADULT SOCIAL CARE,REDACTED PERSONAL DATA,"-10,732.68",LD LTS 18-64,PAYMENTS TO CLIENTS (DIRECT PAYMENTS),REDACTED,REDACTED
10.06.2019,ADULT SOCIAL CARE,REDACTED PERSONAL DATA,-522.6,LD LTS 18-64,PAYMENTS TO CLIENTS (DIRECT PAYMENTS),REDACTED,REDACTED
10.06.2019,ADULT SOCIAL CARE,REDACTED PERSONAL DATA,269.6,LD LTS 18-64,PAYMENTS TO CLIENTS (DIRECT PAYMENTS),REDACTED,REDACTED
10.06.2019,ADULT SOCIAL CARE,REDACTED PERSONAL DATA,288.8,LD LTS 18-64,PAYMENTS TO CLIENTS (DIRECT PAYMENTS),REDACTED,REDACTED
10.06.2019,ADULT SOCIAL CARE,REDACTED PERSONAL DATA,300,LD LTS 18-64,PAYMENTS TO CLIENTS (DIRECT PAYMENTS),REDACTED,REDACTED
10.06.2019,ADULT SOCIAL CARE,REDACTED PERSONAL DATA,300,LD LTS 18-64,PAYMENTS TO CLIENTS (DIRECT PAYMENTS),REDACTED,REDACTED
10.06.2019,ADULT SOCIAL CARE,REDACTED PERSONAL DATA,319.52,LD LTS 18-64,PAYMENTS TO CLIENTS (DIRECT PAYMENTS),REDACTED,REDACTED
10.06.2019,ADULT SOCIAL CARE,REDACTED PERSONAL DATA,320,LD LTS 18-64,PAYMENTS TO CLIENTS (DIRECT PAYMENTS),REDACTED,REDACTED
10.06.2019,ADULT SOCIAL CARE,REDACTED PERSONAL DATA,327.2,LD LTS 18-64,PAYMENTS TO CLIENTS (DIRECT PAYMENTS),REDACTED,REDACTED
10.06.2019,ADULT SOCIAL CARE,REDACTED PERSONAL DATA,430.8,LD LTS 18-64,PAYMENTS TO CLIENTS (DIRECT PAYMENTS),REDACTED,REDACTED
10.06.2019,ADULT SOCIAL CARE,REDACTED PERSONAL DATA,460.04,LD LTS 18-64,PAYMENTS TO CLIENTS (DIRECT PAYMENTS),REDACTED,REDACTED
10.06.2019,ADULT SOCIAL CARE,REDACTED PERSONAL DATA,484.32,LD LTS 18-64,PAYMENTS TO CLIENTS (DIRECT PAYMENTS),REDACTED,REDACTED
10.06.2019,ADULT SOCIAL CARE,REDACTED PERSONAL DATA,569.12,LD LTS 18-64,PAYMENTS TO CLIENTS (DIRECT PAYMENTS),REDACTED,REDACTED
10.06.2019,ADULT SOCIAL CARE,REDACTED PERSONAL DATA,594.4,LD LTS 18-64,PAYMENTS TO CLIENTS (DIRECT PAYMENTS),REDACTED,REDACTED
10.06.2019,ADULT SOCIAL CARE,REDACTED PERSONAL DATA,639.2,LD LTS 18-64,PAYMENTS TO CLIENTS (DIRECT PAYMENTS),REDACTED,REDACTED
10.06.2019,ADULT SOCIAL CARE,REDACTED PERSONAL DATA,676,LD LTS 18-64,PAYMENTS TO CLIENTS (DIRECT PAYMENTS),REDACTED,REDACTED
10.06.2019,ADULT SOCIAL CARE,REDACTED PERSONAL DATA,718,LD LTS 18-64,PAYMENTS TO CLIENTS (DIRECT PAYMENTS),REDACTED,REDACTED
10.06.2019,ADULT SOCIAL CARE,REDACTED PERSONAL DATA,738,LD LTS 18-64,PAYMENTS TO CLIENTS (DIRECT PAYMENTS),REDACTED,REDACTED
10.06.2019,ADULT SOCIAL CARE,REDACTED PERSONAL DATA,809.8,LD LTS 18-64,PAYMENTS TO CLIENTS (DIRECT PAYMENTS),REDACTED,REDACTED
10.06.2019,ADULT SOCIAL CARE,REDACTED PERSONAL DATA,848,LD LTS 18-64,PAYMENTS TO CLIENTS (DIRECT PAYMENTS),REDACTED,REDACTED
10.06.2019,ADULT SOCIAL CARE,REDACTED PERSONAL DATA,848,LD LTS 18-64,PAYMENTS TO CLIENTS (DIRECT PAYMENTS),REDACTED,REDACTED
10.06.2019,ADULT SOCIAL CARE,REDACTED PERSONAL DATA,848,LD LTS 18-64,PAYMENTS TO CLIENTS (DIRECT PAYMENTS),REDACTED,REDACTED
10.06.2019,ADULT SOCIAL CARE,REDACTED PERSONAL DATA,848,LD LTS 18-64,PAYMENTS TO CLIENTS (DIRECT PAYMENTS),REDACTED,REDACTED
10.06.2019,ADULT SOCIAL CARE,REDACTED PERSONAL DATA,848,LD LTS 18-64,PAYMENTS TO CLIENTS (DIRECT PAYMENTS),REDACTED,REDACTED
10.06.2019,ADULT SOCIAL CARE,REDACTED PERSONAL DATA,848,LD LTS 18-64,PAYMENTS TO CLIENTS (DIRECT PAYMENTS),REDACTED,REDACTED
10.06.2019,ADULT SOCIAL CARE,REDACTED PERSONAL DATA,848,LD LTS 18-64,PAYMENTS TO CLIENTS (DIRECT PAYMENTS),REDACTED,REDACTED
10.06.2019,ADULT SOCIAL CARE,REDACTED PERSONAL DATA,848,LD LTS 18-64,PAYMENTS TO CLIENTS (DIRECT PAYMENTS),REDACTED,REDACTED
10.06.2019,ADULT SOCIAL CARE,REDACTED PERSONAL DATA,848,LD LTS 18-64,PAYMENTS TO CLIENTS (DIRECT PAYMENTS),REDACTED,REDACTED
10.06.2019,ADULT SOCIAL CARE,REDACTED PERSONAL DATA,956.16,LD LTS 18-64,PAYMENTS TO CLIENTS (DIRECT PAYMENTS),REDACTED,REDACTED
10.06.2019,ADULT SOCIAL CARE,REDACTED PERSONAL DATA,"1,019.44",LD LTS 18-64,PAYMENTS TO CLIENTS (DIRECT PAYMENTS),REDACTED,REDACTED
10.06.2019,ADULT SOCIAL CARE,REDACTED PERSONAL DATA,"1,025.20",LD LTS 18-64,PAYMENTS TO CLIENTS (DIRECT PAYMENTS),REDACTED,REDACTED
10.06.2019,ADULT SOCIAL CARE,REDACTED PERSONAL DATA,"1,036.24",LD LTS 18-64,PAYMENTS TO CLIENTS (DIRECT PAYMENTS),REDACTED,REDACTED
10.06.2019,ADULT SOCIAL CARE,REDACTED PERSONAL DATA,"1,045.20",LD LTS 18-64,PAYMENTS TO CLIENTS (DIRECT PAYMENTS),REDACTED,REDACTED
10.06.2019,ADULT SOCIAL CARE,REDACTED PERSONAL DATA,"1,190.40",LD LTS 18-64,PAYMENTS TO CLIENTS (DIRECT PAYMENTS),REDACTED,REDACTED
10.06.2019,ADULT SOCIAL CARE,REDACTED PERSONAL DATA,"1,197.96",LD LTS 18-64,PAYMENTS TO CLIENTS (DIRECT PAYMENTS),REDACTED,REDACTED
10.06.2019,ADULT SOCIAL CARE,REDACTED PERSONAL DATA,"1,200.00",LD LTS 18-64,PAYMENTS TO CLIENTS (DIRECT PAYMENTS),REDACTED,REDACTED
10.06.2019,ADULT SOCIAL CARE,REDACTED PERSONAL DATA,"1,290.16",LD LTS 18-64,PAYMENTS TO CLIENTS (DIRECT PAYMENTS),REDACTED,REDACTED
10.06.2019,ADULT SOCIAL CARE,REDACTED PERSONAL DATA,"1,293.44",LD LTS 18-64,PAYMENTS TO CLIENTS (DIRECT PAYMENTS),REDACTED,REDACTED
10.06.2019,ADULT SOCIAL CARE,REDACTED PERSONAL DATA,"1,328.00",LD LTS 18-64,PAYMENTS TO CLIENTS (DIRECT PAYMENTS),REDACTED,REDACTED
10.06.2019,ADULT SOCIAL CARE,REDACTED PERSONAL DATA,"1,368.32",LD LTS 18-64,PAYMENTS TO CLIENTS (DIRECT PAYMENTS),REDACTED,REDACTED
10.06.2019,ADULT SOCIAL CARE,REDACTED PERSONAL DATA,"1,400.00",LD LTS 18-64,PAYMENTS TO CLIENTS (DIRECT PAYMENTS),REDACTED,REDACTED
10.06.2019,ADULT SOCIAL CARE,REDACTED PERSONAL DATA,"1,420.12",LD LTS 18-64,PAYMENTS TO CLIENTS (DIRECT PAYMENTS),REDACTED,REDACTED
10.06.2019,ADULT SOCIAL CARE,REDACTED PERSONAL DATA,"1,443.00",LD LTS 18-64,PAYMENTS TO CLIENTS (DIRECT PAYMENTS),REDACTED,REDACTED
10.06.2019,ADULT SOCIAL CARE,REDACTED PERSONAL DATA,"1,483.00",LD LTS 18-64,PAYMENTS TO CLIENTS (DIRECT PAYMENTS),REDACTED,REDACTED
10.06.2019,ADULT SOCIAL CARE,REDACTED PERSONAL DATA,"1,532.68",LD LTS 18-64,PAYMENTS TO CLIENTS (DIRECT PAYMENTS),REDACTED,REDACTED
10.06.2019,ADULT SOCIAL CARE,REDACTED PERSONAL DATA,"1,532.92",LD LTS 18-64,PAYMENTS TO CLIENTS (DIRECT PAYMENTS),REDACTED,REDACTED
10.06.2019,ADULT SOCIAL CARE,REDACTED PERSONAL DATA,"1,534.00",LD LTS 18-64,PAYMENTS TO CLIENTS (DIRECT PAYMENTS),REDACTED,REDACTED
10.06.2019,ADULT SOCIAL CARE,REDACTED PERSONAL DATA,"1,545.48",LD LTS 18-64,PAYMENTS TO CLIENTS (DIRECT PAYMENTS),REDACTED,REDACTED
10.06.2019,ADULT SOCIAL CARE,REDACTED PERSONAL DATA,"1,672.00",LD LTS 18-64,PAYMENTS TO CLIENTS (DIRECT PAYMENTS),REDACTED,REDACTED
10.06.2019,ADULT SOCIAL CARE,REDACTED PERSONAL DATA,"1,743.20",LD LTS 18-64,PAYMENTS TO CLIENTS (DIRECT PAYMENTS),REDACTED,REDACTED
10.06.2019,ADULT SOCIAL CARE,REDACTED PERSONAL DATA,"1,746.16",LD LTS 18-64,PAYMENTS TO CLIENTS (DIRECT PAYMENTS),REDACTED,REDACTED
10.06.2019,ADULT SOCIAL CARE,REDACTED PERSONAL DATA,"1,790.40",LD LTS 18-64,PAYMENTS TO CLIENTS (DIRECT PAYMENTS),REDACTED,REDACTED
10.06.2019,ADULT SOCIAL CARE,REDACTED PERSONAL DATA,"1,811.76",LD LTS 18-64,PAYMENTS TO CLIENTS (DIRECT PAYMENTS),REDACTED,REDACTED
10.06.2019,ADULT SOCIAL CARE,REDACTED PERSONAL DATA,"2,000.00",LD LTS 18-64,PAYMENTS TO CLIENTS (DIRECT PAYMENTS),REDACTED,REDACTED
10.06.2019,ADULT SOCIAL CARE,REDACTED PERSONAL DATA,"2,116.00",LD LTS 18-64,PAYMENTS TO CLIENTS (DIRECT PAYMENTS),REDACTED,REDACTED
10.06.2019,ADULT SOCIAL CARE,REDACTED PERSONAL DATA,"2,118.00",LD LTS 18-64,PAYMENTS TO CLIENTS (DIRECT PAYMENTS),REDACTED,REDACTED
10.06.2019,ADULT SOCIAL CARE,REDACTED PERSONAL DATA,"2,158.60",LD LTS 18-64,PAYMENTS TO CLIENTS (DIRECT PAYMENTS),REDACTED,REDACTED
10.06.2019,ADULT SOCIAL CARE,REDACTED PERSONAL DATA,"2,317.60",LD LTS 18-64,PAYMENTS TO CLIENTS (DIRECT PAYMENTS),REDACTED,REDACTED
10.06.2019,ADULT SOCIAL CARE,REDACTED PERSONAL DATA,"2,660.20",LD LTS 18-64,PAYMENTS TO CLIENTS (DIRECT PAYMENTS),REDACTED,REDACTED
10.06.2019,ADULT SOCIAL CARE,REDACTED PERSONAL DATA,"2,736.00",LD LTS 18-64,PAYMENTS TO CLIENTS (DIRECT PAYMENTS),REDACTED,REDACTED
10.06.2019,ADULT SOCIAL CARE,REDACTED PERSONAL DATA,"3,816.00",LD LTS 18-64,PAYMENTS TO CLIENTS (DIRECT PAYMENTS),REDACTED,REDACTED
10.06.2019,ADULT SOCIAL CARE,REDACTED PERSONAL DATA,"3,864.64",LD LTS 18-64,PAYMENTS TO CLIENTS (DIRECT PAYMENTS),REDACTED,REDACTED
10.06.2019,ADULT SOCIAL CARE,REDACTED PERSONAL DATA,"3,923.12",LD LTS 18-64,PAYMENTS TO CLIENTS (DIRECT PAYMENTS),REDACTED,REDACTED
10.06.2019,ADULT SOCIAL CARE,REDACTED PERSONAL DATA,"4,020.80",LD LTS 18-64,PAYMENTS TO CLIENTS (DIRECT PAYMENTS),REDACTED,REDACTED
10.06.2019,ADULT SOCIAL CARE,REDACTED PERSONAL DATA,"5,280.88",LD LTS 18-64,PAYMENTS TO CLIENTS (DIRECT PAYMENTS),REDACTED,REDACTED
10.06.2019,ADULT SOCIAL CARE,REDACTED PERSONAL DATA,"5,362.72",LD LTS 18-64,PAYMENTS TO CLIENTS (DIRECT PAYMENTS),REDACTED,REDACTED
10.06.2019,ADULT SOCIAL CARE,REDACTED PERSONAL DATA,"6,644.40",LD LTS 18-64,PAYMENTS TO CLIENTS (DIRECT PAYMENTS),REDACTED,REDACTED
10.06.2019,ADULT SOCIAL CARE,REDACTED PERSONAL DATA,"8,484.60",LD LTS 18-64,PAYMENTS TO CLIENTS (DIRECT PAYMENTS),REDACTED,REDACTED
10.06.2019,ADULT SOCIAL CARE,REDACTED PERSONAL DATA,"12,580.00",LD LTS 18-64,PAYMENTS TO CLIENTS (DIRECT PAYMENTS),REDACTED,REDACTED
10.06.2019,ADULT SOCIAL CARE,NEXUS PROGRAMME LTD,"-60,604.25",LD LTS 18-64,RESIDENTIAL CARE,2102965987,1000025336
10.06.2019,ADULT SOCIAL CARE,SAHARA CARE HOMES LTD,535.71,LD LTS 18-64,RESIDENTIAL CARE,2102966163,1000066134
10.06.2019,ADULT SOCIAL CARE,PALM CARE LTD,"1,500.00",LD LTS 18-64,RESIDENTIAL CARE,2102966142,1000066042
10.06.2019,ADULT SOCIAL CARE,ANCHOR TRUST,"2,030.76",LD LTS 18-64,RESIDENTIAL CARE,2102966573,11257534
10.06.2019,ADULT SOCIAL CARE,31 WOODBOURNE (FRANCES TAYLOR FOUNDATION),"2,444.76",LD LTS 18-64,RESIDENTIAL CARE,2102966315,1000063870
10.06.2019,ADULT SOCIAL CARE,THE FRANCES TAYLOR FOUNDATION,"2,444.76",LD LTS 18-64,RESIDENTIAL CARE,2102966751,1000007274
10.06.2019,ADULT SOCIAL CARE,LA ROSA RESIDENTIAL CARE HOME,"2,585.16",LD LTS 18-64,RESIDENTIAL CARE,2102966415,1000053962
10.06.2019,ADULT SOCIAL CARE,THE PADDOCK (THE SWALLOW GROUP),"2,884.56",LD LTS 18-64,RESIDENTIAL CARE,2102966117,11153854
10.06.2019,ADULT SOCIAL CARE,THE PADDOCK (THE SWALLOW GROUP),"2,927.80",LD LTS 18-64,RESIDENTIAL CARE,2102966105,11153854
10.06.2019,ADULT SOCIAL CARE,HAZELDENE LTD,"3,051.00",LD LTS 18-64,RESIDENTIAL CARE,2102966964,1000019679
10.06.2019,ADULT SOCIAL CARE,CRAEGMOOR (WINDSOR HOUSE),"3,227.60",LD LTS 18-64,RESIDENTIAL CARE,2102966705,1000072462
10.06.2019,ADULT SOCIAL CARE,CRAEGMOOR WILLOWS HYTHE PRIORY,"3,240.00",LD LTS 18-64,RESIDENTIAL CARE,2102965859,1000072287
10.06.2019,ADULT SOCIAL CARE,ASHDENE HOUSE LIMITED,"3,272.76",LD LTS 18-64,RESIDENTIAL CARE,2102966624,1000021007
10.06.2019,ADULT SOCIAL CARE,THE WHITE HOUSE CARE HOME,"3,280.00",LD LTS 18-64,RESIDENTIAL CARE,2102966014,1000076369
10.06.2019,ADULT SOCIAL CARE,ROYAL MENCAP SOCIETY,"3,357.08",LD LTS 18-64,RESIDENTIAL CARE,2102966472,1000034706
10.06.2019,ADULT SOCIAL CARE,THE DRIVE CARE HOMES LTD (ADULTS),"3,791.48",LD LTS 18-64,RESIDENTIAL CARE,2102966271,1000055145
10.06.2019,ADULT SOCIAL CARE,DIAGRAMA HEALTH CARE,"3,924.56",LD LTS 18-64,RESIDENTIAL CARE,2102966792,1000075492
10.06.2019,ADULT SOCIAL CARE,LEONARD CHESHIRE (GARDEN HOUSE),"3,933.80",LD LTS 18-64,RESIDENTIAL CARE,2102966839,1000049748
10.06.2019,ADULT SOCIAL CARE,RYDE HOUSE,"3,944.00",LD LTS 18-64,RESIDENTIAL CARE,2102966525,1022373
10.06.2019,ADULT SOCIAL CARE,DIAGRAMA HEALTH CARE,"3,990.36",LD LTS 18-64,RESIDENTIAL CARE,2102966774,1000075492
10.06.2019,ADULT SOCIAL CARE,ENDURANCE CARE LTD,"4,069.76",LD LTS 18-64,RESIDENTIAL CARE,2102965813,1000080552
10.06.2019,ADULT SOCIAL CARE,PLUS SERVICES,"4,252.00",LD LTS 18-64,RESIDENTIAL CARE,2102966444,1000021241
10.06.2019,ADULT SOCIAL CARE,CHOICE SUPPORT,"4,264.92",LD LTS 18-64,RESIDENTIAL CARE,2102965975,1104183
10.06.2019,ADULT SOCIAL CARE,LEONARD CHESHIRE (GARDEN HOUSE),"4,293.00",LD LTS 18-64,RESIDENTIAL CARE,2102966425,1000049748
10.06.2019,ADULT SOCIAL CARE,CRAEGMOOR DEVONSHIRE ROAD PRIORY,"4,392.52",LD LTS 18-64,RESIDENTIAL CARE,2102966454,1000068453
10.06.2019,ADULT SOCIAL CARE,CHOICE SUPPORT,"4,402.76",LD LTS 18-64,RESIDENTIAL CARE,2102965868,1104183
10.06.2019,ADULT SOCIAL CARE,DIAGRAMA HEALTH CARE,"4,440.56",LD LTS 18-64,RESIDENTIAL CARE,2102966296,1000075492
10.06.2019,ADULT SOCIAL CARE,DIAGRAMA HEALTH CARE,"4,493.04",LD LTS 18-64,RESIDENTIAL CARE,2102965962,1000075492
10.06.2019,ADULT SOCIAL CARE,BRANDON TRUST,"4,503.28",LD LTS 18-64,RESIDENTIAL CARE,2102966753,1000042417
10.06.2019,ADULT SOCIAL CARE,BRANDON TRUST,"4,528.72",LD LTS 18-64,RESIDENTIAL CARE,2102966395,1000042417
10.06.2019,ADULT SOCIAL CARE,DIAGRAMA HEALTH CARE,"4,572.76",LD LTS 18-64,RESIDENTIAL CARE,2102966072,1000075492
10.06.2019,ADULT SOCIAL CARE,OGILVIE COURT,"4,591.92",LD LTS 18-64,RESIDENTIAL CARE,2102965875,1910302
10.06.2019,ADULT SOCIAL CARE,BRANDON TRUST,"4,616.48",LD LTS 18-64,RESIDENTIAL CARE,2102966278,1000042417
10.06.2019,ADULT SOCIAL CARE,BRANDON TRUST,"4,616.48",LD LTS 18-64,RESIDENTIAL CARE,2102966727,1000042417
10.06.2019,ADULT SOCIAL CARE,BRANDON TRUST,"4,641.92",LD LTS 18-64,RESIDENTIAL CARE,2102965925,1000042417
10.06.2019,ADULT SOCIAL CARE,GLEN CARE GROUP,"4,646.00",LD LTS 18-64,RESIDENTIAL CARE,2102966478,1000050223
10.06.2019,ADULT SOCIAL CARE,BRANDON TRUST,"4,664.56",LD LTS 18-64,RESIDENTIAL CARE,2102967019,1000042417
10.06.2019,ADULT SOCIAL CARE,BRANDON TRUST,"4,695.72",LD LTS 18-64,RESIDENTIAL CARE,2102966622,1000042417
10.06.2019,ADULT SOCIAL CARE,BRANDON TRUST,"4,695.72",LD LTS 18-64,RESIDENTIAL CARE,2102966691,1000042417
10.06.2019,ADULT SOCIAL CARE,SAFFRONLAND HOMES,"4,734.00",LD LTS 18-64,RESIDENTIAL CARE,2102966652,11172608
10.06.2019,ADULT SOCIAL CARE,BRANDON TRUST,"4,834.88",LD LTS 18-64,RESIDENTIAL CARE,2102965879,1000042417
10.06.2019,ADULT SOCIAL CARE,THE REGARD PARTNERSHIP,"4,852.84",LD LTS 18-64,RESIDENTIAL CARE,2102966264,1823223
10.06.2019,ADULT SOCIAL CARE,BRANDON TRUST,"4,859.80",LD LTS 18-64,RESIDENTIAL CARE,2102966837,1000042417
10.06.2019,ADULT SOCIAL CARE,BRANDON TRUST,"4,868.32",LD LTS 18-64,RESIDENTIAL CARE,2102965985,1000042417
10.06.2019,ADULT SOCIAL CARE,COMMUNITY INTEGRATED CARE,"4,929.84",LD LTS 18-64,RESIDENTIAL CARE,2102967009,1000072886
10.06.2019,ADULT SOCIAL CARE,BRANDON TRUST,"4,935.04",LD LTS 18-64,RESIDENTIAL CARE,2102966170,1000042417
10.06.2019,ADULT SOCIAL CARE,ASD UNIQUE SERVICES LTD,"4,941.12",LD LTS 18-64,RESIDENTIAL CARE,2102966776,1000038819
10.06.2019,ADULT SOCIAL CARE,CHOICE SUPPORT,"5,073.60",LD LTS 18-64,RESIDENTIAL CARE,2102966599,1000031156
10.06.2019,ADULT SOCIAL CARE,NATIONAL AUTISTIC SOCIETY CARE PACK,"5,096.20",LD LTS 18-64,RESIDENTIAL CARE,2102966018,1000020538
10.06.2019,ADULT SOCIAL CARE,PLUS SERVICES,"5,174.04",LD LTS 18-64,RESIDENTIAL CARE,2102966667,1000021241
10.06.2019,ADULT SOCIAL CARE,THE MEATH,"5,191.40",LD LTS 18-64,RESIDENTIAL CARE,2102966140,1000056796
10.06.2019,ADULT SOCIAL CARE,GLEN CARE GROUP,"5,191.40",LD LTS 18-64,RESIDENTIAL CARE,2102966702,1000050223
10.06.2019,ADULT SOCIAL CARE,VOYAGE LTD (EVESLEIGH KENT),"5,199.48",LD LTS 18-64,RESIDENTIAL CARE,2102966960,1000041320
10.06.2019,ADULT SOCIAL CARE,BRANDON TRUST,"5,204.52",LD LTS 18-64,RESIDENTIAL CARE,2102966147,1000042417
10.06.2019,ADULT SOCIAL CARE,CRAEGMOOR WHEELHOUSE PRIORY,"5,259.04",LD LTS 18-64,RESIDENTIAL CARE,2102967028,1000068452
10.06.2019,ADULT SOCIAL CARE,AITCH CARE HOMES (LONDON) LTD,"5,295.24",LD LTS 18-64,RESIDENTIAL CARE,2102966155,1000059432
10.06.2019,ADULT SOCIAL CARE,TRUECARE HAVEN SUPPORT LTD,"5,298.00",LD LTS 18-64,RESIDENTIAL CARE,2102966695,1000078974
10.06.2019,ADULT SOCIAL CARE,ATHOL HOUSE LONDON CHESHIRE HOMES,"5,309.56",LD LTS 18-64,RESIDENTIAL CARE,2102966812,1022907
10.06.2019,ADULT SOCIAL CARE,CARE MANAGEMENT GROUP,"5,391.76",LD LTS 18-64,RESIDENTIAL CARE,2102965801,1000040475
10.06.2019,ADULT SOCIAL CARE,BRANDON TRUST,"5,408.28",LD LTS 18-64,RESIDENTIAL CARE,2102966620,1000042417
10.06.2019,ADULT SOCIAL CARE,INSIGHT,"5,437.28",LD LTS 18-64,RESIDENTIAL CARE,2102966511,1825618
10.06.2019,ADULT SOCIAL CARE,BRANDON TRUST,"5,442.24",LD LTS 18-64,RESIDENTIAL CARE,2102966125,1000042417
10.06.2019,ADULT SOCIAL CARE,CHOICE SUPPORT,"5,536.76",LD LTS 18-64,RESIDENTIAL CARE,2102966997,1104183
10.06.2019,ADULT SOCIAL CARE,CARE MANAGEMENT GROUP,"5,656.00",LD LTS 18-64,RESIDENTIAL CARE,2102966745,1000040475
10.06.2019,ADULT SOCIAL CARE,HAZELDENE LTD,"5,704.52",LD LTS 18-64,RESIDENTIAL CARE,2102966289,1000019679
10.06.2019,ADULT SOCIAL CARE,THE MEATH,"5,759.76",LD LTS 18-64,RESIDENTIAL CARE,2102966397,1000056796
10.06.2019,ADULT SOCIAL CARE,VOYAGE LTD (EVESLEIGH KENT),"6,091.32",LD LTS 18-64,RESIDENTIAL CARE,2102966864,1000041320
10.06.2019,ADULT SOCIAL CARE,VOYAGE CARE (MOUNTEARL),"6,298.28",LD LTS 18-64,RESIDENTIAL CARE,2102966402,1000078173
10.06.2019,ADULT SOCIAL CARE,THE REGARD PARTNERSHIP (INGLEWOOD HSE),"6,482.60",LD LTS 18-64,RESIDENTIAL CARE,2102965869,11307451
10.06.2019,ADULT SOCIAL CARE,CHOICE SUPPORT,"6,603.28",LD LTS 18-64,RESIDENTIAL CARE,2102966054,1104183
10.06.2019,ADULT SOCIAL CARE,STEPPING STONES RESETTLEMENT UNIT,"6,605.40",LD LTS 18-64,RESIDENTIAL CARE,2102967000,1000032806
10.06.2019,ADULT SOCIAL CARE,THE REGARD PARTNERSHIP,"6,766.84",LD LTS 18-64,RESIDENTIAL CARE,2102966350,1823223
10.06.2019,ADULT SOCIAL CARE,VOYAGE CARE (MOUNTEARL),"6,788.88",LD LTS 18-64,RESIDENTIAL CARE,2102966087,1000078173
10.06.2019,ADULT SOCIAL CARE,CLEARWATER CARE (HACKNEY) LTD,"6,800.00",LD LTS 18-64,RESIDENTIAL CARE,2102965995,1000070479
10.06.2019,ADULT SOCIAL CARE,ACTION ON HEARING LOSS,"6,838.28",LD LTS 18-64,RESIDENTIAL CARE,2102966629,1000014488
10.06.2019,ADULT SOCIAL CARE,GLEN CARE GROUP,"6,868.00",LD LTS 18-64,RESIDENTIAL CARE,2102966077,1000050223
10.06.2019,ADULT SOCIAL CARE,SAFFRONLAND HOMES,"6,868.00",LD LTS 18-64,RESIDENTIAL CARE,2102966436,1000072152
10.06.2019,ADULT SOCIAL CARE,SAFFRONLAND HOMES,"6,900.00",LD LTS 18-64,RESIDENTIAL CARE,2102966564,1000072153
10.06.2019,ADULT SOCIAL CARE,LEONARD CHESHIRE (THICKET ROAD),"6,906.96",LD LTS 18-64,RESIDENTIAL CARE,2102966920,1000049761
10.06.2019,ADULT SOCIAL CARE,VALUE IN CARE LTD,"7,035.52",LD LTS 18-64,RESIDENTIAL CARE,2102965827,1000041975
10.06.2019,ADULT SOCIAL CARE,CLACTON FAMILY TRUST LTD,"7,106.92",LD LTS 18-64,RESIDENTIAL CARE,2102966249,1000012183
10.06.2019,ADULT SOCIAL CARE,RNIB COMMUNITY LIVING SERVICE,"7,129.24",LD LTS 18-64,RESIDENTIAL CARE,2102966241,11211087
10.06.2019,ADULT SOCIAL CARE,BROADHAM CARE LIMITED,"7,200.00",LD LTS 18-64,RESIDENTIAL CARE,2102966063,1000057411
10.06.2019,ADULT SOCIAL CARE,VOYAGE LTD (EVESLEIGH KENT),"7,213.16",LD LTS 18-64,RESIDENTIAL CARE,2102966038,1000041320
10.06.2019,ADULT SOCIAL CARE,THE REGARD PARTNERSHIP,"7,272.00",LD LTS 18-64,RESIDENTIAL CARE,2102966185,1823223
10.06.2019,ADULT SOCIAL CARE,CRAEGMOOR HEALTHCARE,"7,305.44",LD LTS 18-64,RESIDENTIAL CARE,2102966496,1323845
10.06.2019,ADULT SOCIAL CARE,SAFFRONLAND HOMES (HESTIA),"7,482.08",LD LTS 18-64,RESIDENTIAL CARE,2102966491,1000021616
10.06.2019,ADULT SOCIAL CARE,ASHMEAD HEALTHCARE LTD,"7,512.00",LD LTS 18-64,RESIDENTIAL CARE,2102966173,1000077917
10.06.2019,ADULT SOCIAL CARE,GLENPAT HOMES,"7,540.68",LD LTS 18-64,RESIDENTIAL CARE,2102966733,1000059312
10.06.2019,ADULT SOCIAL CARE,BURNHAM HOUSE,"7,600.00",LD LTS 18-64,RESIDENTIAL CARE,2102966532,1000050697
10.06.2019,ADULT SOCIAL CARE,CHOICE CARE GROUP,"7,662.88",LD LTS 18-64,RESIDENTIAL CARE,2102966601,1572506
10.06.2019,ADULT SOCIAL CARE,CARE MANAGEMENT GROUP,"7,745.24",LD LTS 18-64,RESIDENTIAL CARE,2102965803,1000040475
10.06.2019,ADULT SOCIAL CARE,SAFFRONLAND HOMES (HESTIA),"7,806.44",LD LTS 18-64,RESIDENTIAL CARE,2102966449,1000021616
10.06.2019,ADULT SOCIAL CARE,SAFFRONLAND HOMES (HESTIA),"7,806.44",LD LTS 18-64,RESIDENTIAL CARE,2102966789,1000021616
10.06.2019,ADULT SOCIAL CARE,SAFFRONLAND HOMES (HESTIA),"7,806.44",LD LTS 18-64,RESIDENTIAL CARE,2102966951,1000021616
10.06.2019,ADULT SOCIAL CARE,RESIDENTIAL CARE SERVICES LTD,"7,808.08",LD LTS 18-64,RESIDENTIAL CARE,2102965852,1000082629
10.06.2019,ADULT SOCIAL CARE,BROADHAM CARE LIMITED,"7,814.88",LD LTS 18-64,RESIDENTIAL CARE,2102966331,1000057411
10.06.2019,ADULT SOCIAL CARE,ASHINGHAM HOUSE LIMITED,"7,874.68",LD LTS 18-64,RESIDENTIAL CARE,2102966606,1000016504
10.06.2019,ADULT SOCIAL CARE,CHOICE CARE GROUP,"7,962.60",LD LTS 18-64,RESIDENTIAL CARE,2102966993,1572506
10.06.2019,ADULT SOCIAL CARE,FIR TREE LODGE (SEE ABILITY),"7,993.04",LD LTS 18-64,RESIDENTIAL CARE,2102966987,1000052257
10.06.2019,ADULT SOCIAL CARE,GROVE CARE PARTNERSHIP,"8,059.20",LD LTS 18-64,RESIDENTIAL CARE,2102966943,1000052893
10.06.2019,ADULT SOCIAL CARE,CHOICE CARE GROUP,"8,059.80",LD LTS 18-64,RESIDENTIAL CARE,2102965980,1572506
10.06.2019,ADULT SOCIAL CARE,SAFFRONLAND HOMES (HESTIA),"8,228.44",LD LTS 18-64,RESIDENTIAL CARE,2102966729,1000021616
10.06.2019,ADULT SOCIAL CARE,THE AVENUES TRUST,"8,320.80",LD LTS 18-64,RESIDENTIAL CARE,2102966388,1981708
10.06.2019,ADULT SOCIAL CARE,CHOICE CARE GROUP,"8,403.92",LD LTS 18-64,RESIDENTIAL CARE,2102966362,1572506
10.06.2019,ADULT SOCIAL CARE,SAFFRONLAND HOMES,"8,650.24",LD LTS 18-64,RESIDENTIAL CARE,2102966025,1000072152
10.06.2019,ADULT SOCIAL CARE,INSIGHT,"8,800.00",LD LTS 18-64,RESIDENTIAL CARE,2102967027,1825618
10.06.2019,ADULT SOCIAL CARE,INSIGHT,"8,802.20",LD LTS 18-64,RESIDENTIAL CARE,2102966227,1825618
10.06.2019,ADULT SOCIAL CARE,THE REGARD PARTNERSHIP,"8,926.40",LD LTS 18-64,RESIDENTIAL CARE,2102967002,1823223
10.06.2019,ADULT SOCIAL CARE,CARETECH COMMUNITY SERVICES LTD,"8,960.00",LD LTS 18-64,RESIDENTIAL CARE,2102966711,1000066698
10.06.2019,ADULT SOCIAL CARE,INSIGHT,"9,258.20",LD LTS 18-64,RESIDENTIAL CARE,2102966233,1825618
10.06.2019,ADULT SOCIAL CARE,SENSE,"9,568.00",LD LTS 18-64,RESIDENTIAL CARE,2102966985,1000046797
10.06.2019,ADULT SOCIAL CARE,THE DRIVE CARE HOMES LTD,"9,600.00",LD LTS 18-64,RESIDENTIAL CARE,2102966546,1000003889
10.06.2019,ADULT SOCIAL CARE,SAFFRONLAND HOMES,"9,620.92",LD LTS 18-64,RESIDENTIAL CARE,2102966584,1000072152
10.06.2019,ADULT SOCIAL CARE,INSIGHT,"10,231.48",LD LTS 18-64,RESIDENTIAL CARE,2102966655,1825618
10.06.2019,ADULT SOCIAL CARE,WESC FOUNDATION,"10,311.84",LD LTS 18-64,RESIDENTIAL CARE,2102966810,1000074658
10.06.2019,ADULT SOCIAL CARE,THE CHILTERNS - OPTIMA CARE,"10,411.08",LD LTS 18-64,RESIDENTIAL CARE,2102966966,1000042209
10.06.2019,ADULT SOCIAL CARE,SEEABILITY,"10,495.60",LD LTS 18-64,RESIDENTIAL CARE,2102965951,1000043641
10.06.2019,ADULT SOCIAL CARE,CARLTON NURSING HOMES LTD,"10,660.00",LD LTS 18-64,RESIDENTIAL CARE,2102966974,1000070431
